Workbook

Sheet Instruction
B1: Please ensure you have macros enable in your Excel.
B3: Usage of the tool - sheet: 'CHART'
A4: 1 | B4: In column U you can select data series visible on the chart by ticking boxes
A5: 2 | B5: In row '15' from pick lists you can select data in customer dimension cells: B15:C15 and product dimension: E15:G15.
A6: 3 | B6: In cell 'K15' you can select the trend horizon - trend is calculated as a index: selected period vs analogical period LY
A7: 4 | B7: Starting from cell 'E35' in pink fields you can paste names of customers that will be excluded from historical sales data visible in table/on chart. While excluding some customers forecast data will not be showed in table/chart
A8: 5 | B8: You can update forecast by typing new figures in rows 25:26 (Frcst 2019/2020 Update) and then clicking button: 'Update frcst'. Figures copied to sheet: "Forecast Update". Forecast update works on lowest product level (Product Group) and for Total Market
B12: Statistical model
B13: Statistical forecast is calculated according to following formula:
B14: (Average from last 12 months) x (Seasonality Index) x (Trend)*
B16: *Trend is selected in cell: K15 ( 3/6/9/12 months)
B19: If you would like to learn more how to re-create the tool with your own data contact me on Linkedin: Mariusz Lesiewicz

Sheet CHART
B1: 01 | C1: 02 | D1: 03 | E1: 04 | F1: 05 | G1: 06 | H1: 07 | I1: 08 | J1: 09 | K1: 10 | L1: 11 | M1: 12
A2: =A19 -> 2017 | B2: =IF($V2,B19,-100) -> 44.74328262 | C2: 55.76244991 | D2: 44.77217324 | E2: 98.41662801 | F2: 47.4412763 | G2: 39.21584076 | H2: 68.51568571 | I2: 114.1441905 | J2: 41.61801624 | K2: 43.63412592 | L2: 30.04555718 | M2: 63.72259443 | T2: =A2 -> 2017 | V2: TRUE | X2: Author: Mariusz Lesiewicz
A3: =A20 -> 2018 | B3: =IF($V3,B20,-100) -> 78.03284383 | C3: 59.4229233 | D3: 75.67676137 | E3: 37.57713792 | F3: 50.23547409 | G3: 58.51782419 | H3: 66.52613336 | I3: 76.85148023 | J3: 63.17509911 | K3: 42.01321596 | L3: 40.49012716 | M3: 66.84251219 | T3: 2018 | V3: TRUE
A4: =A21 -> 2019 | B4: =IF($V4,B21,-100) -> -100 | C4: -100 | D4: -100 | E4: -100 | F4: -100 | G4: -100 | H4: -100 | I4: -100 | J4: -100 | K4: -100 | L4: -100 | M4: -100 | T4: 2019 | V4: FALSE
A5: =A22 -> Frcst 2019 | B5: =IF($V5,B22,-100) -> -100 | C5: -100 | D5: -100 | E5: -100 | F5: -100 | G5: -100 | H5: -100 | I5: -100 | J5: -100 | K5: -100 | L5: -100 | M5: -100 | T5: Frcst 2019 | V5: FALSE
A6: =A23 -> Frcst 2020 | B6: =IF($V6,B23,-100) -> -100 | C6: =IF($V6,C23,-100) -> -100 | D6: -100 | E6: -100 | F6: -100 | G6: -100 | H6: -100 | I6: -100 | J6: -100 | K6: -100 | L6: -100 | M6: -100 | T6: Frcst 2020 | V6: FALSE
A7: =A25 -> Frcst 2019 Update | B7: =IF($V7,B25,-100) -> 59.69006257 | C7: 48.69483492 | D7: 25.67398327 | E7: 40.76649155 | F7: 41.83153521 | G7: 54.82195748 | H7: 74.55260621 | I7: 150 | J7: 92.01447591 | K7: 38.05576279 | L7: 51.72459819 | M7: 60.61405584 | T7: Frcst 2019 Update | V7: TRUE
A8: =A26 -> Frcst 2020 Update | B8: =IF($V8,B26,-100) -> -100 | C8: -100 | D8: -100 | E8: -100 | F8: -100 | G8: -100 | H8: -100 | I8: -100 | J8: -100 | K8: -100 | L8: -100 | M8: -100 | T8: Frcst 2020 Update | V8: FALSE
A9: =A31 -> Stat Frcst 19 | B9: =IF($V$9,B31,-100) -> 0 | C9: 0 | D9: 58.68319959 | E9: 66.25670319 | F9: 47.58850095 | G9: 47.61622995 | H9: 65.7929109 | I9: 93.0538498 | J9: 51.05562224 | K9: 41.72772532 | L9: 34.36526571 | M9: 63.6118388 | T9: Stat Frcst 19 | V9: TRUE
A10: =A32 -> Stat Frcst 20 | B10: =IF($V10,B32,-100) -> -100 | C10: -100 | D10: -100 | E10: -100 | F10: -100 | G10: -100 | H10: -100 | I10: -100 | J10: -100 | K10: -100 | L10: -100 | M10: -100 | T10: Stat Frcst 20 | V10: FALSE
AD11: TRUE
AD12: TRUE
A14: Market | B14: Channel | C14: Customer | E14: Category | F14: Segment | G14: Product group | K14: Trend
A15: TOTAL | B15: TOTAL | C15: TOTAL | E15: Fruits | F15: Citrus | G15: oranges | K15: 6M
A16: =IF(A15="TOTAL","*",A15) -> * | B16: =IF(B15="TOTAL","*",B15) -> * | C16: =IF(C15="TOTAL","*",C15) -> * | E16: =IF(E15="TOTAL","*",E15) -> Fruits | F16: =IF(F15="TOTAL","*",F15) -> Citrus | G16: =IF(G15="TOTAL","*",G15) -> oranges | K16: =VLOOKUP(K15,'Stat model'!A14:B17,2,0) -> 1.006508222
A17: SELL IN
B18: 01 | C18: 02 | D18: 03 | E18: 04 | F18: 05 | G18: 06 | H18: 07 | I18: 08 | J18: 09 | K18: 10 | L18: 11 | M18: 12 | O18: TOTAL | P18: YTD | Q18: YTG | S18: FY% | T18: YTD% | U18: YTG%
A19: ='Set up'!B9 -> 2017 | B19: =SUMIFS(Sales!G:G,Sales!$D:$D,CHART!$E$16,Sales!$E:$E,$F$16,Sales!$F:$F,$G$16,Sales!$C:$C,$C$16,Sales!$B:$B,$B$16,Sales!$A:$A,$A$16,Sales!$BC:$BC,0) -> 44.74328262 | C19: =SUMIFS(Sales!H:H,Sales!$D:$D,CHART!$E$16,Sales!$E:$E,$F$16,Sales!$F:$F,$G$16,Sales!$C:$C,$C$16,Sales!$B:$B,$B$16,Sales!$A:$A,$A$16,Sales!$BC:$BC,0) -> 55.76244991 | D19: =SUMIFS(Sales!I:I,Sales!$D:$D,CHART!$E$16,Sales!$E:$E,$F$16,Sales!$F:$F,$G$16,Sales!$C:$C,$C$16,Sales!$B:$B,$B$16,Sales!$A:$A,$A$16,Sales!$BC:$BC,0) -> 44.77217324 | E19: =SUMIFS(Sales!J:J,Sales!$D:$D,CHART!$E$16,Sales!$E:$E,$F$16,Sales!$F:$F,$G$16,Sales!$C:$C,$C$16,Sales!$B:$B,$B$16,Sales!$A:$A,$A$16,Sales!$BC:$BC,0) -> 98.41662801 | F19: =SUMIFS(Sales!K:K,Sales!$D:$D,CHART!$E$16,Sales!$E:$E,$F$16,Sales!$F:$F,$G$16,Sales!$C:$C,$C$16,Sales!$B:$B,$B$16,Sales!$A:$A,$A$16,Sales!$BC:$BC,0) -> 47.4412763 | G19: =SUMIFS(Sales!L:L,Sales!$D:$D,CHART!$E$16,Sales!$E:$E,$F$16,Sales!$F:$F,$G$16,Sales!$C:$C,$C$16,Sales!$B:$B,$B$16,Sales!$A:$A,$A$16,Sales!$BC:$BC,0) -> 39.21584076 | H19: =SUMIFS(Sales!M:M,Sales!$D:$D,CHART!$E$16,Sales!$E:$E,$F$16,Sales!$F:$F,$G$16,Sales!$C:$C,$C$16,Sales!$B:$B,$B$16,Sales!$A:$A,$A$16,Sales!$BC:$BC,0) -> 68.51568571 | I19: =SUMIFS(Sales!N:N,Sales!$D:$D,CHART!$E$16,Sales!$E:$E,$F$16,Sales!$F:$F,$G$16,Sales!$C:$C,$C$16,Sales!$B:$B,$B$16,Sales!$A:$A,$A$16,Sales!$BC:$BC,0) -> 114.1441905 | J19: =SUMIFS(Sales!O:O,Sales!$D:$D,CHART!$E$16,Sales!$E:$E,$F$16,Sales!$F:$F,$G$16,Sales!$C:$C,$C$16,Sales!$B:$B,$B$16,Sales!$A:$A,$A$16,Sales!$BC:$BC,0) -> 41.61801624 | K19: =SUMIFS(Sales!P:P,Sales!$D:$D,CHART!$E$16,Sales!$E:$E,$F$16,Sales!$F:$F,$G$16,Sales!$C:$C,$C$16,Sales!$B:$B,$B$16,Sales!$A:$A,$A$16,Sales!$BC:$BC,0) -> 43.63412592 | L19: =SUMIFS(Sales!Q:Q,Sales!$D:$D,CHART!$E$16,Sales!$E:$E,$F$16,Sales!$F:$F,$G$16,Sales!$C:$C,$C$16,Sales!$B:$B,$B$16,Sales!$A:$A,$A$16,Sales!$BC:$BC,0) -> 30.04555718 | M19: =SUMIFS(Sales!R:R,Sales!$D:$D,CHART!$E$16,Sales!$E:$E,$F$16,Sales!$F:$F,$G$16,Sales!$C:$C,$C$16,Sales!$B:$B,$B$16,Sales!$A:$A,$A$16,Sales!$BC:$BC,0) -> 63.72259443 | O19: =SUM(B19:M19) -> 692.0318209 | P19: =SUM(B19:OFFSET(B19,0,'Set up'!$B$4-2)) -> 100.5057325 | Q19: =O19-P19 -> 591.5260884
A20: ='Set up'!B8 -> 2018 | B20: =SUMIFS(Sales!S:S,Sales!$D:$D,CHART!$E$16,Sales!$E:$E,$F$16,Sales!$F:$F,$G$16,Sales!$C:$C,$C$16,Sales!$B:$B,$B$16,Sales!$A:$A,$A$16,Sales!$BC:$BC,0) -> 78.03284383 | C20: =SUMIFS(Sales!T:T,Sales!$D:$D,CHART!$E$16,Sales!$E:$E,$F$16,Sales!$F:$F,$G$16,Sales!$C:$C,$C$16,Sales!$B:$B,$B$16,Sales!$A:$A,$A$16,Sales!$BC:$BC,0) -> 59.4229233 | D20: =SUMIFS(Sales!U:U,Sales!$D:$D,CHART!$E$16,Sales!$E:$E,$F$16,Sales!$F:$F,$G$16,Sales!$C:$C,$C$16,Sales!$B:$B,$B$16,Sales!$A:$A,$A$16,Sales!$BC:$BC,0) -> 75.67676137 | E20: =SUMIFS(Sales!V:V,Sales!$D:$D,CHART!$E$16,Sales!$E:$E,$F$16,Sales!$F:$F,$G$16,Sales!$C:$C,$C$16,Sales!$B:$B,$B$16,Sales!$A:$A,$A$16,Sales!$BC:$BC,0) -> 37.57713792 | F20: =SUMIFS(Sales!W:W,Sales!$D:$D,CHART!$E$16,Sales!$E:$E,$F$16,Sales!$F:$F,$G$16,Sales!$C:$C,$C$16,Sales!$B:$B,$B$16,Sales!$A:$A,$A$16,Sales!$BC:$BC,0) -> 50.23547409 | G20: =SUMIFS(Sales!X:X,Sales!$D:$D,CHART!$E$16,Sales!$E:$E,$F$16,Sales!$F:$F,$G$16,Sales!$C:$C,$C$16,Sales!$B:$B,$B$16,Sales!$A:$A,$A$16,Sales!$BC:$BC,0) -> 58.51782419 | H20: =SUMIFS(Sales!Y:Y,Sales!$D:$D,CHART!$E$16,Sales!$E:$E,$F$16,Sales!$F:$F,$G$16,Sales!$C:$C,$C$16,Sales!$B:$B,$B$16,Sales!$A:$A,$A$16,Sales!$BC:$BC,0) -> 66.52613336 | I20: =SUMIFS(Sales!Z:Z,Sales!$D:$D,CHART!$E$16,Sales!$E:$E,$F$16,Sales!$F:$F,$G$16,Sales!$C:$C,$C$16,Sales!$B:$B,$B$16,Sales!$A:$A,$A$16,Sales!$BC:$BC,0) -> 76.85148023 | J20: =SUMIFS(Sales!AA:AA,Sales!$D:$D,CHART!$E$16,Sales!$E:$E,$F$16,Sales!$F:$F,$G$16,Sales!$C:$C,$C$16,Sales!$B:$B,$B$16,Sales!$A:$A,$A$16,Sales!$BC:$BC,0) -> 63.17509911 | K20: =SUMIFS(Sales!AB:AB,Sales!$D:$D,CHART!$E$16,Sales!$E:$E,$F$16,Sales!$F:$F,$G$16,Sales!$C:$C,$C$16,Sales!$B:$B,$B$16,Sales!$A:$A,$A$16,Sales!$BC:$BC,0) -> 42.01321596 | L20: =SUMIFS(Sales!AC:AC,Sales!$D:$D,CHART!$E$16,Sales!$E:$E,$F$16,Sales!$F:$F,$G$16,Sales!$C:$C,$C$16,Sales!$B:$B,$B$16,Sales!$A:$A,$A$16,Sales!$BC:$BC,0) -> 40.49012716 | M20: =SUMIFS(Sales!AD:AD,Sales!$D:$D,CHART!$E$16,Sales!$E:$E,$F$16,Sales!$F:$F,$G$16,Sales!$C:$C,$C$16,Sales!$B:$B,$B$16,Sales!$A:$A,$A$16,Sales!$BC:$BC,0) -> 66.84251219 | O20: =SUM(B20:M20) -> 715.3615327 | P20: =SUM(B20:OFFSET(B20,0,'Set up'!$B$4-2)) -> 137.4557671 | Q20: =O20-P20 -> 577.9057656 | S20: =O20/O19-1 -> 0.0337119062 | T20: 0.3676410656 | U20: -0.02302573469
A21: ='Set up'!B3 -> 2019 | B21: =SUMIFS(Sales!AE:AE,Sales!$D:$D,CHART!$E$16,Sales!$E:$E,$F$16,Sales!$F:$F,$G$16,Sales!$C:$C,$C$16,Sales!$B:$B,$B$16,Sales!$A:$A,$A$16,Sales!$BC:$BC,0) -> 57.70966011 | C21: =SUMIFS(Sales!AF:AF,Sales!$D:$D,CHART!$E$16,Sales!$E:$E,$F$16,Sales!$F:$F,$G$16,Sales!$C:$C,$C$16,Sales!$B:$B,$B$16,Sales!$A:$A,$A$16,Sales!$BC:$BC,0) -> 48.30514295 | D21: =SUMIFS(Sales!AG:AG,Sales!$D:$D,CHART!$E$16,Sales!$E:$E,$F$16,Sales!$F:$F,$G$16,Sales!$C:$C,$C$16,Sales!$B:$B,$B$16,Sales!$A:$A,$A$16,Sales!$BC:$BC,0) -> 0 | E21: =SUMIFS(Sales!AH:AH,Sales!$D:$D,CHART!$E$16,Sales!$E:$E,$F$16,Sales!$F:$F,$G$16,Sales!$C:$C,$C$16,Sales!$B:$B,$B$16,Sales!$A:$A,$A$16,Sales!$BC:$BC,0) -> 0 | F21: =SUMIFS(Sales!AI:AI,Sales!$D:$D,CHART!$E$16,Sales!$E:$E,$F$16,Sales!$F:$F,$G$16,Sales!$C:$C,$C$16,Sales!$B:$B,$B$16,Sales!$A:$A,$A$16,Sales!$BC:$BC,0) -> 0 | G21: =SUMIFS(Sales!AJ:AJ,Sales!$D:$D,CHART!$E$16,Sales!$E:$E,$F$16,Sales!$F:$F,$G$16,Sales!$C:$C,$C$16,Sales!$B:$B,$B$16,Sales!$A:$A,$A$16,Sales!$BC:$BC,0) -> 0 | H21: =SUMIFS(Sales!AK:AK,Sales!$D:$D,CHART!$E$16,Sales!$E:$E,$F$16,Sales!$F:$F,$G$16,Sales!$C:$C,$C$16,Sales!$B:$B,$B$16,Sales!$A:$A,$A$16,Sales!$BC:$BC,0) -> 0 | I21: =SUMIFS(Sales!AL:AL,Sales!$D:$D,CHART!$E$16,Sales!$E:$E,$F$16,Sales!$F:$F,$G$16,Sales!$C:$C,$C$16,Sales!$B:$B,$B$16,Sales!$A:$A,$A$16,Sales!$BC:$BC,0) -> 0 | J21: =SUMIFS(Sales!AM:AM,Sales!$D:$D,CHART!$E$16,Sales!$E:$E,$F$16,Sales!$F:$F,$G$16,Sales!$C:$C,$C$16,Sales!$B:$B,$B$16,Sales!$A:$A,$A$16,Sales!$BC:$BC,0) -> 0 | K21: =SUMIFS(Sales!AN:AN,Sales!$D:$D,CHART!$E$16,Sales!$E:$E,$F$16,Sales!$F:$F,$G$16,Sales!$C:$C,$C$16,Sales!$B:$B,$B$16,Sales!$A:$A,$A$16,Sales!$BC:$BC,0) -> 0 | L21: =SUMIFS(Sales!AO:AO,Sales!$D:$D,CHART!$E$16,Sales!$E:$E,$F$16,Sales!$F:$F,$G$16,Sales!$C:$C,$C$16,Sales!$B:$B,$B$16,Sales!$A:$A,$A$16,Sales!$BC:$BC,0) -> 0 | M21: =SUMIFS(Sales!AP:AP,Sales!$D:$D,CHART!$E$16,Sales!$E:$E,$F$16,Sales!$F:$F,$G$16,Sales!$C:$C,$C$16,Sales!$B:$B,$B$16,Sales!$A:$A,$A$16,Sales!$BC:$BC,0) -> 0 | O21: =P21+Q21 -> 687.433818 | P21: =SUM(B21:OFFSET(B21,0,'Set up'!$B$4-2)) -> 106.0148031 | Q21: =SUM(OFFSET(B22,0,'Set up'!$B$4-1):$M22) -> 581.4190149 | S21: -0.03904000072 | T21: -0.2287351395 | U21: 0.006079277149
A22: ="Frcst "&'Set up'!$B$3 -> Frcst 2019 | B22: =IF(OR($A$35<>""),0,IF(VALUE(B18)<'Set up'!$B$4-1,0,IF(OR($A$15<>"TOTAL",$B$15<>"TOTAL",$C$15<>"TOTAL"),0,SUMIFS(Forecast!D:D,Forecast!$A:$A,CHART!$E$16,Forecast!$B:$B,$F$16,Forecast!$C:$C,$G$16)))) -> 0 | C22: =IF(OR($A$35<>""),0,IF(VALUE(C18)<'Set up'!$B$4-1,0,IF(OR($A$15<>"TOTAL",$B$15<>"TOTAL",$C$15<>"TOTAL"),0,SUMIFS(Forecast!E:E,Forecast!$A:$A,CHART!$E$16,Forecast!$B:$B,$F$16,Forecast!$C:$C,$G$16)))) -> 48.69483492 | D22: =IF(OR($A$35<>""),0,IF(VALUE(D18)<'Set up'!$B$4-1,0,IF(OR($A$15<>"TOTAL",$B$15<>"TOTAL",$C$15<>"TOTAL"),0,SUMIFS(Forecast!F:F,Forecast!$A:$A,CHART!$E$16,Forecast!$B:$B,$F$16,Forecast!$C:$C,$G$16)))) -> 25.67398327 | E22: =IF(OR($A$35<>""),0,IF(VALUE(E18)<'Set up'!$B$4-1,0,IF(OR($A$15<>"TOTAL",$B$15<>"TOTAL",$C$15<>"TOTAL"),0,SUMIFS(Forecast!G:G,Forecast!$A:$A,CHART!$E$16,Forecast!$B:$B,$F$16,Forecast!$C:$C,$G$16)))) -> 40.76649155 | F22: =IF(OR($A$35<>""),0,IF(VALUE(F18)<'Set up'!$B$4-1,0,IF(OR($A$15<>"TOTAL",$B$15<>"TOTAL",$C$15<>"TOTAL"),0,SUMIFS(Forecast!H:H,Forecast!$A:$A,CHART!$E$16,Forecast!$B:$B,$F$16,Forecast!$C:$C,$G$16)))) -> 41.83153521 | G22: =IF(OR($A$35<>""),0,IF(VALUE(G18)<'Set up'!$B$4-1,0,IF(OR($A$15<>"TOTAL",$B$15<>"TOTAL",$C$15<>"TOTAL"),0,SUMIFS(Forecast!I:I,Forecast!$A:$A,CHART!$E$16,Forecast!$B:$B,$F$16,Forecast!$C:$C,$G$16)))) -> 54.82195748 | H22: =IF(OR($A$35<>""),0,IF(VALUE(H18)<'Set up'!$B$4-1,0,IF(OR($A$15<>"TOTAL",$B$15<>"TOTAL",$C$15<>"TOTAL"),0,SUMIFS(Forecast!J:J,Forecast!$A:$A,CHART!$E$16,Forecast!$B:$B,$F$16,Forecast!$C:$C,$G$16)))) -> 74.55260621 | I22: =IF(OR($A$35<>""),0,IF(VALUE(I18)<'Set up'!$B$4-1,0,IF(OR($A$15<>"TOTAL",$B$15<>"TOTAL",$C$15<>"TOTAL"),0,SUMIFS(Forecast!K:K,Forecast!$A:$A,CHART!$E$16,Forecast!$B:$B,$F$16,Forecast!$C:$C,$G$16)))) -> 101.3635484 | J22: =IF(OR($A$35<>""),0,IF(VALUE(J18)<'Set up'!$B$4-1,0,IF(OR($A$15<>"TOTAL",$B$15<>"TOTAL",$C$15<>"TOTAL"),0,SUMIFS(Forecast!L:L,Forecast!$A:$A,CHART!$E$16,Forecast!$B:$B,$F$16,Forecast!$C:$C,$G$16)))) -> 92.01447591 | K22: =IF(OR($A$35<>""),0,IF(VALUE(K18)<'Set up'!$B$4-1,0,IF(OR($A$15<>"TOTAL",$B$15<>"TOTAL",$C$15<>"TOTAL"),0,SUMIFS(Forecast!M:M,Forecast!$A:$A,CHART!$E$16,Forecast!$B:$B,$F$16,Forecast!$C:$C,$G$16)))) -> 38.05576279 | L22: =IF(OR($A$35<>""),0,IF(VALUE(L18)<'Set up'!$B$4-1,0,IF(OR($A$15<>"TOTAL",$B$15<>"TOTAL",$C$15<>"TOTAL"),0,SUMIFS(Forecast!N:N,Forecast!$A:$A,CHART!$E$16,Forecast!$B:$B,$F$16,Forecast!$C:$C,$G$16)))) -> 51.72459819 | M22: =IF(OR($A$35<>""),0,IF(VALUE(M18)<'Set up'!$B$4-1,0,IF(OR($A$15<>"TOTAL",$B$15<>"TOTAL",$C$15<>"TOTAL"),0,SUMIFS(Forecast!O:O,Forecast!$A:$A,CHART!$E$16,Forecast!$B:$B,$F$16,Forecast!$C:$C,$G$16)))) -> 60.61405584 | P22: =SUM(B22:OFFSET(B22,0,'Set up'!$B$4-2)) -> 48.69483492
A23: ="Frcst "&'Set up'!$B$7 -> Frcst 2020 | B23: =IF(OR($A$35<>""),0,IF(OR($A$15<>"TOTAL",$B$15<>"TOTAL",$C$15<>"TOTAL"),0,SUMIFS(Forecast!P:P,Forecast!$A:$A,CHART!$E$16,Forecast!$B:$B,$F$16,Forecast!$C:$C,$G$16))) -> 53.23147473 | C23: =IF(OR($A$35<>""),0,IF(OR($A$15<>"TOTAL",$B$15<>"TOTAL",$C$15<>"TOTAL"),0,SUMIFS(Forecast!Q:Q,Forecast!$A:$A,CHART!$E$16,Forecast!$B:$B,$F$16,Forecast!$C:$C,$G$16))) -> 49.26770138 | D23: =IF(OR($A$35<>""),0,IF(OR($A$15<>"TOTAL",$B$15<>"TOTAL",$C$15<>"TOTAL"),0,SUMIFS(Forecast!R:R,Forecast!$A:$A,CHART!$E$16,Forecast!$B:$B,$F$16,Forecast!$C:$C,$G$16))) -> 52.27752847 | E23: =IF(OR($A$35<>""),0,IF(OR($A$15<>"TOTAL",$B$15<>"TOTAL",$C$15<>"TOTAL"),0,SUMIFS(Forecast!S:S,Forecast!$A:$A,CHART!$E$16,Forecast!$B:$B,$F$16,Forecast!$C:$C,$G$16))) -> 44.10414797 | F23: =IF(OR($A$35<>""),0,IF(OR($A$15<>"TOTAL",$B$15<>"TOTAL",$C$15<>"TOTAL"),0,SUMIFS(Forecast!T:T,Forecast!$A:$A,CHART!$E$16,Forecast!$B:$B,$F$16,Forecast!$C:$C,$G$16))) -> 30.55979503 | G23: =IF(OR($A$35<>""),0,IF(OR($A$15<>"TOTAL",$B$15<>"TOTAL",$C$15<>"TOTAL"),0,SUMIFS(Forecast!U:U,Forecast!$A:$A,CHART!$E$16,Forecast!$B:$B,$F$16,Forecast!$C:$C,$G$16))) -> 65.17504145 | H23: =IF(OR($A$35<>""),0,IF(OR($A$15<>"TOTAL",$B$15<>"TOTAL",$C$15<>"TOTAL"),0,SUMIFS(Forecast!V:V,Forecast!$A:$A,CHART!$E$16,Forecast!$B:$B,$F$16,Forecast!$C:$C,$G$16))) -> 71.09444651 | I23: =IF(OR($A$35<>""),0,IF(OR($A$15<>"TOTAL",$B$15<>"TOTAL",$C$15<>"TOTAL"),0,SUMIFS(Forecast!W:W,Forecast!$A:$A,CHART!$E$16,Forecast!$B:$B,$F$16,Forecast!$C:$C,$G$16))) -> 88.93266422 | J23: =IF(OR($A$35<>""),0,IF(OR($A$15<>"TOTAL",$B$15<>"TOTAL",$C$15<>"TOTAL"),0,SUMIFS(Forecast!X:X,Forecast!$A:$A,CHART!$E$16,Forecast!$B:$B,$F$16,Forecast!$C:$C,$G$16))) -> 1.535318054 | K23: =IF(OR($A$35<>""),0,IF(OR($A$15<>"TOTAL",$B$15<>"TOTAL",$C$15<>"TOTAL"),0,SUMIFS(Forecast!Y:Y,Forecast!$A:$A,CHART!$E$16,Forecast!$B:$B,$F$16,Forecast!$C:$C,$G$16))) -> 4.92217639 | L23: =IF(OR($A$35<>""),0,IF(OR($A$15<>"TOTAL",$B$15<>"TOTAL",$C$15<>"TOTAL"),0,SUMIFS(Forecast!Z:Z,Forecast!$A:$A,CHART!$E$16,Forecast!$B:$B,$F$16,Forecast!$C:$C,$G$16))) -> 2.357805702 | M23: =IF(OR($A$35<>""),0,IF(OR($A$15<>"TOTAL",$B$15<>"TOTAL",$C$15<>"TOTAL"),0,SUMIFS(Forecast!AA:AA,Forecast!$A:$A,CHART!$E$16,Forecast!$B:$B,$F$16,Forecast!$C:$C,$G$16))) -> 4.15567977 | O23: =SUM(B23:M23) -> 467.6137797 | P23: =SUM(B23:OFFSET(B23,0,'Set up'!$B$4-2)) -> 102.4991761 | Q23: =SUM(OFFSET(B23,0,'Set up'!$B$4-1):M23) -> 365.1146036 | S23: =O23/O21-1 -> -0.31976902 | T23: =P23/P21-1 -> -0.03316166084 | U23: =Q23/Q21-1 -> -0.3720284439 | V23: =V22 -> 0
A25: =A22&" Update" -> Frcst 2019 Update | B25: =IF($A$35<>"",0,IF(OR($A$15<>"TOTAL",$B$15<>"TOTAL",$C$15<>"TOTAL"),0,SUMIFS('Forecast Update'!D:D,'Forecast Update'!$A:$A,$E$16,'Forecast Update'!$B:$B,$F$16,'Forecast Update'!$C:$C,$G$16))) -> 59.69006257 | C25: =IF($A$35<>"",0,IF(OR($A$15<>"TOTAL",$B$15<>"TOTAL",$C$15<>"TOTAL"),0,SUMIFS('Forecast Update'!E:E,'Forecast Update'!$A:$A,$E$16,'Forecast Update'!$B:$B,$F$16,'Forecast Update'!$C:$C,$G$16))) -> 48.69483492 | D25: =IF($A$35<>"",0,IF(OR($A$15<>"TOTAL",$B$15<>"TOTAL",$C$15<>"TOTAL"),0,SUMIFS('Forecast Update'!F:F,'Forecast Update'!$A:$A,$E$16,'Forecast Update'!$B:$B,$F$16,'Forecast Update'!$C:$C,$G$16))) -> 25.67398327 | E25: =IF($A$35<>"",0,IF(OR($A$15<>"TOTAL",$B$15<>"TOTAL",$C$15<>"TOTAL"),0,SUMIFS('Forecast Update'!G:G,'Forecast Update'!$A:$A,$E$16,'Forecast Update'!$B:$B,$F$16,'Forecast Update'!$C:$C,$G$16))) -> 40.76649155 | F25: =IF($A$35<>"",0,IF(OR($A$15<>"TOTAL",$B$15<>"TOTAL",$C$15<>"TOTAL"),0,SUMIFS('Forecast Update'!H:H,'Forecast Update'!$A:$A,$E$16,'Forecast Update'!$B:$B,$F$16,'Forecast Update'!$C:$C,$G$16))) -> 41.83153521 | G25: =IF($A$35<>"",0,IF(OR($A$15<>"TOTAL",$B$15<>"TOTAL",$C$15<>"TOTAL"),0,SUMIFS('Forecast Update'!I:I,'Forecast Update'!$A:$A,$E$16,'Forecast Update'!$B:$B,$F$16,'Forecast Update'!$C:$C,$G$16))) -> 54.82195748 | H25: =IF($A$35<>"",0,IF(OR($A$15<>"TOTAL",$B$15<>"TOTAL",$C$15<>"TOTAL"),0,SUMIFS('Forecast Update'!J:J,'Forecast Update'!$A:$A,$E$16,'Forecast Update'!$B:$B,$F$16,'Forecast Update'!$C:$C,$G$16))) -> 74.55260621 | I25: =IF($A$35<>"",0,IF(OR($A$15<>"TOTAL",$B$15<>"TOTAL",$C$15<>"TOTAL"),0,SUMIFS('Forecast Update'!K:K,'Forecast Update'!$A:$A,$E$16,'Forecast Update'!$B:$B,$F$16,'Forecast Update'!$C:$C,$G$16))) -> 150 | J25: =IF($A$35<>"",0,IF(OR($A$15<>"TOTAL",$B$15<>"TOTAL",$C$15<>"TOTAL"),0,SUMIFS('Forecast Update'!L:L,'Forecast Update'!$A:$A,$E$16,'Forecast Update'!$B:$B,$F$16,'Forecast Update'!$C:$C,$G$16))) -> 92.01447591 | K25: =IF($A$35<>"",0,IF(OR($A$15<>"TOTAL",$B$15<>"TOTAL",$C$15<>"TOTAL"),0,SUMIFS('Forecast Update'!M:M,'Forecast Update'!$A:$A,$E$16,'Forecast Update'!$B:$B,$F$16,'Forecast Update'!$C:$C,$G$16))) -> 38.05576279 | L25: =IF($A$35<>"",0,IF(OR($A$15<>"TOTAL",$B$15<>"TOTAL",$C$15<>"TOTAL"),0,SUMIFS('Forecast Update'!N:N,'Forecast Update'!$A:$A,$E$16,'Forecast Update'!$B:$B,$F$16,'Forecast Update'!$C:$C,$G$16))) -> 51.72459819 | M25: =IF($A$35<>"",0,IF(OR($A$15<>"TOTAL",$B$15<>"TOTAL",$C$15<>"TOTAL"),0,SUMIFS('Forecast Update'!O:O,'Forecast Update'!$A:$A,$E$16,'Forecast Update'!$B:$B,$F$16,'Forecast Update'!$C:$C,$G$16))) -> 60.61405584 | O25: =Q25+P21 -> 736.0702695 | Q25: =SUM(OFFSET(B25,0,'Set up'!$B$4-1):$M25) -> 630.0554664 | S25: =O25/O20-1 -> 0.02894863066 | U25: =Q25/Q20-1 -> 0.09023910813 | W25: =IF($A$35<>"",0,IF(OR($A$15<>"TOTAL",$B$15<>"TOTAL",$C$15<>"TOTAL"),0,SUMIFS('Forecast Update'!Y:Y,'Forecast Update'!$A:$A,$E$16,'Forecast Update'!$B:$B,$F$16,'Forecast Update'!$C:$C,$G$16))) -> 4.92217639 | X25: =IF(AND(G15<>"TOTAL",A15="TOTAL",B15="TOTAL",C15="TOTAL"),1,0) -> 1 | Y25: =MATCH(G15,'Forecast Update'!C:C,0) -> 7
A26: =A23&" Update" -> Frcst 2020 Update | B26: =IF($A$35<>"",0,IF(OR($A$15<>"TOTAL",$B$15<>"TOTAL",$C$15<>"TOTAL"),0,SUMIFS('Forecast Update'!P:P,'Forecast Update'!$A:$A,$E$16,'Forecast Update'!$B:$B,$F$16,'Forecast Update'!$C:$C,$G$16))) -> 53.23147473 | C26: =IF($A$35<>"",0,IF(OR($A$15<>"TOTAL",$B$15<>"TOTAL",$C$15<>"TOTAL"),0,SUMIFS('Forecast Update'!Q:Q,'Forecast Update'!$A:$A,$E$16,'Forecast Update'!$B:$B,$F$16,'Forecast Update'!$C:$C,$G$16))) -> 49.26770138 | D26: =IF($A$35<>"",0,IF(OR($A$15<>"TOTAL",$B$15<>"TOTAL",$C$15<>"TOTAL"),0,SUMIFS('Forecast Update'!R:R,'Forecast Update'!$A:$A,$E$16,'Forecast Update'!$B:$B,$F$16,'Forecast Update'!$C:$C,$G$16))) -> 52.27752847 | E26: =IF($A$35<>"",0,IF(OR($A$15<>"TOTAL",$B$15<>"TOTAL",$C$15<>"TOTAL"),0,SUMIFS('Forecast Update'!S:S,'Forecast Update'!$A:$A,$E$16,'Forecast Update'!$B:$B,$F$16,'Forecast Update'!$C:$C,$G$16))) -> 44.10414797 | F26: =IF($A$35<>"",0,IF(OR($A$15<>"TOTAL",$B$15<>"TOTAL",$C$15<>"TOTAL"),0,SUMIFS('Forecast Update'!T:T,'Forecast Update'!$A:$A,$E$16,'Forecast Update'!$B:$B,$F$16,'Forecast Update'!$C:$C,$G$16))) -> 30.55979503 | G26: =IF($A$35<>"",0,IF(OR($A$15<>"TOTAL",$B$15<>"TOTAL",$C$15<>"TOTAL"),0,SUMIFS('Forecast Update'!U:U,'Forecast Update'!$A:$A,$E$16,'Forecast Update'!$B:$B,$F$16,'Forecast Update'!$C:$C,$G$16))) -> 65.17504145 | H26: =IF($A$35<>"",0,IF(OR($A$15<>"TOTAL",$B$15<>"TOTAL",$C$15<>"TOTAL"),0,SUMIFS('Forecast Update'!V:V,'Forecast Update'!$A:$A,$E$16,'Forecast Update'!$B:$B,$F$16,'Forecast Update'!$C:$C,$G$16))) -> 71.09444651 | I26: =IF($A$35<>"",0,IF(OR($A$15<>"TOTAL",$B$15<>"TOTAL",$C$15<>"TOTAL"),0,SUMIFS('Forecast Update'!W:W,'Forecast Update'!$A:$A,$E$16,'Forecast Update'!$B:$B,$F$16,'Forecast Update'!$C:$C,$G$16))) -> 88.93266422 | J26: =IF($A$35<>"",0,IF(OR($A$15<>"TOTAL",$B$15<>"TOTAL",$C$15<>"TOTAL"),0,SUMIFS('Forecast Update'!X:X,'Forecast Update'!$A:$A,$E$16,'Forecast Update'!$B:$B,$F$16,'Forecast Update'!$C:$C,$G$16))) -> 1.535318054 | K26: =IF($A$35<>"",0,IF(OR($A$15<>"TOTAL",$B$15<>"TOTAL",$C$15<>"TOTAL"),0,SUMIFS('Forecast Update'!Y:Y,'Forecast Update'!$A:$A,$E$16,'Forecast Update'!$B:$B,$F$16,'Forecast Update'!$C:$C,$G$16))) -> 4.92217639 | L26: =IF($A$35<>"",0,IF(OR($A$15<>"TOTAL",$B$15<>"TOTAL",$C$15<>"TOTAL"),0,SUMIFS('Forecast Update'!Z:Z,'Forecast Update'!$A:$A,$E$16,'Forecast Update'!$B:$B,$F$16,'Forecast Update'!$C:$C,$G$16))) -> 2.357805702 | M26: =IF($A$35<>"",0,IF(OR($A$15<>"TOTAL",$B$15<>"TOTAL",$C$15<>"TOTAL"),0,SUMIFS('Forecast Update'!AA:AA,'Forecast Update'!$A:$A,$E$16,'Forecast Update'!$B:$B,$F$16,'Forecast Update'!$C:$C,$G$16))) -> 4.15567977 | O26: =SUM(B26:M26) -> 467.6137797 | P26: =SUM(B26:OFFSET(B26,0,'Set up'!$B$4-2)) -> 102.4991761 | S26: =O26/O25-1 -> -0.3647158443 | T26: =P26/P21-1 -> -0.03316166084 | U26: =Q26/Q21-1 -> -1 | W26: =IF($A$35<>"",0,IF(OR($A$15<>"TOTAL",$B$15<>"TOTAL",$C$15<>"TOTAL"),0,SUMIFS('Forecast Update'!AK:AK,'Forecast Update'!$A:$A,$E$16,'Forecast Update'!$B:$B,$F$16,'Forecast Update'!$C:$C,$G$16))) -> 0
A28: ="Change "&'Set up'!$B$3 -> Change 2019 | D28: =D25-D22 -> 0 | E28: 0 | F28: 0 | G28: 0 | H28: 0 | I28: 48.63645155 | J28: 0 | K28: 0 | L28: 0 | M28: 0 | O28: =SUM(B28:M28) -> 48.63645155 | Q28: =SUM(B28:M28) -> 48.63645155
A29: ="Change "&'Set up'!B7 -> Change 2020 | B29: =B26-B23 -> 0 | C29: =C26-C23 -> 0 | D29: =D26-D23 -> 0 | E29: 0 | F29: 0 | G29: 0 | H29: 0 | I29: 0 | J29: 0 | K29: 0 | L29: 0 | M29: 0 | O29: =O26-O23 -> 0 | Q29: =Q26-Q23 -> -365.1146036
A31: ="Stat Frcst"&" "&RIGHT('Set up'!B3,2) -> Stat Frcst 19 | B31: =IF(VALUE(B18)<'Set up'!$B$4,0,'Stat model'!A22) -> 0 | C31: =IF(VALUE(C18)<'Set up'!$B$4,0,'Stat model'!B22) -> 0 | D31: =IF(VALUE(D18)<'Set up'!$B$4,0,'Stat model'!C22) -> 58.68319959 | E31: =IF(VALUE(E18)<'Set up'!$B$4,0,'Stat model'!D22) -> 66.25670319 | F31: =IF(VALUE(F18)<'Set up'!$B$4,0,'Stat model'!E22) -> 47.58850095 | G31: =IF(VALUE(G18)<'Set up'!$B$4,0,'Stat model'!F22) -> 47.61622995 | H31: =IF(VALUE(H18)<'Set up'!$B$4,0,'Stat model'!G22) -> 65.7929109 | I31: =IF(VALUE(I18)<'Set up'!$B$4,0,'Stat model'!H22) -> 93.0538498 | J31: =IF(VALUE(J18)<'Set up'!$B$4,0,'Stat model'!I22) -> 51.05562224 | K31: =IF(VALUE(K18)<'Set up'!$B$4,0,'Stat model'!J22) -> 41.72772532 | L31: =IF(VALUE(L18)<'Set up'!$B$4,0,'Stat model'!K22) -> 34.36526571 | M31: =IF(VALUE(M18)<'Set up'!$B$4,0,'Stat model'!L22) -> 63.6118388 | N31: =IF(VALUE(N18)<'Set up'!$B$4,0,'Stat model'!M22) -> 0 | O31: =Q31+P21 -> 675.7666495 | Q31: =SUM(OFFSET(B31,0,'Set up'!$B$4-1):M31) -> 569.7518464 | S31: =O31/O20-1 -> -0.05534947212 | U31: =Q31/Q20-1 -> -0.01410942687
A32: ="Stat Frcst "&RIGHT('Set up'!B7,2) -> Stat Frcst 20 | B32: ='Stat model'!M22 -> 66.56470399 | C32: ='Stat model'!N22 -> 52.82712956 | D32: ='Stat model'!O22 -> 59.06512291 | E32: ='Stat model'!P22 -> 66.68791654 | F32: ='Stat model'!Q22 -> 47.89821749 | G32: ='Stat model'!R22 -> 47.92612696 | H32: ='Stat model'!S22 -> 66.22110579 | I32: ='Stat model'!T22 -> 93.65946495 | J32: ='Stat model'!U22 -> 51.38790358 | K32: ='Stat model'!V22 -> 41.99929863 | L32: ='Stat model'!W22 -> 34.5889225 | M32: ='Stat model'!X22 -> 64.02583879 | O32: =SUM(B32:M32) -> 692.8517517 | P32: =SUM(B32:OFFSET(B32,0,'Set up'!$B$4-2)) -> 119.3918335 | Q32: =SUM(OFFSET(B32,0,'Set up'!$B$4-1):M32) -> 573.4599181 | S32: =O32/O25-1 -> -0.05871520643 | T32: =P32/P21-1 -> 0.1261807795 | U32: =Q32/Q25-1 -> -0.08982629518
A34: Exclude:

Sheet Set up (hidden)
A3: Current Year | B3: 2019
A4: Current month | B4: 3
A7: Year+1 | B7: =B3+1 -> 2020
A8: Year-1 | B8: =B3-1 -> 2018
A9: Year-2 | B9: =B8-1 -> 2017

Sheet Stat model (hidden)
A1: Y-2 | B1: Y-2 | C1: Y-2 | D1: Y-2 | E1: Y-2 | F1: Y-2 | G1: Y-2 | H1: Y-2 | I1: Y-2 | J1: Y-2 | K1: Y-2 | L1: Y-2 | M1: Y-1 | N1: Y-1 | O1: Y-1 | P1: Y-1 | Q1: Y-1 | R1: Y-1 | S1: Y-1 | T1: Y-1 | U1: Y-1 | V1: Y-1 | W1: Y-1 | X1: Y-1 | Y1: CY | Z1: CY | AA1: CY | AB1: CY | AC1: CY | AD1: CY | AE1: CY | AF1: CY | AG1: CY | AH1: CY | AI1: CY | AJ1: CY | AK1: Y+1 | AL1: Y+1 | AM1: Y+1 | AN1: Y+1 | AO1: Y+1 | AP1: Y+1 | AQ1: Y+1 | AR1: Y+1 | AS1: Y+1 | AT1: Y+1 | AU1: Y+1 | AV1: Y+1
A2: 1 | B2: =A2+1 -> 2 | C2: =B2+1 -> 3 | D2: 4 | E2: 5 | F2: 6 | G2: 7 | H2: 8 | I2: 9 | J2: 10 | K2: 11 | L2: 12 | M2: 13 | N2: 14 | O2: 15 | P2: 16 | Q2: 17 | R2: 18 | S2: 19 | T2: 20 | U2: 21 | V2: 22 | W2: 23 | X2: 24 | Y2: 25 | Z2: 26 | AA2: 27 | AB2: 28 | AC2: 29 | AD2: 30 | AE2: 31 | AF2: 32 | AG2: 33 | AH2: 34 | AI2: 35 | AJ2: 36 | AK2: 37 | AL2: 38 | AM2: 39 | AN2: 40 | AO2: 41 | AP2: 42 | AQ2: 43 | AR2: 44 | AS2: 45 | AT2: 46 | AU2: 47 | AV2: 48
A3: =CHART!B19 -> 44.74328262 | B3: =CHART!C19 -> 55.76244991 | C3: =CHART!D19 -> 44.77217324 | D3: =CHART!E19 -> 98.41662801 | E3: =CHART!F19 -> 47.4412763 | F3: =CHART!G19 -> 39.21584076 | G3: =CHART!H19 -> 68.51568571 | H3: =CHART!I19 -> 114.1441905 | I3: =CHART!J19 -> 41.61801624 | J3: =CHART!K19 -> 43.63412592 | K3: =CHART!L19 -> 30.04555718 | L3: =CHART!M19 -> 63.72259443 | M3: =CHART!B20 -> 78.03284383 | N3: =CHART!C20 -> 59.4229233 | O3: =CHART!D20 -> 75.67676137 | P3: =CHART!E20 -> 37.57713792 | Q3: =CHART!F20 -> 50.23547409 | R3: =CHART!G20 -> 58.51782419 | S3: =CHART!H20 -> 66.52613336 | T3: =CHART!I20 -> 76.85148023 | U3: =CHART!J20 -> 63.17509911 | V3: =CHART!K20 -> 42.01321596 | W3: =CHART!L20 -> 40.49012716 | X3: =CHART!M20 -> 66.84251219 | Y3: =CHART!B21 -> 57.70966011 | Z3: =CHART!C21 -> 48.30514295 | AA3: =CHART!D21 -> 0 | AB3: =CHART!E21 -> 0 | AC3: =CHART!F21 -> 0 | AD3: =CHART!G21 -> 0 | AE3: =CHART!H21 -> 0 | AF3: =CHART!I21 -> 0 | AG3: =CHART!J21 -> 0 | AH3: =CHART!K21 -> 0 | AI3: =CHART!L21 -> 0 | AJ3: =CHART!M21 -> 0
A6: Basic value
A7: =AVERAGE(OFFSET(M3:X3,0,'Set up'!$B$4-1)) -> 56.99338072
A9: Seasonal Indexes
A10: 1 | B10: 2 | C10: 3 | D10: 4 | E10: 5 | F10: 6 | G10: 7 | H10: 8 | I10: 9 | J10: 10 | K10: 11 | L10: 12
A11: =AVERAGE(IF('Set up'!$B$4>A10,Y3,A3),M3)/AVERAGE(OFFSET($A$3:$X$3,0,'Set up'!$B$4-1)) -> 1.152882194 | B11: =AVERAGE(IF('Set up'!$B$4>B10,Z3,B3),N3)/AVERAGE(OFFSET($A$3:$X$3,0,'Set up'!$B$4-1)) -> 0.9149512188 | C11: =AVERAGE(IF('Set up'!$B$4>C10,AA3,C3),O3)/AVERAGE(OFFSET($A$3:$X$3,0,'Set up'!$B$4-1)) -> 1.022991532 | D11: =AVERAGE(IF('Set up'!$B$4>D10,AB3,D3),P3)/AVERAGE(OFFSET($A$3:$X$3,0,'Set up'!$B$4-1)) -> 1.155016202 | E11: =AVERAGE(IF('Set up'!$B$4>E10,AC3,E3),Q3)/AVERAGE(OFFSET($A$3:$X$3,0,'Set up'!$B$4-1)) -> 0.8295838302 | F11: =AVERAGE(IF('Set up'!$B$4>F10,AD3,F3),R3)/AVERAGE(OFFSET($A$3:$X$3,0,'Set up'!$B$4-1)) -> 0.8300672144 | G11: =AVERAGE(IF('Set up'!$B$4>G10,AE3,G3),S3)/AVERAGE(OFFSET($A$3:$X$3,0,'Set up'!$B$4-1)) -> 1.146931169 | H11: =AVERAGE(IF('Set up'!$B$4>H10,AF3,H3),T3)/AVERAGE(OFFSET($A$3:$X$3,0,'Set up'!$B$4-1)) -> 1.622155933 | I11: =AVERAGE(IF('Set up'!$B$4>I10,AG3,I3),U3)/AVERAGE(OFFSET($A$3:$X$3,0,'Set up'!$B$4-1)) -> 0.8900242244 | J11: =AVERAGE(IF('Set up'!$B$4>J10,AH3,J3),V3)/AVERAGE(OFFSET($A$3:$X$3,0,'Set up'!$B$4-1)) -> 0.7274161931 | K11: =AVERAGE(IF('Set up'!$B$4>K10,AI3,K3),W3)/AVERAGE(OFFSET($A$3:$X$3,0,'Set up'!$B$4-1)) -> 0.5990705357 | L11: =AVERAGE(IF('Set up'!$B$4>L10,AJ3,L3),X3)/AVERAGE(OFFSET($A$3:$X$3,0,'Set up'!$B$4-1)) -> 1.108909754
A13: Trend index
A14: 12M | B14: =SUM(OFFSET(M3:X3,0,'Set up'!$B$4-1))/SUM(OFFSET(A3:L3,0,'Set up'!$B$4-1)) -> 0.9381859967
A15: 9M | B15: =SUM(OFFSET(P3:X3,0,'Set up'!$B$4-1))/SUM(OFFSET(D3:L3,0,'Set up'!$B$4-1)) -> 0.9667121325
A16: 6M | B16: =SUM(OFFSET(S3:X3,0,'Set up'!$B$4-1))/SUM(OFFSET(G3:L3,0,'Set up'!$B$4-1)) -> 1.006508222
A17: 3M | B17: =SUM(OFFSET(V3:X3,0,'Set up'!$B$4-1))/SUM(OFFSET(J3:L3,0,'Set up'!$B$4-1)) -> 0.8592241924
A18: Selected Trend | C18: =VLOOKUP(CHART!$K$15,A14:B17,2,0) -> 1.006508222
A20: STAT FORECAST
A21: 1 | B21: 2 | C21: 3 | D21: 4 | E21: 5 | F21: 6 | G21: 7 | H21: 8 | I21: 9 | J21: 10 | K21: 11 | L21: 12 | M21: =L21+1 -> 13 | N21: =M21+1 -> 14 | O21: 15 | P21: 16 | Q21: 17 | R21: 18 | S21: 19 | T21: 20 | U21: 21 | V21: 22 | W21: 23 | X21: 24
A22: =$A$7*A11*$C$18 -> 66.13428734 | B22: 52.48554198 | C22: 58.68319959 | D22: 66.25670319 | E22: 47.58850095 | F22: 47.61622995 | G22: 65.7929109 | H22: 93.0538498 | I22: 51.05562224 | J22: 41.72772532 | K22: 34.36526571 | L22: 63.6118388 | M22: =$A$7*A11*$C$18*$C$18 -> 66.56470399 | N22: 52.82712956 | O22: 59.06512291 | P22: 66.68791654 | Q22: 47.89821749 | R22: 47.92612696 | S22: 66.22110579 | T22: 93.65946495 | U22: 51.38790358 | V22: 41.99929863 | W22: 34.5889225 | X22: 64.02583879

Sheet Product (hidden)
B1: =CHART!E15 -> Fruits | C1: =COUNTIFS(B3:B47,"<>"&"") -> 3 | E1: =B2 -> Category | F1: =N2 -> Segment | G1: =IF(E1=$B$1,COUNTIFS(E:E,$B$1)-COUNTIFS(E2:E68,$B$1),0) -> 0 | I1: =N2 -> Segment | J1: =S2 -> Product group | N1: =CHART!F15 -> Citrus | O1: =COUNTIFS(N3:N47,"<>"&0) -> 5 | S1: =CHART!G15 -> oranges | T1: =COUNTIFS(S3:S47,"<>"&0) -> 5
B2: =CHART!E14 -> Category | E2: Vegetables | F2: Leafy Green | G2: =IF(E2=$B$1,COUNTIFS(E:E,$B$1)-COUNTIFS(E3:E68,$B$1),0) -> 0 | I2: Leafy Green | J2: lettuce | K2: =IF(I2=$N$1,COUNTIFS(I:I,$N$1)-COUNTIFS(I3:I68,$N$1),0) -> 0 | N2: =CHART!F14 -> Segment | S2: =CHART!G14 -> Product group
B3: TOTAL | E3: Vegetables | F3: Cruciferous | G3: 0 | I3: Leafy Green | J3: spinach | K3: 0 | N3: TOTAL | S3: TOTAL
A4: 1 | B4: Vegetables | E4: Vegetables | F4: Marrow | G4: 0 | I4: Leafy Green | J4: silverbeet | K4: 0 | M4: 1 | N4: =IFERROR(INDEX(F:F,MATCH(M4,G:G,0)),0) -> Apples and pears | R4: 1 | S4: =IFERROR(INDEX(J:J,MATCH(R4,K:K,0)),0) -> oranges
A5: =1+A4 -> 2 | B5: Fruits | E5: Vegetables | F5: Root | G5: 0 | I5: Cruciferous | J5: cabbage | K5: 0 | M5: =1+M4 -> 2 | N5: Citrus | R5: =1+R4 -> 2 | S5: grapefruits
A6: =1+A5 -> 3 | E6: Vegetables | F6: Edible plant stem | G6: 0 | I6: Cruciferous | J6: cauliflower | K6: 0 | M6: =1+M5 -> 3 | N6: Berries | R6: 3 | S6: mandarins
A7: 4 | E7: Vegetables | F7: Allium | G7: 0 | I7: Cruciferous | J7: russels | K7: 0 | M7: 4 | N7: Tropical and exotic | R7: 4 | S7: limes
A8: 5 | E8: Fruits | F8: Apples and pears | G8: 1 | I8: Marrow | J8: pumpkin | K8: 0 | M8: 5 | N8: 0 | R8: 5 | S8: 0
A9: 6 | E9: Fruits | F9: Citrus | G9: 2 | I9: Marrow | J9: cucumber | K9: 0 | M9: 6 | N9: 0 | R9: 6 | S9: 0
A10: 7 | E10: Fruits | F10: Berries | G10: 3 | I10: Marrow | J10: zucchini | K10: 0 | M10: 7 | N10: 0 | R10: 7 | S10: 0
A11: 8 | E11: Fruits | F11: Tropical and exotic | G11: 4 | I11: Root | J11: potato | K11: 0 | M11: 8 | N11: 0 | R11: 8 | S11: 0
A12: 9 | G12: 0 | I12: Root | J12: sweet potato | K12: 0 | M12: 9 | N12: 0 | R12: 9 | S12: 0
A13: 10 | G13: 0 | I13: Edible plant stem | J13: celery | K13: 0 | M13: 10 | N13: 0 | R13: 10 | S13: 0
A14: 11 | G14: 0 | I14: Edible plant stem | J14: asparagus | K14: 0 | M14: 11 | N14: 0 | R14: 11 | S14: 0
A15: 12 | G15: 0 | I15: Allium | J15: onion | K15: 0 | M15: 12 | N15: 0 | R15: 12 | S15: 0
A16: 13 | G16: 0 | I16: Allium | J16: garlic | K16: 0 | M16: 13 | N16: 0 | R16: 13 | S16: 0
A17: 14 | G17: 0 | I17: Allium | J17: shallot | K17: 0 | M17: 14 | N17: 0 | R17: 14 | S17: 0
A18: 15 | G18: 0 | I18: Apples and pears | J18: apples | K18: 0 | M18: 15 | N18: 0 | R18: 15 | S18: 0
A19: 16 | G19: 0 | I19: Apples and pears | J19: pears | K19: 0 | M19: 16 | N19: 0 | R19: 16 | S19: 0
A20: 17 | G20: 0 | I20: Citrus | J20: oranges | K20: 1 | M20: 17 | N20: 0 | R20: 17 | S20: 0
A21: 18 | G21: 0 | I21: Citrus | J21: grapefruits | K21: 2 | M21: 18 | N21: 0 | R21: 18 | S21: 0
A22: 19 | G22: 0 | I22: Citrus | J22: mandarins | K22: 3 | M22: 19 | N22: 0 | R22: 19 | S22: 0
A23: 20 | G23: 0 | I23: Citrus | J23: limes | K23: 4 | M23: 20 | N23: 0 | R23: 20 | S23: 0
A24: 21 | G24: 0 | I24: Berries | J24: strawberries | K24: 0 | M24: 21 | N24: 0 | R24: 21 | S24: 0
A25: 22 | G25: 0 | I25: Berries | J25: raspberries | K25: 0 | M25: 22 | N25: 0 | R25: 22 | S25: 0
A26: 23 | G26: 0 | I26: Berries | J26: blueberries | K26: 0 | M26: 23 | N26: 0 | R26: 23 | S26: 0
A27: 24 | G27: 0 | I27: Tropical and exotic | J27: bananas | K27: 0 | M27: 24 | N27: 0 | R27: 24 | S27: 0
A28: 25 | G28: 0 | I28: Tropical and exotic | J28: mangoes | K28: 0 | M28: 25 | N28: 0 | R28: 25 | S28: 0
A29: 26 | G29: 0 | K29: 0 | M29: 26 | N29: 0 | R29: 26 | S29: 0
A30: 27 | G30: 0 | K30: 0 | M30: 27 | N30: 0 | R30: 27 | S30: 0
A31: 28 | G31: 0 | K31: 0 | M31: 28 | N31: 0 | R31: 28 | S31: 0
A32: 29 | G32: 0 | K32: 0 | M32: 29 | N32: 0 | R32: 29 | S32: 0
A33: 30 | G33: 0 | K33: 0 | M33: 30 | N33: 0 | R33: 30 | S33: 0
A34: 31 | G34: =IF(E34=$B$1,COUNTIFS(E:E,$B$1)-COUNTIFS(E35:E100,$B$1),0) -> 0 | K34: =IF(I34=$N$1,COUNTIFS(I:I,$N$1)-COUNTIFS(I35:I100,$N$1),0) -> 0 | M34: 31 | N34: 0 | R34: 31 | S34: 0
A35: 32 | G35: 0 | K35: 0 | M35: 32 | N35: 0 | R35: 32 | S35: 0
A36: 33 | G36: 0 | K36: 0 | M36: 33 | N36: =IFERROR(INDEX(F:F,MATCH(M36,G:G,0)),0) -> 0 | R36: 33 | S36: =IFERROR(INDEX(J:J,MATCH(R36,K:K,0)),0) -> 0
A37: 34 | G37: 0 | K37: 0 | M37: 34 | N37: 0 | R37: 34 | S37: 0
A38: 35 | G38: 0 | K38: 0 | M38: 35 | N38: 0 | R38: 35 | S38: 0 | Y38: Gum
A39: 36 | G39: 0 | K39: 0 | M39: 36 | N39: 0 | R39: 36 | S39: 0
A40: 37 | G40: 0 | K40: 0 | M40: 37 | N40: 0 | R40: 37 | S40: 0
A41: 38 | G41: 0 | K41: 0 | M41: 38 | N41: 0 | R41: 38 | S41: 0
A42: 39 | G42: 0 | K42: 0 | M42: 39 | N42: 0 | R42: 39 | S42: 0
A43: 40 | G43: 0 | K43: 0 | M43: 40 | N43: 0 | R43: 40 | S43: 0
A44: 41 | G44: 0 | K44: 0 | M44: 41 | N44: 0 | R44: 41 | S44: 0
A45: 42 | G45: 0 | K45: 0 | M45: 42 | N45: 0 | R45: 42 | S45: 0
A46: 43 | G46: 0 | K46: 0 | M46: 43 | N46: 0 | R46: 43 | S46: 0
A47: 44 | G47: 0 | K47: 0 | M47: 44 | N47: 0 | R47: 44 | S47: 0
A48: 45 | G48: 0 | K48: 0 | M48: 45 | N48: 0 | R48: 45 | S48: 0
A49: 46 | G49: 0 | K49: 0 | M49: 46 | N49: 0 | R49: 46 | S49: 0
A50: 47 | G50: 0 | K50: 0 | M50: 47 | N50: 0 | R50: 47 | S50: 0
A51: 48 | G51: 0 | K51: 0 | M51: 48 | N51: 0 | R51: 48 | S51: 0
A52: 49 | G52: 0 | K52: 0 | M52: 49 | N52: 0 | R52: 49 | S52: 0
A53: 50 | G53: 0 | K53: 0 | M53: 50 | N53: 0 | R53: 50 | S53: 0
A54: 51 | G54: 0 | K54: 0 | M54: 51 | N54: 0 | R54: 51 | S54: 0
A55: 52 | G55: 0 | K55: 0 | M55: 52 | N55: 0 | R55: 52 | S55: 0
A56: 53 | G56: 0 | K56: 0 | M56: 53 | N56: 0 | R56: 53 | S56: 0
A57: 54 | G57: 0 | K57: 0 | M57: 54 | N57: 0 | R57: 54 | S57: 0
A58: 55 | G58: 0 | K58: 0 | M58: 55 | N58: 0 | R58: 55 | S58: 0
A59: 56 | G59: 0 | K59: 0 | M59: 56 | N59: 0 | R59: 56 | S59: 0
A60: 57 | G60: 0 | K60: 0 | M60: 57 | N60: 0 | R60: 57 | S60: 0
A61: 58 | G61: 0 | K61: 0 | M61: 58 | N61: 0 | R61: 58 | S61: 0
A62: 59 | G62: 0 | K62: 0 | M62: 59 | N62: 0 | R62: 59 | S62: 0
A63: 60 | G63: 0 | K63: 0 | M63: 60 | N63: 0 | R63: 60 | S63: 0
A64: 61 | G64: 0 | K64: 0 | M64: 61 | N64: 0 | R64: 61 | S64: 0
A65: 62 | G65: 0 | K65: 0 | M65: 62 | N65: 0 | R65: 62 | S65: 0
A66: 63 | G66: =IF(E66=$B$1,COUNTIFS(E:E,$B$1)-COUNTIFS(E67:E132,$B$1),0) -> 0 | K66: =IF(I66=$N$1,COUNTIFS(I:I,$N$1)-COUNTIFS(I67:I132,$N$1),0) -> 0 | M66: 63 | N66: 0 | R66: 63 | S66: 0
A67: 64 | G67: 0 | K67: 0 | M67: 64 | N67: 0 | R67: 64 | S67: 0
A68: 65 | G68: 0 | K68: 0 | M68: 65 | N68: =IFERROR(INDEX(F:F,MATCH(M68,G:G,0)),0) -> 0 | R68: 65 | S68: =IFERROR(INDEX(J:J,MATCH(R68,K:K,0)),0) -> 0
A69: 66 | G69: 0 | K69: 0 | M69: 66 | N69: 0 | R69: =1+R68 -> 66 | S69: 0
A70: =1+A69 -> 67 | G70: 0 | K70: 0 | M70: =1+M69 -> 67 | N70: 0 | R70: 67 | S70: 0
A71: 68 | G71: 0 | K71: 0 | M71: 68 | N71: 0 | R71: 68 | S71: 0
A72: 69 | G72: 0 | K72: 0 | M72: 69 | N72: 0 | R72: 69 | S72: 0
A73: 70 | G73: 0 | K73: 0 | M73: 70 | N73: 0 | R73: 70 | S73: 0
A74: 71 | G74: 0 | K74: 0 | M74: 71 | N74: 0 | R74: 71 | S74: 0
A75: 72 | G75: 0 | K75: 0 | M75: 72 | N75: 0 | R75: 72 | S75: 0
A76: 73 | G76: 0 | K76: 0 | M76: 73 | N76: 0 | R76: 73 | S76: 0
A77: 74 | G77: 0 | K77: 0 | M77: 74 | N77: 0 | R77: 74 | S77: 0
A78: 75 | G78: 0 | K78: 0 | M78: 75 | N78: 0 | R78: 75 | S78: 0
A79: 76 | G79: 0 | K79: 0 | M79: 76 | N79: 0 | R79: 76 | S79: 0
A80: 77 | G80: 0 | K80: 0 | M80: 77 | N80: 0 | R80: 77 | S80: 0
A81: 78 | G81: 0 | K81: 0 | M81: 78 | N81: 0 | R81: 78 | S81: 0
A82: 79 | G82: 0 | K82: 0 | M82: 79 | N82: 0 | R82: 79 | S82: 0
A83: 80 | G83: 0 | K83: 0 | M83: 80 | N83: 0 | R83: 80 | S83: 0
A84: 81 | G84: 0 | K84: 0 | M84: 81 | N84: 0 | R84: 81 | S84: 0
A85: 82 | G85: 0 | K85: 0 | M85: 82 | N85: 0 | R85: 82 | S85: 0
A86: 83 | G86: 0 | K86: 0 | M86: 83 | N86: 0 | R86: 83 | S86: 0
A87: 84 | G87: 0 | K87: 0 | M87: 84 | N87: 0 | R87: 84 | S87: 0
A88: 85 | G88: 0 | K88: 0 | M88: 85 | N88: 0 | R88: 85 | S88: 0
A89: 86 | G89: 0 | K89: 0 | M89: 86 | N89: 0 | R89: 86 | S89: 0
A90: 87 | G90: 0 | K90: 0 | M90: 87 | N90: 0 | R90: 87 | S90: 0
A91: 88 | G91: 0 | K91: 0 | M91: 88 | N91: 0 | R91: 88 | S91: 0
A92: 89 | G92: 0 | K92: 0 | M92: 89 | N92: 0 | R92: 89 | S92: 0
A93: 90 | G93: 0 | K93: 0 | M93: 90 | N93: 0 | R93: 90 | S93: 0
A94: 91 | G94: 0 | K94: 0 | M94: 91 | N94: 0 | R94: 91 | S94: 0
A95: 92 | G95: 0 | K95: 0 | M95: 92 | N95: 0 | R95: 92 | S95: 0
A96: 93 | G96: 0 | K96: 0 | M96: 93 | N96: 0 | R96: 93 | S96: 0
A97: 94 | G97: 0 | K97: 0 | M97: 94 | N97: 0 | R97: 94 | S97: 0
A98: 95 | G98: =IF(E98=$B$1,COUNTIFS(E:E,$B$1)-COUNTIFS(E99:E164,$B$1),0) -> 0 | K98: =IF(I98=$N$1,COUNTIFS(I:I,$N$1)-COUNTIFS(I99:I164,$N$1),0) -> 0 | M98: 95 | N98: 0 | R98: 95 | S98: 0
A99: 96 | G99: 0 | K99: 0 | M99: 96 | N99: 0 | R99: 96 | S99: 0
A100: 97 | G100: 0 | K100: 0 | M100: 97 | N100: =IFERROR(INDEX(F:F,MATCH(M100,G:G,0)),0) -> 0 | R100: 97 | S100: =IFERROR(INDEX(J:J,MATCH(R100,K:K,0)),0) -> 0
A101: 98 | G101: 0 | K101: 0 | M101: 98 | N101: 0 | R101: 98 | S101: 0
A102: 99 | G102: 0 | K102: 0 | M102: 99 | N102: 0 | R102: 99 | S102: 0
A103: 100 | G103: 0 | K103: 0 | M103: 100 | N103: 0 | R103: 100 | S103: 0
A104: 101 | G104: 0 | K104: 0 | M104: 101 | N104: 0 | R104: 101 | S104: 0

Sheet Customer (hidden)
B1: =CHART!A15 -> TOTAL | C1: =COUNTIFS(B3:B47,"<>"&"") -> 2 | E1: =B2 -> Market | F1: =N2 -> Channel | G1: =IF(E1=$B$1,COUNTIFS(E:E,$B$1)-COUNTIFS(E2:E68,$B$1),0) -> 0 | I1: =N2 -> Channel | J1: =S2 -> Customer | N1: =CHART!B15 -> TOTAL | O1: =COUNTIFS(N3:N47,"<>"&0) -> 4 | S1: =CHART!G15 -> oranges | T1: =COUNTIFS(S3:S47,"<>"&0) -> 1
B2: =CHART!A14 -> Market | E2: TOTAL | F2: Hypermarkets | G2: =IF(E2=$B$1,COUNTIFS(E:E,$B$1)-COUNTIFS(E3:E68,$B$1),0) -> 1 | I2: Hypermarkets | J2: Customer A | K2: =IF(I2=$N$1,COUNTIFS(I:I,$N$1)-COUNTIFS(I3:I68,$N$1),0) -> 0 | N2: =CHART!B14 -> Channel | S2: =CHART!C14 -> Customer
B3: TOTAL | E3: TOTAL | F3: Discounters | G3: 2 | I3: Hypermarkets | J3: Customer B | K3: 0 | N3: TOTAL | S3: TOTAL
A4: 1 | B4: TOTAL | E4: TOTAL | F4: Traditional trade | G4: 3 | I4: Hypermarkets | J4: Customer C | K4: 0 | M4: 1 | N4: =IFERROR(INDEX(F:F,MATCH(M4,G:G,0)),0) -> Hypermarkets | R4: 1 | S4: =IFERROR(INDEX(J:J,MATCH(R4,K:K,0)),0) -> 0
A5: =1+A4 -> 2 | G5: 0 | I5: Hypermarkets | J5: Customer D | K5: 0 | M5: =1+M4 -> 2 | N5: Discounters | R5: =1+R4 -> 2 | S5: 0
A6: =1+A5 -> 3 | G6: 0 | I6: Discounters | J6: Customer E | K6: 0 | M6: =1+M5 -> 3 | N6: Traditional trade | R6: 3 | S6: 0
A7: 4 | G7: 0 | I7: Discounters | J7: Customer G | K7: 0 | M7: 4 | N7: 0 | R7: 4 | S7: 0
A8: 5 | G8: 0 | I8: Discounters | J8: Customer H | K8: 0 | M8: 5 | N8: 0 | R8: 5 | S8: 0
A9: 6 | G9: 0 | I9: Discounters | J9: Customer I | K9: 0 | M9: 6 | N9: 0 | R9: 6 | S9: 0
A10: 7 | G10: 0 | I10: Traditional channel | J10: Customer J | K10: 0 | M10: 7 | N10: 0 | R10: 7 | S10: 0
A11: 8 | G11: 0 | I11: Traditional channel | J11: Customer K | K11: 0 | M11: 8 | N11: 0 | R11: 8 | S11: 0
A12: 9 | G12: 0 | I12: Traditional channel | J12: Customer L | K12: 0 | M12: 9 | N12: 0 | R12: 9 | S12: 0
A13: 10 | G13: 0 | I13: Traditional channel | J13: Customer M | K13: 0 | M13: 10 | N13: 0 | R13: 10 | S13: 0
A14: 11 | G14: 0 | K14: 0 | M14: 11 | N14: 0 | R14: 11 | S14: 0
A15: 12 | G15: 0 | K15: 0 | M15: 12 | N15: 0 | R15: 12 | S15: 0
A16: 13 | G16: 0 | K16: 0 | M16: 13 | N16: 0 | R16: 13 | S16: 0
A17: 14 | G17: 0 | K17: 0 | M17: 14 | N17: 0 | R17: 14 | S17: 0
A18: 15 | G18: 0 | K18: 0 | M18: 15 | N18: 0 | R18: 15 | S18: 0
A19: 16 | G19: 0 | K19: 0 | M19: 16 | N19: 0 | R19: 16 | S19: 0
A20: 17 | G20: 0 | K20: 0 | M20: 17 | N20: 0 | R20: 17 | S20: 0
A21: 18 | G21: 0 | K21: 0 | M21: 18 | N21: 0 | R21: 18 | S21: 0
A22: 19 | G22: 0 | K22: 0 | M22: 19 | N22: 0 | R22: 19 | S22: 0
A23: 20 | G23: 0 | K23: 0 | M23: 20 | N23: 0 | R23: 20 | S23: 0
A24: 21 | G24: 0 | K24: 0 | M24: 21 | N24: 0 | R24: 21 | S24: 0
A25: 22 | G25: 0 | K25: 0 | M25: 22 | N25: 0 | R25: 22 | S25: 0
A26: 23 | G26: 0 | K26: 0 | M26: 23 | N26: 0 | R26: 23 | S26: 0
A27: 24 | G27: 0 | K27: 0 | M27: 24 | N27: 0 | R27: 24 | S27: 0
A28: 25 | G28: 0 | K28: 0 | M28: 25 | N28: 0 | R28: 25 | S28: 0
A29: 26 | G29: 0 | K29: 0 | M29: 26 | N29: 0 | R29: 26 | S29: 0
A30: 27 | G30: 0 | K30: 0 | M30: 27 | N30: 0 | R30: 27 | S30: 0
A31: 28 | G31: 0 | K31: 0 | M31: 28 | N31: 0 | R31: 28 | S31: 0
A32: 29 | G32: 0 | K32: 0 | M32: 29 | N32: 0 | R32: 29 | S32: 0
A33: 30 | G33: 0 | K33: 0 | M33: 30 | N33: 0 | R33: 30 | S33: 0
A34: 31 | G34: =IF(E34=$B$1,COUNTIFS(E:E,$B$1)-COUNTIFS(E35:E100,$B$1),0) -> 0 | K34: =IF(I34=$N$1,COUNTIFS(I:I,$N$1)-COUNTIFS(I35:I100,$N$1),0) -> 0 | M34: 31 | N34: 0 | R34: 31 | S34: 0
A35: 32 | G35: 0 | K35: 0 | M35: 32 | N35: 0 | R35: 32 | S35: 0
A36: 33 | G36: 0 | K36: 0 | M36: 33 | N36: =IFERROR(INDEX(F:F,MATCH(M36,G:G,0)),0) -> 0 | R36: 33 | S36: =IFERROR(INDEX(J:J,MATCH(R36,K:K,0)),0) -> 0
A37: 34 | G37: 0 | K37: 0 | M37: 34 | N37: 0 | R37: 34 | S37: 0
A38: 35 | G38: 0 | K38: 0 | M38: 35 | N38: 0 | R38: 35 | S38: 0 | Y38: Gum
A39: 36 | G39: 0 | K39: 0 | M39: 36 | N39: 0 | R39: 36 | S39: 0
A40: 37 | G40: 0 | K40: 0 | M40: 37 | N40: 0 | R40: 37 | S40: 0
A41: 38 | G41: 0 | K41: 0 | M41: 38 | N41: 0 | R41: 38 | S41: 0
A42: 39 | G42: 0 | K42: 0 | M42: 39 | N42: 0 | R42: 39 | S42: 0
A43: 40 | G43: 0 | K43: 0 | M43: 40 | N43: 0 | R43: 40 | S43: 0
A44: 41 | G44: 0 | K44: 0 | M44: 41 | N44: 0 | R44: 41 | S44: 0
A45: 42 | G45: 0 | K45: 0 | M45: 42 | N45: 0 | R45: 42 | S45: 0
A46: 43 | G46: 0 | K46: 0 | M46: 43 | N46: 0 | R46: 43 | S46: 0
A47: 44 | G47: 0 | K47: 0 | M47: 44 | N47: 0 | R47: 44 | S47: 0
A48: 45 | G48: 0 | K48: 0 | M48: 45 | N48: 0 | R48: 45 | S48: 0
A49: 46 | G49: 0 | K49: 0 | M49: 46 | N49: 0 | R49: 46 | S49: 0
A50: 47 | G50: 0 | K50: 0 | M50: 47 | N50: 0 | R50: 47 | S50: 0
A51: 48 | G51: 0 | K51: 0 | M51: 48 | N51: 0 | R51: 48 | S51: 0
A52: 49 | G52: 0 | K52: 0 | M52: 49 | N52: 0 | R52: 49 | S52: 0
A53: 50 | G53: 0 | K53: 0 | M53: 50 | N53: 0 | R53: 50 | S53: 0
A54: 51 | G54: 0 | K54: 0 | M54: 51 | N54: 0 | R54: 51 | S54: 0
A55: 52 | G55: 0 | K55: 0 | M55: 52 | N55: 0 | R55: 52 | S55: 0
A56: 53 | G56: 0 | K56: 0 | M56: 53 | N56: 0 | R56: 53 | S56: 0
A57: 54 | G57: 0 | K57: 0 | M57: 54 | N57: 0 | R57: 54 | S57: 0
A58: 55 | G58: 0 | K58: 0 | M58: 55 | N58: 0 | R58: 55 | S58: 0
A59: 56 | G59: 0 | K59: 0 | M59: 56 | N59: 0 | R59: 56 | S59: 0
A60: 57 | G60: 0 | K60: 0 | M60: 57 | N60: 0 | R60: 57 | S60: 0
A61: 58 | G61: 0 | K61: 0 | M61: 58 | N61: 0 | R61: 58 | S61: 0
A62: 59 | G62: 0 | K62: 0 | M62: 59 | N62: 0 | R62: 59 | S62: 0
A63: 60 | G63: 0 | K63: 0 | M63: 60 | N63: 0 | R63: 60 | S63: 0
A64: 61 | G64: 0 | K64: 0 | M64: 61 | N64: 0 | R64: 61 | S64: 0
A65: 62 | G65: 0 | K65: 0 | M65: 62 | N65: 0 | R65: 62 | S65: 0
A66: 63 | G66: =IF(E66=$B$1,COUNTIFS(E:E,$B$1)-COUNTIFS(E67:E132,$B$1),0) -> 0 | K66: =IF(I66=$N$1,COUNTIFS(I:I,$N$1)-COUNTIFS(I67:I132,$N$1),0) -> 0 | M66: 63 | N66: 0 | R66: 63 | S66: 0
A67: 64 | G67: 0 | K67: 0 | M67: 64 | N67: 0 | R67: 64 | S67: 0
A68: 65 | G68: 0 | K68: 0 | M68: 65 | N68: =IFERROR(INDEX(F:F,MATCH(M68,G:G,0)),0) -> 0 | R68: 65 | S68: =IFERROR(INDEX(J:J,MATCH(R68,K:K,0)),0) -> 0
A69: 66 | G69: 0 | K69: 0 | M69: 66 | N69: 0 | R69: =1+R68 -> 66 | S69: 0
A70: =1+A69 -> 67 | G70: 0 | K70: 0 | M70: =1+M69 -> 67 | N70: 0 | R70: 67 | S70: 0
A71: 68 | G71: 0 | K71: 0 | M71: 68 | N71: 0 | R71: 68 | S71: 0
A72: 69 | G72: 0 | K72: 0 | M72: 69 | N72: 0 | R72: 69 | S72: 0
A73: 70 | G73: 0 | K73: 0 | M73: 70 | N73: 0 | R73: 70 | S73: 0
A74: 71 | G74: 0 | K74: 0 | M74: 71 | N74: 0 | R74: 71 | S74: 0
A75: 72 | G75: 0 | K75: 0 | M75: 72 | N75: 0 | R75: 72 | S75: 0
A76: 73 | G76: 0 | K76: 0 | M76: 73 | N76: 0 | R76: 73 | S76: 0
A77: 74 | G77: 0 | K77: 0 | M77: 74 | N77: 0 | R77: 74 | S77: 0
A78: 75 | G78: 0 | K78: 0 | M78: 75 | N78: 0 | R78: 75 | S78: 0
A79: 76 | G79: 0 | K79: 0 | M79: 76 | N79: 0 | R79: 76 | S79: 0
A80: 77 | G80: 0 | K80: 0 | M80: 77 | N80: 0 | R80: 77 | S80: 0
A81: 78 | G81: 0 | K81: 0 | M81: 78 | N81: 0 | R81: 78 | S81: 0
A82: 79 | G82: 0 | K82: 0 | M82: 79 | N82: 0 | R82: 79 | S82: 0
A83: 80 | G83: 0 | K83: 0 | M83: 80 | N83: 0 | R83: 80 | S83: 0
A84: 81 | G84: 0 | K84: 0 | M84: 81 | N84: 0 | R84: 81 | S84: 0
A85: 82 | G85: 0 | K85: 0 | M85: 82 | N85: 0 | R85: 82 | S85: 0
A86: 83 | G86: 0 | K86: 0 | M86: 83 | N86: 0 | R86: 83 | S86: 0
A87: 84 | G87: 0 | K87: 0 | M87: 84 | N87: 0 | R87: 84 | S87: 0
A88: 85 | G88: 0 | K88: 0 | M88: 85 | N88: 0 | R88: 85 | S88: 0
A89: 86 | G89: 0 | K89: 0 | M89: 86 | N89: 0 | R89: 86 | S89: 0
A90: 87 | G90: 0 | K90: 0 | M90: 87 | N90: 0 | R90: 87 | S90: 0
A91: 88 | G91: 0 | K91: 0 | M91: 88 | N91: 0 | R91: 88 | S91: 0
A92: 89 | G92: 0 | K92: 0 | M92: 89 | N92: 0 | R92: 89 | S92: 0
A93: 90 | G93: 0 | K93: 0 | M93: 90 | N93: 0 | R93: 90 | S93: 0
A94: 91 | G94: 0 | K94: 0 | M94: 91 | N94: 0 | R94: 91 | S94: 0
A95: 92 | G95: 0 | K95: 0 | M95: 92 | N95: 0 | R95: 92 | S95: 0
A96: 93 | G96: 0 | K96: 0 | M96: 93 | N96: 0 | R96: 93 | S96: 0
A97: 94 | G97: 0 | K97: 0 | M97: 94 | N97: 0 | R97: 94 | S97: 0
A98: 95 | G98: =IF(E98=$B$1,COUNTIFS(E:E,$B$1)-COUNTIFS(E99:E164,$B$1),0) -> 0 | K98: =IF(I98=$N$1,COUNTIFS(I:I,$N$1)-COUNTIFS(I99:I164,$N$1),0) -> 0 | M98: 95 | N98: 0 | R98: 95 | S98: 0
A99: 96 | G99: 0 | K99: 0 | M99: 96 | N99: 0 | R99: 96 | S99: 0
A100: 97 | G100: 0 | K100: 0 | M100: 97 | N100: =IFERROR(INDEX(F:F,MATCH(M100,G:G,0)),0) -> 0 | R100: 97 | S100: =IFERROR(INDEX(J:J,MATCH(R100,K:K,0)),0) -> 0
A101: 98 | G101: 0 | K101: 0 | M101: 98 | N101: 0 | R101: 98 | S101: 0
A102: 99 | G102: 0 | K102: 0 | M102: 99 | N102: 0 | R102: 99 | S102: 0
A103: 100 | G103: 0 | K103: 0 | M103: 100 | N103: 0 | R103: 100 | S103: 0
A104: 101 | G104: 0 | K104: 0 | M104: 101 | N104: 0 | R104: 101 | S104: 0

Sheet Forecast Update
A1: Category | B1: Segment | C1: Product group | D1: F2019_01 | E1: F2019_02 | F1: F2019_03 | G1: F2019_04 | H1: F2019_05 | I1: F2019_06 | J1: F2019_07 | K1: F2019_08 | L1: F2019_09 | M1: F2019_10 | N1: F2019_11 | O1: F2019_12 | P1: F2020_01 | Q1: F2020_02 | R1: F2020_03 | S1: F2020_04 | T1: F2020_05 | U1: F2020_06 | V1: F2020_07 | W1: F2020_08 | X1: F2020_09 | Y1: F2020_10 | Z1: F2020_11 | AA1: F2020_12
A2: Fruits | B2: Apples and pears | C2: pears | D2: 64.3418101 | E2: 90.41740316 | F2: 125.8949813 | G2: 133.9558583 | H2: 164.4643508 | I2: 268.5738543 | J2: 194.5504879 | K2: 164.3251338 | L2: 114.2641219 | M2: 132.0619555 | N2: 117.9668406 | O2: 103.1960879 | P2: 114.8823144 | Q2: 130.3877741 | R2: 142.4424754 | S2: 126.7399911 | T2: 109.8221256 | U2: 94.95578372 | V2: 167.3677865 | W2: 133.2289496 | X2: 2.833387999 | Y2: 1.904722042 | Z2: 1.699216266 | AA2: 1.475786162
A3: Fruits | B3: Apples and pears | C3: apples | D3: 1317.427265 | E3: 927.622303 | F3: 1647.428962 | G3: 1681.433346 | H3: 1249.193692 | I3: 1214.054164 | J3: 1752.689394 | K3: 1130.33598 | L3: 1638.853419 | M3: 1837.684423 | N3: 1792.021835 | O3: 1560.055181 | P3: 1116.501515 | Q3: 1376.222926 | R3: 1566.877044 | S3: 1180.464495 | T3: 1090.579872 | U3: 1154.176329 | V3: 950.5674247 | W3: 840.8149412 | X3: 90.24011131 | Y3: 88.04001737 | Z3: 86.87075588 | AA3: 78.78566489
A4: Fruits | B4: Berries | C4: strawberries | D4: 124.8160883 | E4: 204.6047119 | F4: 114.2388307 | G4: 130.7077983 | H4: 112.7035698 | I4: 162.4604031 | J4: 176.5563247 | K4: 164.9264206 | L4: 86.77675718 | M4: 144.8259143 | N4: 113.049741 | O4: 165.6986842 | P4: 67.59340423 | Q4: 140.6468849 | R4: 107.7984375 | S4: 116.6072695 | T4: 84.54102427 | U4: 141.1955734 | V4: 197.9602732 | W4: 135.0818987 | X4: 0 | Y4: 0 | Z4: 0 | AA4: 0
A5: Fruits | B5: Berries | C5: raspberries | D5: 855.0839107 | E5: 852.8013388 | F5: 1260.360689 | G5: 1227.124042 | H5: 1375.188031 | I5: 922.8654445 | J5: 1298.477819 | K5: 1229.396328 | L5: 1409.297159 | M5: 1848.388013 | N5: 1625.126985 | O5: 1527.27566 | P5: 1363.830956 | Q5: 1147.354178 | R5: 1585.046601 | S5: 1708.51615 | T5: 1356.778884 | U5: 1358.109427 | V5: 1205.041431 | W5: 1502.451251 | X5: 0 | Y5: 0 | Z5: 0 | AA5: 0
A6: Fruits | B6: Berries | C6: blueberries | D6: 157.4348522 | E6: 85.72180605 | F6: 84.37694142 | G6: 52.00964954 | H6: 153.5816665 | I6: 85.47201186 | J6: 91.28645376 | K6: 56.35441538 | L6: 129.6806863 | M6: 109.2627261 | N6: 157.3566517 | O6: 58.07934549 | P6: 176.1831685 | Q6: 133.3826306 | R6: 80.25665719 | S6: 165.1898241 | T6: 70.59594077 | U6: 121.8399246 | V6: 164.5777941 | W6: 98.21586844 | X6: 0 | Y6: 0 | Z6: 0 | AA6: 0
A7: Fruits | B7: Citrus | C7: oranges | D7: 59.69006257 | E7: 48.69483492 | F7: 25.67398327 | G7: 40.76649155 | H7: 41.83153521 | I7: 54.82195748 | J7: 74.55260621 | K7: 150 | L7: 92.01447591 | M7: 38.05576279 | N7: 51.72459819 | O7: 60.61405584 | P7: 53.23147473 | Q7: 49.26770138 | R7: 52.27752847 | S7: 44.10414797 | T7: 30.55979503 | U7: 65.17504145 | V7: 71.09444651 | W7: 88.93266422 | X7: 1.535318054 | Y7: 4.92217639 | Z7: 2.357805702 | AA7: 4.15567977
A8: Fruits | B8: Citrus | C8: grapefruits | D8: 220.1758944 | E8: 171.741214 | F8: 176.271723 | G8: 185.35459 | H8: 132.8861692 | I8: 148.5327006 | J8: 215.5288848 | K8: 214.6373861 | L8: 207.3137122 | M8: 147.620328 | N8: 213.7849645 | O8: 157.664386 | P8: 149.5206217 | Q8: 115.1471438 | R8: 176.701308 | S8: 131.5477482 | T8: 153.9915084 | U8: 135.6170903 | V8: 216.7669024 | W8: 158.1336403 | X8: 9.904591889 | Y8: 8.81629987 | Z8: 9.319371084 | AA8: 9.240305731
A9: Fruits | B9: Citrus | C9: mandarins | D9: 200.6737453 | E9: 181.2680312 | F9: 346.6504455 | G9: 250.3797452 | H9: 350.0271351 | I9: 340.7590094 | J9: 303.6086791 | K9: 700 | L9: 600 | M9: 315.8913792 | N9: 331.1073675 | O9: 178.3547869 | P9: 346.5677129 | Q9: 278.276723 | R9: 308.6953424 | S9: 229.2034558 | T9: 233.7050125 | U9: 237.5244407 | V9: 301.8543064 | W9: 527.3619808 | X9: 9.619177975 | Y9: 9.797392172 | Z9: 9.631546868 | AA9: 10.29568487
A10: Fruits | B10: Citrus | C10: limes | D10: 152.514265 | E10: 140.2694689 | F10: 146.9057619 | G10: 148.9798043 | H10: 121.7628584 | I10: 117.5812628 | J10: 192.1382212 | K10: 141.8994197 | L10: 87.79800525 | M10: 129.9624331 | N10: 141.525579 | O10: 78.03268714 | P10: 127.4860324 | Q10: 119.1389637 | R10: 155.6514777 | S10: 107.3162723 | T10: 127.2715378 | U10: 109.6533492 | V10: 176.7758605 | W10: 111.9327995 | X10: 0 | Y10: 0 | Z10: 0 | AA10: 0
A11: Fruits | B11: Tropical and exotic | C11: mangoes | D11: 77.93054885 | E11: 95.97355636 | F11: 120.2500178 | G11: 81.78743432 | H11: 112.1087222 | I11: 92.01634877 | J11: 163.1158361 | K11: 106.4792151 | L11: 109.2465904 | M11: 90.83375784 | N11: 112.89159 | O11: 117.0134183 | P11: 101.7229128 | Q11: 106.4832742 | R11: 131.0114727 | S11: 111.6792029 | T11: 118.0640834 | U11: 118.4979279 | V11: 153.8339033 | W11: 122.7902154 | X11: 0 | Y11: 0 | Z11: 0 | AA11: 0
A12: Fruits | B12: Tropical and exotic | C12: bananas | D12: 28.07981488 | E12: 39.73642713 | F12: 111.7046822 | G12: 28.38412975 | H12: 47.2496075 | I12: 53.37003425 | J12: 68.7678399 | K12: 42.0359537 | L12: 60.37277796 | M12: 226.7340458 | N12: 71.40272951 | O12: 69.40867808 | P12: 21.06562983 | Q12: 96.56840267 | R12: 70.09049931 | S12: 54.28410873 | T12: 55.13647733 | U12: 49.52232292 | V12: 43.59147018 | W12: 40.98508444 | X12: 0 | Y12: 0 | Z12: 0 | AA12: 0
A13: Vegetables | B13: Cruciferous | C13: cabbage | D13: 31.64880645 | E13: 28.67132034 | F13: 29.04094338 | G13: 28.05615887 | H13: 39.4217914 | I13: 25.53287687 | J13: 61.81232883 | K13: 47.82062329 | L13: 42.48881665 | M13: 42.38260494 | N13: 33.210419 | O13: 60.56191385 | P13: 30.39348084 | Q13: 12.00073102 | R13: 30.38324277 | S13: 41.03808593 | T13: 29.79887654 | U13: 25.01331806 | V13: 0 | W13: 0 | X13: 0 | Y13: 0 | Z13: 0 | AA13: 0
A14: Vegetables | B14: Cruciferous | C14: cauliflower | D14: 32.09772129 | E14: 36.09650338 | F14: 45.90730551 | G14: 34.00074516 | H14: 35.59157159 | I14: 34.81500454 | J14: 67.4528263 | K14: 38.83024103 | L14: 43.61043696 | M14: 42.38111834 | N14: 46.76389459 | O14: 66.20876492 | P14: 28.07490541 | Q14: 33.3934399 | R14: 40.42047649 | S14: 31.72903096 | T14: 40.89157666 | U14: 35.92897415 | V14: 23.50072919 | W14: 19.93156155 | X14: 18.41274609 | Y14: 19.08597571 | Z14: 22.35281035 | AA14: 23.25640137
A15: Vegetables | B15: Cruciferous | C15: russels | D15: 83.73254792 | E15: 69.28152541 | F15: 75.79658955 | G15: 173.5108595 | H15: 63.75379781 | I15: 40.63827922 | J15: 18.733744 | K15: 58.69002213 | L15: 34.66574042 | M15: 18.63088951 | N15: 9.894703632 | O15: 22.12844466 | P15: 172.0993787 | Q15: 36.14227584 | R15: 30.30630063 | S15: 164.6222998 | T15: 34.56361573 | U15: 32.62754497 | V15: 8.57803414 | W15: 4.245051947 | X15: 3.618023211 | Y15: 1.764640518 | Z15: 37.79876656 | AA15: 26.68878274
A16: Vegetables | B16: Cruciferous | C16: russels | D16: 0.2131965634 | E16: 0.1481532813 | F16: 28.37980165 | G16: 0 | H16: 0 | I16: 0 | J16: 0 | K16: 0 | L16: 5.401714045 | M16: 40.65705253 | N16: 39.84273612 | O16: 0 | P16: 0.1696458557 | Q16: 2.832835587 | R16: 6.791175799 | S16: 0 | T16: 0 | U16: 0 | V16: 0 | W16: 0 | X16: 0 | Y16: 0 | Z16: 0 | AA16: 0
A17: Vegetables | B17: Leafy Green | C17: lettuce | D17: 58.29081865 | E17: 43.35285552 | F17: 54.26822772 | G17: 45.7234141 | H17: 41.23823253 | I17: 96.10042187 | J17: 49.18898889 | K17: 57 | L17: 40.75521346 | M17: 40.41269615 | N17: 51.72373633 | O17: 63.76018474 | P17: 27.91686149 | Q17: 39.661182 | R17: 35.85768126 | S17: 64.76007004 | T17: 30.28678716 | U17: 23.4508627 | V17: 47.24975896 | W17: 56.77610277 | X17: 1.571059414 | Y17: 1.625159337 | Z17: 2.028780769 | AA17: 2.545892188
A18: Vegetables | B18: Leafy Green | C18: spinach | D18: 153.2406096 | E18: 145.6425196 | F18: 209.7576805 | G18: 160.836907 | H18: 184.4230041 | I18: 164.8950263 | J18: 300 | K18: 220 | L18: 202.3802416 | M18: 231.9363776 | N18: 240.6968191 | O18: 269.6907104 | P18: 129.4133689 | Q18: 173.0465979 | R18: 203.2276813 | S18: 178.2034399 | T18: 196.8941692 | U18: 149.3903014 | V18: 55.34788546 | W18: 41.46465664 | X18: 44.90354 | Y18: 39.93411141 | Z18: 43.89852295 | AA18: 52.45344739
A19: Vegetables | B19: Leafy Green | C19: silverbeet | D19: 29.56295639 | E19: 32.65060284 | F19: 49.48925 | G19: 41.9351236 | H19: 28.76786057 | I19: 29.14421878 | J19: 39.01149885 | K19: 29.56451509 | L19: 40.71995546 | M19: 65.30564776 | N19: 69.02415052 | O19: 59.09467208 | P19: 29.50014759 | Q19: 40.82217918 | R19: 48.34295372 | S19: 28.44922792 | T19: 30.16384543 | U19: 27.05657274 | V19: 33.78708471 | W19: 28.73045132 | X19: 43.24299844 | Y19: 43.09846643 | Z19: 55.73948251 | AA19: 54.54842327
A20: Vegetables | B20: Marrow | C20: pumpkin | D20: 152.546856 | E20: 198.7740721 | F20: 106.7955013 | G20: 119.4231918 | H20: 91.98487161 | I20: 97.49534918 | J20: 144.2857521 | K20: 147.7994028 | L20: 111.2694346 | M20: 87.35223912 | N20: 106.3507852 | O20: 78.15079687 | P20: 151.4579117 | Q20: 90.5143259 | R20: 253.2993172 | S20: 111.2343484 | T20: 113.8750709 | U20: 122.2662779 | V20: 133.7642742 | W20: 86.21164939 | X20: 47.90868757 | Y20: 47.39487482 | Z20: 4.148418478 | AA20: 15.37947751
A21: Vegetables | B21: Marrow | C21: cucumber | D21: -0.01466966665 | E21: -0.06777593289 | F21: -0.006638477201 | G21: 0 | H21: 0 | I21: 0 | J21: 0 | K21: 0 | L21: 561.193359 | M21: 1635.13743 | N21: 55.36862148 | O21: 0 | P21: 0 | Q21: 0 | R21: 0 | S21: 0 | T21: 0 | U21: 0 | V21: 0 | W21: 0 | X21: 904.5065146 | Y21: 741.2155723 | Z21: 17.45166681 | AA21: 0
A22: Vegetables | B22: Marrow | C22: zucchini | D22: 391.156788 | E22: 851.0554684 | F22: 879.8511727 | G22: 2.893266813 | H22: 0 | I22: 0 | J22: 0 | K22: 0 | L22: 0 | M22: 0 | N22: 0 | O22: 0 | P22: 391.6335306 | Q22: 1139.553633 | R22: 617.9835221 | S22: 0 | T22: 0 | U22: 0 | V22: 0 | W22: 0 | X22: 0 | Y22: 0 | Z22: 0 | AA22: 0
A23: Vegetables | B23: Marrow | C23: zucchini | D23: 0 | E23: 0 | F23: 0 | G23: 0 | H23: 0 | I23: 0 | J23: 0 | K23: 0 | L23: 0 | M23: 0 | N23: 0 | O23: 0 | P23: 0 | Q23: 0 | R23: 0 | S23: 0 | T23: 0 | U23: 0 | V23: 0 | W23: 0 | X23: 0 | Y23: 0 | Z23: 0 | AA23: 0
A24: Vegetables | B24: Root | C24: potato | D24: 0.07877256986 | E24: 5.297381087 | F24: 0 | G24: 0 | H24: 0 | I24: 0 | J24: 0 | K24: 0 | L24: 0 | M24: 0 | N24: 0 | O24: 0 | P24: 0 | Q24: 0 | R24: 0 | S24: 0 | T24: 0 | U24: 0 | V24: 0 | W24: 0 | X24: 0 | Y24: 0 | Z24: 0 | AA24: 0
A25: Vegetables | B25: Root | C25: sweet potato | D25: 22.72131204 | E25: 23.32771868 | F25: 50.49548067 | G25: 27.76387704 | H25: 24.24236734 | I25: 26.89502114 | J25: 48.81155129 | K25: 25.32334869 | L25: 134.0202386 | M25: 40.65629634 | N25: 22.556967 | O25: 111.8264069 | P25: 30.95521845 | Q25: 28.39535218 | R25: 34.51235903 | S25: 0 | T25: 0 | U25: 0 | V25: 0 | W25: 0 | X25: 0 | Y25: 0 | Z25: 0 | AA25: 0

Sheet Sales (hidden)
A1: Market | B1: Channel | C1: Customer | D1: Category | E1: Segment | F1: Product group | G1: F2017_01 | H1: F2017_02 | I1: F2017_03 | J1: F2017_04 | K1: F2017_05 | L1: F2017_06 | M1: F2017_07 | N1: F2017_08 | O1: F2017_09 | P1: F2017_10 | Q1: F2017_11 | R1: F2017_12 | S1: F2018_01 | T1: F2018_02 | U1: F2018_03 | V1: F2018_04 | W1: F2018_05 | X1: F2018_06 | Y1: F2018_07 | Z1: F2018_08 | AA1: F2018_09 | AB1: F2018_10 | AC1: F2018_11 | AD1: F2018_12 | AE1: F2019_01 | AF1: F2019_02 | AG1: F2019_03 | AH1: F2019_04 | AI1: F2019_05 | AJ1: F2019_06 | AK1: F2019_07 | AL1: F2019_08 | AM1: F2019_09 | AN1: F2019_10 | AO1: F2019_11 | AP1: F2019_12 | AQ1: F2020_01 | AR1: F2020_02 | AS1: F2020_03 | AT1: F2020_04 | AU1: F2020_05 | AV1: F2020_06 | AW1: F2020_07 | AX1: F2020_08 | AY1: F2020_09 | AZ1: F2020_10 | BA1: F2020_11 | BB1: F2020_12 | BC1: Exclude
A2: Total | B2: Hypermarkets | C2: Customer | D2: Fruits | E2: Apples and pears | F2: pears | G2: 20.1656805 | H2: 39.60443773 | I2: 9.319509644 | J2: 7.828490115 | K2: 25.69137293 | L2: 20.26671202 | M2: 35.51158623 | N2: 20.89633805 | O2: 16.85417701 | P2: 15.78260028 | Q2: 18.17995149 | R2: 13.19123308 | S2: 19.38910672 | T2: 12.97382392 | U2: 18.17283435 | V2: 31.61359819 | W2: 25.529423 | X2: 25.79762343 | Y2: 38.66064535 | Z2: 28.78478528 | AA2: 1.73776217 | AB2: 12.07787248 | AC2: 19.36993469 | AD2: 64.16720123 | AE2: 6.430844593 | AF2: 10.694988 | BC2: =COUNTIFS(CHART!$A$35:$A$75,B2)+COUNTIFS(CHART!$A$35:$A$75,C2)+COUNTIFS(CHART!$A$35:$A$75,A2) -> 0 | BE2: Hypermarkets | BF2: Customer | BG2: Fruits | BH2: Apples and pears | BI2: pears
A3: Total | B3: Hypermarkets | C3: Customer | D3: Fruits | E3: Citrus | F3: oranges | G3: 6.48060516 | H3: 9.022520185 | I3: 9.80716801 | J3: 13.06203957 | K3: 12.36614258 | L3: 13.6075477 | M3: 11.89065793 | N3: 30.46952502 | O3: 0.1993632472 | P3: 3.645430947 | Q3: 5.39763169 | R3: 6.639103291 | S3: 8.029891919 | T3: 16.60285935 | U3: 12.66252731 | V3: 7.776431188 | W3: 11.83918988 | X3: 26.35412269 | Y3: 9.266427915 | Z3: 4.684588306 | AA3: 10.41906255 | AB3: 7.842802613 | AC3: 18.27300073 | AD3: 5.785131876 | AE3: 12.24078875 | AF3: 16.49329939 | BC3: =COUNTIFS(CHART!$A$35:$A$75,B3)+COUNTIFS(CHART!$A$35:$A$75,C3)+COUNTIFS(CHART!$A$35:$A$75,A3) -> 0 | BE3: Hypermarkets | BF3: Customer | BG3: Fruits | BH3: Citrus | BI3: oranges
A4: Total | B4: Hypermarkets | C4: Customer | D4: Fruits | E4: Citrus | F4: grapefruits | G4: 21.82970402 | H4: 24.97214902 | I4: 13.24400352 | J4: 55.09250111 | K4: 24.33260353 | L4: 26.64112505 | M4: 75.89634542 | N4: 45.41954307 | O4: 48.97769331 | P4: 30.41429643 | Q4: 29.37316329 | R4: 58.23155864 | S4: 24.30781685 | T4: 45.19921272 | U4: 48.51786261 | V4: 36.00591168 | W4: 33.45663227 | X4: 48.30266767 | Y4: 32.52917676 | Z4: 56.20760599 | AA4: 25.71222253 | AB4: 49.31226026 | AC4: 84.02329296 | AD4: 4.239781363 | AE4: 58.57301835 | AF4: 36.49942595 | BC4: =COUNTIFS(CHART!$A$35:$A$75,B4)+COUNTIFS(CHART!$A$35:$A$75,C4)+COUNTIFS(CHART!$A$35:$A$75,A4) -> 0 | BE4: Hypermarkets | BF4: Customer | BG4: Fruits | BH4: Citrus | BI4: grapefruits
A5: Total | B5: Hypermarkets | C5: Customer | D5: Fruits | E5: Citrus | F5: mandarins | G5: 21.10325155 | H5: 62.8106729 | I5: 35.45272417 | J5: 64.4650892 | K5: 62.45834121 | L5: 66.51825217 | M5: 83.89315757 | N5: 150.8240807 | O5: 42.23712544 | P5: 56.71046955 | Q5: 82.39601014 | R5: 33.93117456 | S5: 69.53859869 | T5: 36.03917177 | U5: 108.1856964 | V5: 83.27866231 | W5: 67.61229541 | X5: 54.33861051 | Y5: 120.0954186 | Z5: 111.7123746 | AA5: 39.11278571 | AB5: 34.69223512 | AC5: 92.7072049 | AD5: 83.40708296 | AE5: 26.44162422 | AF5: 40.95609921 | BC5: =COUNTIFS(CHART!$A$35:$A$75,B5)+COUNTIFS(CHART!$A$35:$A$75,C5)+COUNTIFS(CHART!$A$35:$A$75,A5) -> 0 | BE5: Hypermarkets | BF5: Customer | BG5: Fruits | BH5: Citrus | BI5: mandarins
A6: Total | B6: Hypermarkets | C6: Customer | D6: Fruits | E6: Citrus | F6: limes | G6: 29.23926738 | H6: 57.14570141 | I6: 60.80683137 | J6: 43.80347717 | K6: 68.72494555 | L6: 26.09164769 | M6: 50.32499182 | N6: 36.97426231 | O6: 31.41240504 | P6: 42.11232274 | Q6: 29.41317111 | R6: 30.9784629 | S6: 27.81999912 | T6: 54.34759672 | U6: 48.81968088 | V6: 28.3576777 | W6: 49.75169858 | X6: 34.00470035 | Y6: 52.15404979 | Z6: 59.69720449 | AA6: 28.53963541 | AB6: 40.22389772 | AC6: 23.95298654 | AD6: 23.16505313 | AE6: 27.3913683 | AF6: 33.56909781 | BC6: =COUNTIFS(CHART!$A$35:$A$75,B6)+COUNTIFS(CHART!$A$35:$A$75,C6)+COUNTIFS(CHART!$A$35:$A$75,A6) -> 0 | BE6: Hypermarkets | BF6: Customer | BG6: Fruits | BH6: Citrus | BI6: limes
A7: Total | B7: Hypermarkets | C7: Customer | D7: Fruits | E7: Berries | F7: strawberries | G7: 12.9876806 | H7: 11.69069385 | I7: 10.94212008 | J7: 12.39035784 | K7: 25.77216519 | L7: 16.81665733 | M7: 28.25336803 | N7: 30.60480956 | O7: 15.99802332 | P7: 18.23875781 | Q7: 12.59573801 | R7: 15.48198962 | S7: 14.29078975 | T7: 17.90655115 | U7: 13.68604526 | V7: 20.2896236 | W7: 19.09366022 | X7: 20.14761138 | Y7: 22.79474503 | Z7: 12.27474186 | AA7: 29.964557 | AB7: 24.00490936 | AC7: 15.20328344 | AD7: 16.63193013 | AE7: 21.69708894 | AF7: 25.39973685 | BC7: =COUNTIFS(CHART!$A$35:$A$75,B7)+COUNTIFS(CHART!$A$35:$A$75,C7)+COUNTIFS(CHART!$A$35:$A$75,A7) -> 0 | BE7: Hypermarkets | BF7: Customer | BG7: Fruits | BH7: Berries | BI7: strawberries
A8: Total | B8: Hypermarkets | C8: Customer | D8: Fruits | E8: Apples and pears | F8: apples | G8: 193.4039562 | H8: 364.2216158 | I8: 217.4910712 | J8: 314.8733397 | K8: 346.9134581 | L8: 213.8548301 | M8: 122.9986528 | N8: 236.6456718 | O8: 251.2129621 | P8: 293.900671 | Q8: 368.6271733 | R8: 342.0649383 | S8: 145.0065463 | T8: 267.7545145 | U8: 254.934644 | V8: 186.9492446 | W8: 236.1468842 | X8: 150.7637708 | Y8: 594.3956439 | Z8: 308.8833516 | AA8: 274.8572259 | AB8: 337.8907685 | AC8: 689.4838859 | AD8: 237.2764928 | AE8: 37.13507983 | AF8: 56.82630658 | BC8: =COUNTIFS(CHART!$A$35:$A$75,B8)+COUNTIFS(CHART!$A$35:$A$75,C8)+COUNTIFS(CHART!$A$35:$A$75,A8) -> 0 | BE8: Hypermarkets | BF8: Customer | BG8: Fruits | BH8: Apples and pears | BI8: apples
A9: Total | B9: Hypermarkets | C9: Customer | D9: Vegetables | E9: Leafy Green | F9: lettuce | G9: 30.49817672 | H9: 2.914771528 | I9: 7.871072335 | J9: 0.8612924617 | K9: 9.116367455 | L9: 0.4006993674 | M9: 6.142205812 | N9: 8.566625579 | O9: 6.479898056 | P9: 14.11838575 | Q9: 4.665747035 | R9: 14.26158238 | S9: 6.133615831 | T9: 4.175401179 | U9: 10.81489224 | V9: 7.751953984 | W9: 8.087493289 | X9: 4.97794691 | Y9: 14.23754779 | Z9: 6.209859883 | AA9: 9.949954286 | AB9: 9.373309651 | AC9: 3.262016953 | AD9: 4.579979926 | AE9: 6.724670151 | AF9: 3.842252647 | BC9: =COUNTIFS(CHART!$A$35:$A$75,B9)+COUNTIFS(CHART!$A$35:$A$75,C9)+COUNTIFS(CHART!$A$35:$A$75,A9) -> 0 | BE9: Hypermarkets | BF9: Customer | BG9: Vegetables | BH9: Leafy Green | BI9: lettuce
A10: Total | B10: Hypermarkets | C10: Customer | D10: Fruits | E10: Berries | F10: raspberries | G10: 228.7561597 | H10: 323.1355163 | I10: 413.5232438 | J10: 376.1209414 | K10: 63.25246286 | L10: 235.5827528 | M10: 392.2929238 | N10: 359.5136354 | O10: 262.0675951 | P10: 158.9802807 | Q10: 262.8552603 | R10: 272.4474271 | S10: 184.6481843 | T10: 267.164125 | U10: 303.6657726 | V10: 273.5215258 | W10: 267.7111081 | X10: 169.2428638 | Y10: 503.8475702 | Z10: 285.4412323 | AA10: 240.6168375 | AB10: 256.8731896 | AC10: 489.2414061 | AD10: 380.4873976 | AE10: 94.07870755 | AF10: 85.64839837 | BC10: =COUNTIFS(CHART!$A$35:$A$75,B10)+COUNTIFS(CHART!$A$35:$A$75,C10)+COUNTIFS(CHART!$A$35:$A$75,A10) -> 0 | BE10: Hypermarkets | BF10: Customer | BG10: Fruits | BH10: Berries | BI10: raspberries
A11: Total | B11: Hypermarkets | C11: Customer | D11: Fruits | E11: Berries | F11: blueberries | G11: 24.47098686 | H11: 65.94823854 | I11: 35.09033891 | J11: 9.754422318 | K11: 22.58954172 | L11: 9.563006448 | M11: 55.98747062 | N11: 18.20250326 | O11: 38.66533607 | P11: 24.22976597 | Q11: 46.91455032 | R11: 23.38885534 | S11: 8.398681519 | T11: 46.55036188 | U11: 37.31760597 | V11: 21.64331279 | W11: 16.74994521 | X11: 16.54280755 | Y11: 35.05436917 | Z11: 30.55903756 | AA11: 33.70917409 | AB11: 23.86239965 | AC11: 24.20897539 | AD11: 29.70226306 | AE11: 18.56587175 | AF11: 32.52158378 | BC11: =COUNTIFS(CHART!$A$35:$A$75,B11)+COUNTIFS(CHART!$A$35:$A$75,C11)+COUNTIFS(CHART!$A$35:$A$75,A11) -> 0 | BE11: Hypermarkets | BF11: Customer | BG11: Fruits | BH11: Berries | BI11: blueberries
A12: Total | B12: Hypermarkets | C12: Customer | D12: Fruits | E12: Tropical and exotic | F12: bananas | G12: 0 | H12: 0 | I12: 0 | J12: 0 | K12: 0 | L12: 0 | M12: 0 | N12: 0 | O12: 0 | P12: 0 | Q12: 0 | R12: 0 | S12: 0 | T12: 0 | U12: 0 | V12: 0 | W12: 0 | X12: 0 | Y12: 0 | Z12: 0 | AA12: 0 | AB12: 0 | AC12: 0 | AD12: 0 | AE12: 0 | AF12: 0 | BC12: =COUNTIFS(CHART!$A$35:$A$75,B12)+COUNTIFS(CHART!$A$35:$A$75,C12)+COUNTIFS(CHART!$A$35:$A$75,A12) -> 0 | BE12: Hypermarkets | BF12: Customer | BG12: Fruits | BH12: Tropical and exotic | BI12: bananas
A13: Total | B13: Hypermarkets | C13: Customer | D13: Vegetables | E13: Leafy Green | F13: spinach | G13: 24.93448999 | H13: 37.26878149 | I13: 36.39876565 | J13: 31.00035987 | K13: 38.35351556 | L13: 23.66167621 | M13: 52.92415803 | N13: 43.73720941 | O13: 40.89919295 | P13: 29.23876751 | Q13: 20.7479495 | R13: 49.48490837 | S13: 26.78648623 | T13: 38.4901598 | U13: 20.06927511 | V13: 29.15011364 | W13: 25.82632933 | X13: 17.74976009 | Y13: 41.99482621 | Z13: 28.92516129 | AA13: 22.85074802 | AB13: 31.84232379 | AC13: 67.00396166 | AD13: 29.24934138 | AE13: 19.58630394 | AF13: 36.30570545 | BC13: =COUNTIFS(CHART!$A$35:$A$75,B13)+COUNTIFS(CHART!$A$35:$A$75,C13)+COUNTIFS(CHART!$A$35:$A$75,A13) -> 0 | BE13: Hypermarkets | BF13: Customer | BG13: Vegetables | BH13: Leafy Green | BI13: spinach
A14: Total | B14: Hypermarkets | C14: Customer | D14: Vegetables | E14: Cruciferous | F14: cauliflower | G14: 4.136572432 | H14: 3.18196023 | I14: 3.643505042 | J14: 2.80674105 | K14: 3.524088167 | L14: 2.093991848 | M14: 3.855756108 | N14: 4.210036127 | O14: 3.926750773 | P14: 1.472593 | Q14: 0.1919875402 | R14: 7.269323735 | S14: 3.375624464 | T14: 2.443959635 | U14: 0.1944578691 | V14: 6.717892282 | W14: 14.85720859 | X14: 5.904751905 | Y14: 13.12410439 | Z14: 10.52146111 | AA14: 7.277994586 | AB14: 10.75364189 | AC14: 10.30020225 | AD14: 13.204623 | AE14: 7.914458105 | AF14: 10.77929111 | BC14: =COUNTIFS(CHART!$A$35:$A$75,B14)+COUNTIFS(CHART!$A$35:$A$75,C14)+COUNTIFS(CHART!$A$35:$A$75,A14) -> 0 | BE14: Hypermarkets | BF14: Customer | BG14: Vegetables | BH14: Cruciferous | BI14: cauliflower
A15: Total | B15: Hypermarkets | C15: Customer | D15: Vegetables | E15: Cruciferous | F15: russels | G15: 52.34584886 | H15: 32.79611116 | I15: 40.15158543 | J15: 58.39853296 | K15: 28.09243486 | L15: 14.5985523 | M15: 33.88864548 | N15: 28.12217434 | O15: 29.71930652 | P15: 26.89377329 | Q15: 32.20645304 | R15: 44.38770702 | S15: 62.74220392 | T15: 18.96984872 | U15: 28.9307953 | V15: 51.60678738 | W15: 19.71100412 | X15: 33.46484984 | Y15: 33.5540272 | Z15: 26.05990092 | AA15: 29.22290816 | AB15: 30.3061261 | AC15: 36.83578068 | AD15: 43.63323638 | AE15: -1.067058495 | AF15: 15.9614374 | BC15: =COUNTIFS(CHART!$A$35:$A$75,B15)+COUNTIFS(CHART!$A$35:$A$75,C15)+COUNTIFS(CHART!$A$35:$A$75,A15) -> 0 | BE15: Hypermarkets | BF15: Customer | BG15: Vegetables | BH15: Cruciferous | BI15: russels
A16: Total | B16: Hypermarkets | C16: Customer | D16: Vegetables | E16: Leafy Green | F16: silverbeet | G16: 2.371388049 | H16: 3.942051468 | I16: 5.662038148 | J16: 3.96410238 | K16: 3.641417838 | L16: 1.38946623 | M16: 7.953913807 | N16: 3.354595212 | O16: 5.422589785 | P16: 2.73202522 | Q16: 1.783884953 | R16: 5.432693977 | S16: 5.797158745 | T16: 4.072506502 | U16: 4.034240625 | V16: 2.841856615 | W16: 3.248836536 | X16: 2.293949073 | Y16: 5.549543597 | Z16: 2.563504492 | AA16: 4.479294043 | AB16: 5.647576662 | AC16: 13.79958398 | AD16: 6.926848995 | AE16: 2.853992099 | AF16: 3.416310282 | BC16: =COUNTIFS(CHART!$A$35:$A$75,B16)+COUNTIFS(CHART!$A$35:$A$75,C16)+COUNTIFS(CHART!$A$35:$A$75,A16) -> 0 | BE16: Hypermarkets | BF16: Customer | BG16: Vegetables | BH16: Leafy Green | BI16: silverbeet
A17: Total | B17: Hypermarkets | C17: Customer | D17: Vegetables | E17: Marrow | F17: pumpkin | G17: 6.870341723 | H17: 15.25233911 | I17: 2.92640547 | J17: 17.92467443 | K17: 13.64336648 | L17: 14.27486939 | M17: 27.35730647 | N17: 19.21997903 | O17: 21.07822232 | P17: 19.70140034 | Q17: 22.28158206 | R17: 15.16449546 | S17: 19.1284926 | T17: 19.89797186 | U17: 40.43799256 | V17: 6.741638223 | W17: 21.21914567 | X17: 21.85351612 | Y17: 11.26446713 | Z17: 18.01256207 | AA17: 17.7175619 | AB17: 23.09030309 | AC17: 58.52644984 | AD17: 1.440221559 | AE17: 34.01601518 | AF17: 28.46794342 | BC17: =COUNTIFS(CHART!$A$35:$A$75,B17)+COUNTIFS(CHART!$A$35:$A$75,C17)+COUNTIFS(CHART!$A$35:$A$75,A17) -> 0 | BE17: Hypermarkets | BF17: Customer | BG17: Vegetables | BH17: Marrow | BI17: pumpkin
A18: Total | B18: Hypermarkets | C18: Customer | D18: Vegetables | E18: Cruciferous | F18: russels | G18: 0 | H18: 0 | I18: 0 | J18: 0 | K18: 0 | L18: 0 | M18: 0 | N18: 0 | O18: 0.04230031495 | P18: 0.6124170353 | Q18: 0 | R18: 0 | S18: 0 | T18: 0 | U18: 0 | V18: 0 | W18: 0 | X18: 0 | Y18: 0 | Z18: 0 | AA18: 0 | AB18: 0.0118231729 | AC18: 0.4984982304 | AD18: 0 | AE18: 0 | AF18: 0 | BC18: =COUNTIFS(CHART!$A$35:$A$75,B18)+COUNTIFS(CHART!$A$35:$A$75,C18)+COUNTIFS(CHART!$A$35:$A$75,A18) -> 0 | BE18: Hypermarkets | BF18: Customer | BG18: Vegetables | BH18: Cruciferous | BI18: russels
A19: Total | B19: Hypermarkets | C19: Customer | D19: Vegetables | E19: Marrow | F19: cucumber | G19: 0 | H19: 0 | I19: -0.01387917458 | J19: 0 | K19: 0 | L19: 0 | M19: 0 | N19: 0 | O19: 0.1419977263 | P19: 237.3474259 | Q19: 23.56003735 | R19: 0 | S19: -0.01151797301 | T19: 0 | U19: 0 | V19: 0 | W19: 0 | X19: 0 | Y19: 0 | Z19: 0 | AA19: 217.0971325 | AB19: 75.10986822 | AC19: 6.23680187 | AD19: 0 | AE19: -0.01634021984 | AF19: 0 | BC19: =COUNTIFS(CHART!$A$35:$A$75,B19)+COUNTIFS(CHART!$A$35:$A$75,C19)+COUNTIFS(CHART!$A$35:$A$75,A19) -> 0 | BE19: Hypermarkets | BF19: Customer | BG19: Vegetables | BH19: Marrow | BI19: cucumber
A20: Total | B20: Hypermarkets | C20: Customer | D20: Vegetables | E20: Marrow | F20: zucchini | G20: 92.81274663 | H20: 358.0688568 | I20: 9.156507621 | J20: 0 | K20: 0 | L20: 0 | M20: 0 | N20: 0 | O20: 0 | P20: 0 | Q20: 0 | R20: 0 | S20: 138.0739913 | T20: 267.442675 | U20: 16.90084137 | V20: 0 | W20: 0 | X20: 0 | Y20: 0 | Z20: 0 | AA20: 0 | AB20: 0 | AC20: 0 | AD20: 0 | AE20: 106.3704262 | AF20: 30.09899076 | BC20: =COUNTIFS(CHART!$A$35:$A$75,B20)+COUNTIFS(CHART!$A$35:$A$75,C20)+COUNTIFS(CHART!$A$35:$A$75,A20) -> 0 | BE20: Hypermarkets | BF20: Customer | BG20: Vegetables | BH20: Marrow | BI20: zucchini
A21: Total | B21: Hypermarkets | C21: Customer | D21: Vegetables | E21: Root | F21: potato | G21: 8.450591867 | H21: 11.98772686 | I21: 11.75143956 | J21: 9.897264046 | K21: 13.44890545 | L21: 8.527160345 | M21: 11.46150841 | N21: 12.02935272 | O21: 12.19765696 | P21: 14.58182206 | Q21: 17.26044149 | R21: 19.26272281 | S21: 6.244412036 | T21: 9.444990794 | U21: 10.25416936 | V21: 9.812898903 | W21: 11.95442532 | X21: 8.521312399 | Y21: 11.37444559 | Z21: 8.773819665 | AA21: 9.78854088 | AB21: 13.96428413 | AC21: 18.78648671 | AD21: 14.68369047 | AE21: 0 | AF21: 0 | BC21: =COUNTIFS(CHART!$A$35:$A$75,B21)+COUNTIFS(CHART!$A$35:$A$75,C21)+COUNTIFS(CHART!$A$35:$A$75,A21) -> 0 | BE21: Hypermarkets | BF21: Customer | BG21: Vegetables | BH21: Root | BI21: potato
A22: Total | B22: Hypermarkets | C22: Customer | D22: Fruits | E22: Apples and pears | F22: pears | G22: 7.15000995 | H22: 7.675554684 | I22: 4.89530825 | J22: 3.16768862 | K22: 8.78922039 | L22: 12.50094676 | M22: 12.28266069 | N22: 9.351739975 | O22: 16.33902711 | P22: 4.151374138 | Q22: 2.271207869 | R22: 12.03165507 | S22: 6.873429386 | T22: 2.930816939 | U22: 3.552875001 | V22: 14.02259529 | W22: 2.569506139 | X22: 5.315657171 | Y22: 14.27889786 | Z22: 7.008879591 | AA22: 10.57836192 | AB22: 9.027147638 | AC22: 3.000968417 | AD22: 5.892663057 | AE22: 6.772522613 | AF22: 2.334425603 | BC22: =COUNTIFS(CHART!$A$35:$A$75,B22)+COUNTIFS(CHART!$A$35:$A$75,C22)+COUNTIFS(CHART!$A$35:$A$75,A22) -> 0 | BE22: Hypermarkets | BF22: Customer | BG22: Fruits | BH22: Apples and pears | BI22: pears
A23: Total | B23: Hypermarkets | C23: Customer | D23: Fruits | E23: Citrus | F23: oranges | G23: 2.329180889 | H23: 2.097679538 | I23: 4.758113725 | J23: 4.201337855 | K23: 2.263087777 | L23: 2.278986148 | M23: 6.202140616 | N23: 1.55515969 | O23: 5.400978251 | P23: 3.997955997 | Q23: 1.784559253 | R23: 8.09136696 | S23: 1.589916256 | T23: 3.78515472 | U23: 5.895137008 | V23: 1.835714013 | W23: 5.044970224 | X23: 2.082067305 | Y23: 5.469209606 | Z23: 3.86997536 | AA23: 1.19557404 | AB23: 6.503044668 | AC23: 0.8464509896 | AD23: 0.6701762917 | AE23: 2.002664517 | AF23: 3.385958004 | BC23: =COUNTIFS(CHART!$A$35:$A$75,B23)+COUNTIFS(CHART!$A$35:$A$75,C23)+COUNTIFS(CHART!$A$35:$A$75,A23) -> 0 | BE23: Hypermarkets | BF23: Customer | BG23: Fruits | BH23: Citrus | BI23: oranges
A24: Total | B24: Hypermarkets | C24: Customer | D24: Fruits | E24: Citrus | F24: grapefruits | G24: 11.04039058 | H24: 8.141879796 | I24: 9.503606435 | J24: 20.19735393 | K24: 19.69229942 | L24: 9.485062671 | M24: 14.58194884 | N24: 12.8219197 | O24: 4.247649814 | P24: 4.178003083 | Q24: 5.186156931 | R24: 17.33701237 | S24: 7.18081666 | T24: 14.82626406 | U24: 13.72744811 | V24: 12.06240588 | W24: 12.29230471 | X24: 11.17770765 | Y24: 17.93919559 | Z24: 10.24757544 | AA24: 6.927711386 | AB24: 7.260872953 | AC24: 11.00831188 | AD24: 5.253073306 | AE24: 4.588629693 | AF24: 11.32647906 | BC24: =COUNTIFS(CHART!$A$35:$A$75,B24)+COUNTIFS(CHART!$A$35:$A$75,C24)+COUNTIFS(CHART!$A$35:$A$75,A24) -> 0 | BE24: Hypermarkets | BF24: Customer | BG24: Fruits | BH24: Citrus | BI24: grapefruits
A25: Total | B25: Hypermarkets | C25: Customer | D25: Fruits | E25: Citrus | F25: mandarins | G25: 12.05264382 | H25: 15.90123327 | I25: 18.34720354 | J25: 19.55816393 | K25: 11.60131843 | L25: 17.1979276 | M25: 23.26352956 | N25: 25.21761283 | O25: 16.95393602 | P25: 26.90352503 | Q25: 8.631689963 | R25: 14.27912187 | S25: 12.6369224 | T25: 23.8890696 | U25: 20.48626774 | V25: 19.20109685 | W25: 9.020450679 | X25: 18.4113385 | Y25: 19.35874029 | Z25: 14.90290678 | AA25: 4.467484102 | AB25: 18.13148199 | AC25: 5.950052589 | AD25: 8.884703278 | AE25: 4.438661545 | AF25: 8.404306666 | BC25: =COUNTIFS(CHART!$A$35:$A$75,B25)+COUNTIFS(CHART!$A$35:$A$75,C25)+COUNTIFS(CHART!$A$35:$A$75,A25) -> 0 | BE25: Hypermarkets | BF25: Customer | BG25: Fruits | BH25: Citrus | BI25: mandarins
A26: Total | B26: Hypermarkets | C26: Customer | D26: Fruits | E26: Citrus | F26: limes | G26: 0 | H26: 0.7004333101 | I26: 12.01335596 | J26: 0.1760700184 | K26: 0.2309329376 | L26: 0.007106396664 | M26: 0.009529096421 | N26: 0 | O26: 0.08442177176 | P26: 0.06707016625 | Q26: -0.02645034116 | R26: 0 | S26: 0.00698415384 | T26: 0 | U26: 0.007077948545 | V26: 0 | W26: 0 | X26: 0.007118247224 | Y26: 0 | Z26: 0.2744086945 | AA26: 0 | AB26: 7.631856475 | AC26: 4.208036664 | AD26: 7.813179201 | AE26: 5.572063271 | AF26: 7.84536316 | BC26: =COUNTIFS(CHART!$A$35:$A$75,B26)+COUNTIFS(CHART!$A$35:$A$75,C26)+COUNTIFS(CHART!$A$35:$A$75,A26) -> 0 | BE26: Hypermarkets | BF26: Customer | BG26: Fruits | BH26: Citrus | BI26: limes
A27: Total | B27: Hypermarkets | C27: Customer | D27: Fruits | E27: Berries | F27: strawberries | G27: 4.257152076 | H27: 6.141970598 | I27: 5.592417602 | J27: 6.576648848 | K27: 9.712051886 | L27: 9.998858565 | M27: 18.75640411 | N27: 8.674504707 | O27: 6.614348707 | P27: 11.69707418 | Q27: 6.116351231 | R27: 12.82413079 | S27: 6.316626041 | T27: 7.290577479 | U27: 8.922064973 | V27: 7.407304593 | W27: 8.174788398 | X27: 10.98503229 | Y27: 18.0844201 | Z27: 5.903471848 | AA27: 9.564683857 | AB27: 13.2448228 | AC27: 8.503646592 | AD27: 11.45706119 | AE27: 12.25752287 | AF27: 8.884333586 | BC27: =COUNTIFS(CHART!$A$35:$A$75,B27)+COUNTIFS(CHART!$A$35:$A$75,C27)+COUNTIFS(CHART!$A$35:$A$75,A27) -> 0 | BE27: Hypermarkets | BF27: Customer | BG27: Fruits | BH27: Berries | BI27: strawberries
A28: Total | B28: Hypermarkets | C28: Customer | D28: Fruits | E28: Apples and pears | F28: apples | G28: 71.26527284 | H28: 86.26231658 | I28: 93.55063619 | J28: 153.7099037 | K28: 97.95522677 | L28: 65.09182572 | M28: 86.71790757 | N28: 135.015155 | O28: 50.57199601 | P28: 112.1507475 | Q28: 60.61691047 | R28: 83.60611722 | S28: 53.65286607 | T28: 85.10756807 | U28: 113.9877493 | V28: 66.45314275 | W28: 55.22027912 | X28: 65.08842007 | Y28: 74.12172937 | Z28: 65.50824314 | AA28: 79.70137819 | AB28: 96.88649197 | AC28: 82.3936953 | AD28: 50.2776708 | AE28: 32.24155519 | AF28: 38.955106 | BC28: =COUNTIFS(CHART!$A$35:$A$75,B28)+COUNTIFS(CHART!$A$35:$A$75,C28)+COUNTIFS(CHART!$A$35:$A$75,A28) -> 0 | BE28: Hypermarkets | BF28: Customer | BG28: Fruits | BH28: Apples and pears | BI28: apples
A29: Total | B29: Hypermarkets | C29: Customer | D29: Vegetables | E29: Leafy Green | F29: lettuce | G29: 2.399720603 | H29: 3.596271015 | I29: 12.17164883 | J29: 8.628002316 | K29: 11.20010699 | L29: 3.866732214 | M29: 13.474374 | N29: 3.059118548 | O29: 2.655034672 | P29: 2.311686223 | Q29: 1.777332282 | R29: 12.83241225 | S29: 2.411357745 | T29: 1.599394294 | U29: 13.8725599 | V29: 6.713922287 | W29: 1.94543034 | X29: 1.043872457 | Y29: 1.691482552 | Z29: 2.268682942 | AA29: 2.3344411 | AB29: 7.210672659 | AC29: 3.242905052 | AD29: 7.173501803 | AE29: 1.628718896 | AF29: 2.142710599 | BC29: =COUNTIFS(CHART!$A$35:$A$75,B29)+COUNTIFS(CHART!$A$35:$A$75,C29)+COUNTIFS(CHART!$A$35:$A$75,A29) -> 0 | BE29: Hypermarkets | BF29: Customer | BG29: Vegetables | BH29: Leafy Green | BI29: lettuce
A30: Total | B30: Hypermarkets | C30: Customer | D30: Fruits | E30: Berries | F30: raspberries | G30: 99.02114885 | H30: 151.5207503 | I30: 193.4023132 | J30: 82.28575416 | K30: 77.10430314 | L30: 35.90705369 | M30: 208.168977 | N30: 56.8154221 | O30: 96.38500723 | P30: 71.58255701 | Q30: 103.9588157 | R30: 82.71141993 | S30: 89.50887648 | T30: 162.0141733 | U30: 190.1760277 | V30: 68.64492088 | W30: 94.59869927 | X30: 59.18236083 | Y30: 104.9214716 | Z30: 85.61156491 | AA30: 66.56841664 | AB30: 69.72830482 | AC30: 13.36080663 | AD30: 27.54757014 | AE30: 66.29246763 | AF30: 46.43356862 | BC30: =COUNTIFS(CHART!$A$35:$A$75,B30)+COUNTIFS(CHART!$A$35:$A$75,C30)+COUNTIFS(CHART!$A$35:$A$75,A30) -> 0 | BE30: Hypermarkets | BF30: Customer | BG30: Fruits | BH30: Berries | BI30: raspberries
A31: Total | B31: Hypermarkets | C31: Customer | D31: Fruits | E31: Berries | F31: blueberries | G31: 38.91648231 | H31: 25.25897864 | I31: 20.00430002 | J31: 12.162186 | K31: 36.45545001 | L31: 10.90307979 | M31: 22.40990804 | N31: 4.260108944 | O31: 7.444968986 | P31: 44.19256511 | Q31: 18.33148063 | R31: 7.60387571 | S31: 34.15137395 | T31: 3.163272416 | U31: 33.18213203 | V31: 11.64262951 | W31: 3.098637226 | X31: 4.21381222 | Y31: 5.661760652 | Z31: 6.889305666 | AA31: 6.714755811 | AB31: 36.11009303 | AC31: 13.04262556 | AD31: 4.126255077 | AE31: 18.61813491 | AF31: 2.289893654 | BC31: =COUNTIFS(CHART!$A$35:$A$75,B31)+COUNTIFS(CHART!$A$35:$A$75,C31)+COUNTIFS(CHART!$A$35:$A$75,A31) -> 0 | BE31: Hypermarkets | BF31: Customer | BG31: Fruits | BH31: Berries | BI31: blueberries
A32: Total | B32: Hypermarkets | C32: Customer | D32: Fruits | E32: Tropical and exotic | F32: bananas | G32: 0 | H32: 0 | I32: 0 | J32: 0 | K32: 0 | L32: 0 | M32: 0 | N32: 0 | O32: 0 | P32: 0 | Q32: 0 | R32: 0 | S32: 0 | T32: 0 | U32: 0 | V32: 0 | W32: 0 | X32: 0 | Y32: 0 | Z32: 0 | AA32: 0 | AB32: 0 | AC32: 0 | AD32: 0 | AE32: 0 | AF32: 0 | BC32: =COUNTIFS(CHART!$A$35:$A$75,B32)+COUNTIFS(CHART!$A$35:$A$75,C32)+COUNTIFS(CHART!$A$35:$A$75,A32) -> 0 | BE32: Hypermarkets | BF32: Customer | BG32: Fruits | BH32: Tropical and exotic | BI32: bananas
A33: Total | B33: Hypermarkets | C33: Customer | D33: Vegetables | E33: Leafy Green | F33: spinach | G33: 15.94827401 | H33: 13.08627986 | I33: 8.401401007 | J33: 11.80904526 | K33: 10.23151079 | L33: 5.428535502 | M33: 13.96353313 | N33: 10.94151633 | O33: 10.58872514 | P33: 8.299017607 | Q33: 20.52965747 | R33: 20.25438062 | S33: 7.572767693 | T33: 11.74440094 | U33: 10.23489854 | V33: 10.19447531 | W33: 9.040757544 | X33: 10.21052646 | Y33: 13.74463724 | Z33: 11.62623375 | AA33: 10.84631508 | AB33: 12.32939753 | AC33: 13.05105578 | AD33: 5.384842643 | AE33: 4.695990432 | AF33: 3.059195286 | BC33: =COUNTIFS(CHART!$A$35:$A$75,B33)+COUNTIFS(CHART!$A$35:$A$75,C33)+COUNTIFS(CHART!$A$35:$A$75,A33) -> 0 | BE33: Hypermarkets | BF33: Customer | BG33: Vegetables | BH33: Leafy Green | BI33: spinach
A34: Total | B34: Hypermarkets | C34: Customer | D34: Vegetables | E34: Cruciferous | F34: cauliflower | G34: 6.428427769 | H34: 4.406643453 | I34: 3.193441333 | J34: 5.097995722 | K34: 3.62273011 | L34: 1.600900726 | M34: 4.110860142 | N34: 3.47824951 | O34: 3.107243245 | P34: 1.514872216 | Q34: 0.3299461352 | R34: 12.85414525 | S34: 3.280306866 | T34: 3.730307824 | U34: 3.706753279 | V34: 3.034886336 | W34: 3.177694518 | X34: 2.643205893 | Y34: 6.670246892 | Z34: 3.394036986 | AA34: 3.782573815 | AB34: 3.946203198 | AC34: 5.901066111 | AD34: 5.000952955 | AE34: 2.41348038 | AF34: 4.394579615 | BC34: =COUNTIFS(CHART!$A$35:$A$75,B34)+COUNTIFS(CHART!$A$35:$A$75,C34)+COUNTIFS(CHART!$A$35:$A$75,A34) -> 0 | BE34: Hypermarkets | BF34: Customer | BG34: Vegetables | BH34: Cruciferous | BI34: cauliflower
A35: Total | B35: Hypermarkets | C35: Customer | D35: Vegetables | E35: Cruciferous | F35: russels | G35: 3.355524393 | H35: 9.85896846 | I35: 5.278039727 | J35: 13.15624212 | K35: 7.616039524 | L35: 1.283182015 | M35: 6.862571842 | N35: 1.806638774 | O35: 7.201324017 | P35: 2.262679944 | Q35: 5.331790159 | R35: 5.542673902 | S35: 4.145305193 | T35: 5.402802362 | U35: 4.198674649 | V35: 3.170148952 | W35: 3.375113903 | X35: 6.494058875 | Y35: 5.110521308 | Z35: 5.838323965 | AA35: 5.611841401 | AB35: 4.350111839 | AC35: 3.37752608 | AD35: 0.5149716441 | AE35: 2.216136189 | AF35: 3.333409481 | BC35: =COUNTIFS(CHART!$A$35:$A$75,B35)+COUNTIFS(CHART!$A$35:$A$75,C35)+COUNTIFS(CHART!$A$35:$A$75,A35) -> 0 | BE35: Hypermarkets | BF35: Customer | BG35: Vegetables | BH35: Cruciferous | BI35: russels
A36: Total | B36: Hypermarkets | C36: Customer | D36: Vegetables | E36: Leafy Green | F36: silverbeet | G36: 2.168413327 | H36: 2.057136507 | I36: 1.902570985 | J36: 3.966009406 | K36: 2.072471933 | L36: 1.28341124 | M36: 3.304686783 | N36: 2.441311431 | O36: 2.217768725 | P36: 1.040035963 | Q36: 0.4312235627 | R36: 7.042854509 | S36: 0.8231252111 | T36: 1.518166039 | U36: 2.253481923 | V36: 5.047859957 | W36: 1.767333159 | X36: 2.537639895 | Y36: 4.065351633 | Z36: 2.493663834 | AA36: 2.406232604 | AB36: 3.035218616 | AC36: 6.026673281 | AD36: 4.571916213 | AE36: 1.512385741 | AF36: 1.251942933 | BC36: =COUNTIFS(CHART!$A$35:$A$75,B36)+COUNTIFS(CHART!$A$35:$A$75,C36)+COUNTIFS(CHART!$A$35:$A$75,A36) -> 0 | BE36: Hypermarkets | BF36: Customer | BG36: Vegetables | BH36: Leafy Green | BI36: silverbeet
A37: Total | B37: Hypermarkets | C37: Customer | D37: Vegetables | E37: Marrow | F37: pumpkin | G37: 5.117701325 | H37: 3.324549243 | I37: 3.088989548 | J37: 12.33735344 | K37: 7.901201215 | L37: 7.974021579 | M37: 5.15835032 | N37: 6.655308633 | O37: 1.35521787 | P37: 1.963318053 | Q37: 3.385559447 | R37: 10.51702036 | S37: 3.34335006 | T37: 7.116170648 | U37: 6.594138993 | V37: 6.760847738 | W37: 7.647320912 | X37: 6.209743107 | Y37: 10.52143241 | Z37: 4.979018174 | AA37: 1.312702396 | AB37: 2.239234708 | AC37: 3.88115823 | AD37: 4.524864799 | AE37: 2.149034544 | AF37: 7.276749034 | BC37: =COUNTIFS(CHART!$A$35:$A$75,B37)+COUNTIFS(CHART!$A$35:$A$75,C37)+COUNTIFS(CHART!$A$35:$A$75,A37) -> 0 | BE37: Hypermarkets | BF37: Customer | BG37: Vegetables | BH37: Marrow | BI37: pumpkin
A38: Total | B38: Hypermarkets | C38: Customer | D38: Vegetables | E38: Cruciferous | F38: russels | G38: 0 | H38: 0 | I38: 0 | J38: 0 | K38: 0 | L38: 0 | M38: 0 | N38: 0 | O38: 0 | P38: 0 | Q38: 0 | R38: 0 | S38: 0 | T38: 0 | U38: 0 | V38: 0 | W38: 0 | X38: 0 | Y38: 0 | Z38: 0 | AA38: 0 | AB38: 1.454767454 | AC38: 4.007943226 | AD38: 0.7403423493 | AE38: 0 | AF38: 0 | BC38: =COUNTIFS(CHART!$A$35:$A$75,B38)+COUNTIFS(CHART!$A$35:$A$75,C38)+COUNTIFS(CHART!$A$35:$A$75,A38) -> 0 | BE38: Hypermarkets | BF38: Customer | BG38: Vegetables | BH38: Cruciferous | BI38: russels
A39: Total | B39: Hypermarkets | C39: Customer | D39: Vegetables | E39: Marrow | F39: cucumber | G39: 0 | H39: 0 | I39: 0 | J39: 0 | K39: 0 | L39: 0 | M39: 0 | N39: 0 | O39: 0 | P39: 125.5703 | Q39: 54.0887559 | R39: -0.004390916848 | S39: -0.006460854165 | T39: -0.02424727706 | U39: 0 | V39: 0 | W39: 0 | X39: 0 | Y39: 0 | Z39: 0 | AA39: 0 | AB39: 161.7444972 | AC39: 23.50478622 | AD39: 0 | AE39: 0 | AF39: 0 | BC39: =COUNTIFS(CHART!$A$35:$A$75,B39)+COUNTIFS(CHART!$A$35:$A$75,C39)+COUNTIFS(CHART!$A$35:$A$75,A39) -> 0 | BE39: Hypermarkets | BF39: Customer | BG39: Vegetables | BH39: Marrow | BI39: cucumber
A40: Total | B40: Hypermarkets | C40: Customer | D40: Vegetables | E40: Marrow | F40: zucchini | G40: 0 | H40: 42.64332193 | I40: 158.3021431 | J40: -0.01071077124 | K40: 0 | L40: 0 | M40: 0 | N40: 0 | O40: 0 | P40: 0 | Q40: 0 | R40: 0 | S40: 27.21968658 | T40: 174.2516618 | U40: 10.01499254 | V40: 0 | W40: 0 | X40: 0 | Y40: 0 | Z40: 0 | AA40: 0 | AB40: 0 | AC40: 0 | AD40: 0 | AE40: 26.56962337 | AF40: 15.54635669 | BC40: =COUNTIFS(CHART!$A$35:$A$75,B40)+COUNTIFS(CHART!$A$35:$A$75,C40)+COUNTIFS(CHART!$A$35:$A$75,A40) -> 0 | BE40: Hypermarkets | BF40: Customer | BG40: Vegetables | BH40: Marrow | BI40: zucchini
A41: Total | B41: Hypermarkets | C41: Customer | D41: Vegetables | E41: Root | F41: potato | G41: 5.102611693 | H41: 5.444690475 | I41: 4.899031636 | J41: 5.865979233 | K41: 6.659086819 | L41: 4.22317974 | M41: 8.05170215 | N41: 5.032200131 | O41: 5.176491972 | P41: 7.395965332 | Q41: 13.28488235 | R41: 4.726753525 | S41: 5.035210258 | T41: 5.226328968 | U41: 7.774931751 | V41: 4.572958376 | W41: 4.798005622 | X41: 4.727846385 | Y41: 6.291161718 | Z41: 4.015313484 | AA41: 5.989121903 | AB41: 12.02529902 | AC41: 5.309795315 | AD41: 6.29658642 | AE41: 0 | AF41: 0 | BC41: =COUNTIFS(CHART!$A$35:$A$75,B41)+COUNTIFS(CHART!$A$35:$A$75,C41)+COUNTIFS(CHART!$A$35:$A$75,A41) -> 0 | BE41: Hypermarkets | BF41: Customer | BG41: Vegetables | BH41: Root | BI41: potato
A42: Total | B42: Hypermarkets | C42: Customer | D42: Fruits | E42: Apples and pears | F42: pears | G42: 1.365203848 | H42: 1.416378783 | I42: 18.15446626 | J42: 0.6663661576 | K42: 3.300373165 | L42: 5.467110114 | M42: 2.008645263 | N42: 16.22059324 | O42: 4.597280969 | P42: 1.905367988 | Q42: 14.81560679 | R42: 0 | S42: 0.6376248637 | T42: 0.7244212628 | U42: 18.88781374 | V42: 1.351720766 | W42: 1.378459038 | X42: 16.29057126 | Y42: 3.888777888 | Z42: 3.457028503 | AA42: 0 | AB42: 0.7281126715 | AC42: 1.300578847 | AD42: 15.93704632 | AE42: 0 | AF42: 0.659836084 | BC42: =COUNTIFS(CHART!$A$35:$A$75,B42)+COUNTIFS(CHART!$A$35:$A$75,C42)+COUNTIFS(CHART!$A$35:$A$75,A42) -> 0 | BE42: Hypermarkets | BF42: Customer | BG42: Fruits | BH42: Apples and pears | BI42: pears
A43: Total | B43: Hypermarkets | C43: Customer | D43: Fruits | E43: Citrus | F43: oranges | G43: 1.751307184 | H43: 1.915133617 | I43: 2.518375159 | J43: 6.142295869 | K43: 0 | L43: 0 | M43: 0 | N43: 7.376606931 | O43: 1.958041418 | P43: 1.788552708 | Q43: 0 | R43: 3.761066691 | S43: 2.677161424 | T43: 3.28693121 | U43: 5.320443954 | V43: 1.311230221 | W43: 2.352037629 | X43: 7.736851507 | Y43: 0.9274626484 | Z43: 5.568285181 | AA43: 0 | AB43: 2.421852784 | AC43: 1.907102178 | AD43: 3.055938601 | AE43: 1.86282879 | AF43: 3.196557296 | BC43: =COUNTIFS(CHART!$A$35:$A$75,B43)+COUNTIFS(CHART!$A$35:$A$75,C43)+COUNTIFS(CHART!$A$35:$A$75,A43) -> 0 | BE43: Hypermarkets | BF43: Customer | BG43: Fruits | BH43: Citrus | BI43: oranges
A44: Total | B44: Hypermarkets | C44: Customer | D44: Fruits | E44: Citrus | F44: grapefruits | G44: 12.22164344 | H44: 12.39491403 | I44: 14.01126074 | J44: 10.25017586 | K44: 24.52071345 | L44: 19.73051719 | M44: 8.166781858 | N44: 16.68053386 | O44: 11.54688868 | P44: 10.70495656 | Q44: 2.953215434 | R44: 13.07663785 | S44: 16.37809385 | T44: 6.956403556 | U44: 22.37059357 | V44: 17.43393423 | W44: 21.91084315 | X44: 11.4798239 | Y44: 14.58206786 | Z44: 18.69804534 | AA44: 15.54554909 | AB44: 20.06535968 | AC44: 19.77533426 | AD44: 9.200633626 | AE44: 22.38183197 | AF44: 18.08515699 | BC44: =COUNTIFS(CHART!$A$35:$A$75,B44)+COUNTIFS(CHART!$A$35:$A$75,C44)+COUNTIFS(CHART!$A$35:$A$75,A44) -> 0 | BE44: Hypermarkets | BF44: Customer | BG44: Fruits | BH44: Citrus | BI44: grapefruits
A45: Total | B45: Hypermarkets | C45: Customer | D45: Fruits | E45: Citrus | F45: mandarins | G45: 24.69896779 | H45: 8.249000462 | I45: 25.15977815 | J45: 5.783576678 | K45: 23.27848707 | L45: 3.586971124 | M45: 23.51747179 | N45: 30.36460956 | O45: 4.069600649 | P45: 7.998652751 | Q45: 19.31601564 | R45: 0 | S45: 19.42913333 | T45: 0 | U45: 14.318524 | V45: 16.18644874 | W45: 3.794773606 | X45: 26.33506717 | Y45: 18.14720584 | Z45: 15.45992343 | AA45: 8.657770601 | AB45: 2.21038932 | AC45: 21.76983943 | AD45: 0 | AE45: 17.01184207 | AF45: 3.545475926 | BC45: =COUNTIFS(CHART!$A$35:$A$75,B45)+COUNTIFS(CHART!$A$35:$A$75,C45)+COUNTIFS(CHART!$A$35:$A$75,A45) -> 0 | BE45: Hypermarkets | BF45: Customer | BG45: Fruits | BH45: Citrus | BI45: mandarins
A46: Total | B46: Hypermarkets | C46: Customer | D46: Fruits | E46: Citrus | F46: limes | G46: 2.91334975 | H46: 4.441655665 | I46: 5.540949872 | J46: 5.107520112 | K46: 14.64429559 | L46: 6.565043985 | M46: 7.967087182 | N46: 8.222140617 | O46: 1.740659484 | P46: 8.308493079 | Q46: 2.496492251 | R46: 3.154291747 | S46: 2.615781603 | T46: 2.832758669 | U46: 0 | V46: 0 | W46: 0 | X46: 0 | Y46: 0 | Z46: 0 | AA46: 0 | AB46: 0 | AC46: 0 | AD46: 0 | AE46: 0 | AF46: 0 | BC46: =COUNTIFS(CHART!$A$35:$A$75,B46)+COUNTIFS(CHART!$A$35:$A$75,C46)+COUNTIFS(CHART!$A$35:$A$75,A46) -> 0 | BE46: Hypermarkets | BF46: Customer | BG46: Fruits | BH46: Citrus | BI46: limes
A47: Total | B47: Hypermarkets | C47: Customer | D47: Fruits | E47: Berries | F47: strawberries | G47: 6.401789038 | H47: 17.27161438 | I47: 8.538346041 | J47: 12.02445576 | K47: 14.31632017 | L47: 10.66871837 | M47: 14.88057004 | N47: 18.90052636 | O47: 7.561648152 | P47: 19.86582428 | Q47: 9.067028266 | R47: 14.82324219 | S47: 5.44833036 | T47: 12.56963412 | U47: 15.60122143 | V47: 9.419117783 | W47: 22.92805354 | X47: 15.95319856 | Y47: 7.656409511 | Z47: 25.37104795 | AA47: 14.41648831 | AB47: 25.24840517 | AC47: 23.29613357 | AD47: 11.3855571 | AE47: 21.36840677 | AF47: 7.075937364 | BC47: =COUNTIFS(CHART!$A$35:$A$75,B47)+COUNTIFS(CHART!$A$35:$A$75,C47)+COUNTIFS(CHART!$A$35:$A$75,A47) -> 0 | BE47: Hypermarkets | BF47: Customer | BG47: Fruits | BH47: Berries | BI47: strawberries
A48: Total | B48: Hypermarkets | C48: Customer | D48: Fruits | E48: Apples and pears | F48: apples | G48: 84.1410517 | H48: 60.97904675 | I48: 87.76032518 | J48: 108.9179387 | K48: 81.36558348 | L48: 81.94851355 | M48: 15.93331437 | N48: 102.9839262 | O48: 5.320443336 | P48: 103.8047901 | Q48: 12.83981615 | R48: 55.86158459 | S48: 97.79838238 | T48: 10.85154046 | U48: 135.8159456 | V48: 8.819278044 | W48: 111.14622 | X48: 35.1155948 | Y48: 170.4043649 | Z48: 126.6232432 | AA48: 33.43360856 | AB48: 118.7598323 | AC48: 116.1777751 | AD48: 97.04602759 | AE48: 83.61715169 | AF48: 48.52432876 | BC48: =COUNTIFS(CHART!$A$35:$A$75,B48)+COUNTIFS(CHART!$A$35:$A$75,C48)+COUNTIFS(CHART!$A$35:$A$75,A48) -> 0 | BE48: Hypermarkets | BF48: Customer | BG48: Fruits | BH48: Apples and pears | BI48: apples
A49: Total | B49: Hypermarkets | C49: Customer | D49: Vegetables | E49: Leafy Green | F49: lettuce | G49: 0 | H49: 0 | I49: 0 | J49: 0 | K49: 0 | L49: 0 | M49: 0 | N49: 0 | O49: 0 | P49: 0 | Q49: 7.423586701 | R49: 0 | S49: 0 | T49: 0 | U49: 7.243668725 | V49: 0 | W49: 0 | X49: 0 | Y49: 0 | Z49: 0 | AA49: 0 | AB49: 0 | AC49: 11.05834508 | AD49: 0 | AE49: 0 | AF49: 0 | BC49: =COUNTIFS(CHART!$A$35:$A$75,B49)+COUNTIFS(CHART!$A$35:$A$75,C49)+COUNTIFS(CHART!$A$35:$A$75,A49) -> 0 | BE49: Hypermarkets | BF49: Customer | BG49: Vegetables | BH49: Leafy Green | BI49: lettuce
A50: Total | B50: Hypermarkets | C50: Customer | D50: Fruits | E50: Berries | F50: raspberries | G50: 47.41657216 | H50: 23.69626077 | I50: 111.7967601 | J50: 0 | K50: 109.7128638 | L50: 77.7224548 | M50: 150.0405815 | N50: 18.42708138 | O50: 3.232766303 | P50: 0 | Q50: 64.59077573 | R50: 23.11338044 | S50: 62.65534378 | T50: 72.8671016 | U50: 65.69885381 | V50: 41.66174522 | W50: 101.8017458 | X50: 10.58801053 | Y50: 102.3201807 | Z50: 14.62260923 | AA50: 60.775692 | AB50: 139.0652843 | AC50: 88.24663292 | AD50: 26.32672202 | AE50: 62.12120338 | AF50: 77.16582487 | BC50: =COUNTIFS(CHART!$A$35:$A$75,B50)+COUNTIFS(CHART!$A$35:$A$75,C50)+COUNTIFS(CHART!$A$35:$A$75,A50) -> 0 | BE50: Hypermarkets | BF50: Customer | BG50: Fruits | BH50: Berries | BI50: raspberries
A51: Total | B51: Hypermarkets | C51: Customer | D51: Fruits | E51: Berries | F51: blueberries | G51: 40.67961771 | H51: 28.89835848 | I51: 0 | J51: 0 | K51: 0 | L51: 44.6603884 | M51: 36.06037673 | N51: 30.80719436 | O51: 0 | P51: 22.12548356 | Q51: 0 | R51: 0 | S51: 44.91873072 | T51: 41.75679199 | U51: 0 | V51: 32.22019927 | W51: 38.60969171 | X51: 32.03181656 | Y51: 0 | Z51: 22.4873168 | AA51: 0 | AB51: 0 | AC51: 40.94008289 | AD51: 0 | AE51: 48.7086185 | AF51: 0 | BC51: =COUNTIFS(CHART!$A$35:$A$75,B51)+COUNTIFS(CHART!$A$35:$A$75,C51)+COUNTIFS(CHART!$A$35:$A$75,A51) -> 0 | BE51: Hypermarkets | BF51: Customer | BG51: Fruits | BH51: Berries | BI51: blueberries
A52: Total | B52: Hypermarkets | C52: Customer | D52: Fruits | E52: Tropical and exotic | F52: bananas | G52: 0 | H52: 0 | I52: 0 | J52: 0 | K52: 0 | L52: 0 | M52: 0 | N52: 0 | O52: 0 | P52: 0 | Q52: 0 | R52: 0 | S52: 0 | T52: 0 | U52: 0 | V52: 0 | W52: 0 | X52: 0 | Y52: 0 | Z52: 0 | AA52: 0 | AB52: 0 | AC52: 0 | AD52: 0 | AE52: 0 | AF52: 0 | BC52: =COUNTIFS(CHART!$A$35:$A$75,B52)+COUNTIFS(CHART!$A$35:$A$75,C52)+COUNTIFS(CHART!$A$35:$A$75,A52) -> 0 | BE52: Hypermarkets | BF52: Customer | BG52: Fruits | BH52: Tropical and exotic | BI52: bananas
A53: Total | B53: Hypermarkets | C53: Customer | D53: Vegetables | E53: Leafy Green | F53: spinach | G53: 0 | H53: 0.661821062 | I53: 3.361427379 | J53: 0.6807209076 | K53: 0 | L53: 0 | M53: 6.809961905 | N53: 0 | O53: 3.730617796 | P53: 0 | Q53: 0 | R53: 0 | S53: 0 | T53: 0 | U53: 5.367586989 | V53: 0 | W53: 0 | X53: 0 | Y53: 0 | Z53: 3.993150355 | AA53: 1.418759911 | AB53: 2.25826136 | AC53: 5.181196963 | AD53: 5.248913617 | AE53: 1.472782267 | AF53: 0 | BC53: =COUNTIFS(CHART!$A$35:$A$75,B53)+COUNTIFS(CHART!$A$35:$A$75,C53)+COUNTIFS(CHART!$A$35:$A$75,A53) -> 0 | BE53: Hypermarkets | BF53: Customer | BG53: Vegetables | BH53: Leafy Green | BI53: spinach
A54: Total | B54: Hypermarkets | C54: Customer | D54: Vegetables | E54: Cruciferous | F54: cauliflower | G54: 0 | H54: 0 | I54: 1.406695668 | J54: 0 | K54: 0 | L54: 0 | M54: 0 | N54: 1.530217724 | O54: 0 | P54: 0 | Q54: 0 | R54: 0 | S54: 0 | T54: 0 | U54: 2.079909811 | V54: 0 | W54: 0 | X54: 0 | Y54: 0 | Z54: 0 | AA54: 0 | AB54: 0 | AC54: 1.302251511 | AD54: 0 | AE54: 0 | AF54: 0 | BC54: =COUNTIFS(CHART!$A$35:$A$75,B54)+COUNTIFS(CHART!$A$35:$A$75,C54)+COUNTIFS(CHART!$A$35:$A$75,A54) -> 0 | BE54: Hypermarkets | BF54: Customer | BG54: Vegetables | BH54: Cruciferous | BI54: cauliflower
A55: Total | B55: Hypermarkets | C55: Customer | D55: Vegetables | E55: Cruciferous | F55: russels | G55: 0.8537609352 | H55: 7.401891521 | I55: 8.916833204 | J55: 13.86772758 | K55: 5.509117771 | L55: -1.168157434 | M55: 7.269777967 | N55: 1.919826878 | O55: 12.43199562 | P55: 1.386796385 | Q55: 7.913778576 | R55: 10.45178553 | S55: 10.51957957 | T55: 1.73161634 | U55: 9.018515893 | V55: 19.64177312 | W55: 0.264626735 | X55: 0 | Y55: 2.901324614 | Z55: 3.442451288 | AA55: 9.743184974 | AB55: 0.2840625242 | AC55: 7.048441639 | AD55: 14.75340171 | AE55: 7.967221311 | AF55: 0 | BC55: =COUNTIFS(CHART!$A$35:$A$75,B55)+COUNTIFS(CHART!$A$35:$A$75,C55)+COUNTIFS(CHART!$A$35:$A$75,A55) -> 0 | BE55: Hypermarkets | BF55: Customer | BG55: Vegetables | BH55: Cruciferous | BI55: russels
A56: Total | B56: Hypermarkets | C56: Customer | D56: Vegetables | E56: Leafy Green | F56: silverbeet | G56: 6.077055257 | H56: 0 | I56: 6.132820886 | J56: 0 | K56: 0 | L56: 0 | M56: 5.486276385 | N56: 1.87680317 | O56: 0 | P56: 0 | Q56: 0 | R56: 0 | S56: 3.777838171 | T56: 0 | U56: 4.423043894 | V56: 0 | W56: 0 | X56: 0 | Y56: 0 | Z56: 0 | AA56: 3.761077871 | AB56: 3.116358959 | AC56: 6.078964673 | AD56: 0 | AE56: 3.741219415 | AF56: 0 | BC56: =COUNTIFS(CHART!$A$35:$A$75,B56)+COUNTIFS(CHART!$A$35:$A$75,C56)+COUNTIFS(CHART!$A$35:$A$75,A56) -> 0 | BE56: Hypermarkets | BF56: Customer | BG56: Vegetables | BH56: Leafy Green | BI56: silverbeet
A57: Total | B57: Hypermarkets | C57: Customer | D57: Vegetables | E57: Marrow | F57: pumpkin | G57: 7.882690736 | H57: 4.221727538 | I57: 10.68127753 | J57: 9.733574899 | K57: 22.73495723 | L57: 18.31721093 | M57: 4.386421592 | N57: 17.84770099 | O57: 4.668526677 | P57: 11.82446959 | Q57: 6.735972855 | R57: 7.994978181 | S57: 22.7184647 | T57: 5.901475873 | U57: 27.69655163 | V57: 19.60299899 | W57: 20.60743097 | X57: 6.245528754 | Y57: 10.09912056 | Z57: 21.30451584 | AA57: 17.56640831 | AB57: 10.6708222 | AC57: 25.18186821 | AD57: 5.069605838 | AE57: 18.6018927 | AF57: 20.62998253 | BC57: =COUNTIFS(CHART!$A$35:$A$75,B57)+COUNTIFS(CHART!$A$35:$A$75,C57)+COUNTIFS(CHART!$A$35:$A$75,A57) -> 0 | BE57: Hypermarkets | BF57: Customer | BG57: Vegetables | BH57: Marrow | BI57: pumpkin
A58: Total | B58: Hypermarkets | C58: Customer | D58: Vegetables | E58: Cruciferous | F58: russels | G58: 0 | H58: 0 | I58: 2.071562615 | J58: 0 | K58: 0 | L58: 0 | M58: 0 | N58: 0 | O58: 0 | P58: 0 | Q58: 14.2075673 | R58: 0 | S58: 0 | T58: 0.5974095458 | U58: 4.361770389 | V58: 0 | W58: 0 | X58: 0 | Y58: 0 | Z58: 0 | AA58: 0 | AB58: 0 | AC58: 15.49625452 | AD58: 0 | AE58: 0 | AF58: 0 | BC58: =COUNTIFS(CHART!$A$35:$A$75,B58)+COUNTIFS(CHART!$A$35:$A$75,C58)+COUNTIFS(CHART!$A$35:$A$75,A58) -> 0 | BE58: Hypermarkets | BF58: Customer | BG58: Vegetables | BH58: Cruciferous | BI58: russels
A59: Total | B59: Hypermarkets | C59: Customer | D59: Vegetables | E59: Marrow | F59: cucumber | G59: 0 | H59: 0 | I59: 0 | J59: 0 | K59: 0 | L59: 0 | M59: 0 | N59: 0 | O59: 0 | P59: 80.57289042 | Q59: 6.986109286 | R59: 0 | S59: 0 | T59: 0 | U59: 0 | V59: 0 | W59: 0 | X59: 0 | Y59: 0 | Z59: 0 | AA59: 0 | AB59: 71.43362449 | AC59: 33.96504063 | AD59: 0 | AE59: 0 | AF59: 0 | BC59: =COUNTIFS(CHART!$A$35:$A$75,B59)+COUNTIFS(CHART!$A$35:$A$75,C59)+COUNTIFS(CHART!$A$35:$A$75,A59) -> 0 | BE59: Hypermarkets | BF59: Customer | BG59: Vegetables | BH59: Marrow | BI59: cucumber
A60: Total | B60: Hypermarkets | C60: Customer | D60: Vegetables | E60: Marrow | F60: zucchini | G60: 32.4740576 | H60: 43.24942415 | I60: 22.41775525 | J60: 0 | K60: 0 | L60: 0 | M60: 0 | N60: 0 | O60: 0 | P60: 0 | Q60: 0 | R60: 0 | S60: 57.87637354 | T60: 34.3696193 | U60: 2.522038956 | V60: 0 | W60: 0 | X60: 0 | Y60: 0 | Z60: 0 | AA60: 0 | AB60: 0 | AC60: 0 | AD60: 0 | AE60: 19.15283478 | AF60: 59.60131649 | BC60: =COUNTIFS(CHART!$A$35:$A$75,B60)+COUNTIFS(CHART!$A$35:$A$75,C60)+COUNTIFS(CHART!$A$35:$A$75,A60) -> 0 | BE60: Hypermarkets | BF60: Customer | BG60: Vegetables | BH60: Marrow | BI60: zucchini
A61: Total | B61: Hypermarkets | C61: Customer | D61: Vegetables | E61: Root | F61: potato | G61: 2.011499636 | H61: 4.589056649 | I61: 8.069151432 | J61: 3.013557933 | K61: 5.474471576 | L61: 3.334766677 | M61: 4.816142265 | N61: 4.097488457 | O61: 4.603853706 | P61: 7.412951385 | Q61: 14.07051646 | R61: 11.02271457 | S61: 0 | T61: 3.365042891 | U61: 6.912752007 | V61: 6.433225876 | W61: 7.907519928 | X61: 0.6215362324 | Y61: 3.786372461 | Z61: 7.97086118 | AA61: 1.979541628 | AB61: 11.11786179 | AC61: 9.736079617 | AD61: 5.181755453 | AE61: 0 | AF61: 0 | BC61: =COUNTIFS(CHART!$A$35:$A$75,B61)+COUNTIFS(CHART!$A$35:$A$75,C61)+COUNTIFS(CHART!$A$35:$A$75,A61) -> 0 | BE61: Hypermarkets | BF61: Customer | BG61: Vegetables | BH61: Root | BI61: potato
A62: Total | B62: Hypermarkets | C62: Customer | D62: Fruits | E62: Apples and pears | F62: pears | G62: 18.05779717 | H62: 30.60053535 | I62: 37.0279393 | J62: 18.39908211 | K62: 41.6692043 | L62: 31.70319417 | M62: 41.33452296 | N62: 53.80373875 | O62: 5.760873803 | P62: 37.92591364 | Q62: 24.53539982 | R62: 40.85313313 | S62: 20.10748431 | T62: 29.96145336 | U62: 21.30885848 | V62: 33.78912151 | W62: 44.51746405 | X62: 47.68071385 | Y62: 63.366339 | Z62: 43.17767781 | AA62: 9.433428031 | AB62: 33.65404004 | AC62: 3.923198204 | AD62: 34.1797488 | AE62: 16.16142907 | AF62: 44.00691758 | BC62: =COUNTIFS(CHART!$A$35:$A$75,B62)+COUNTIFS(CHART!$A$35:$A$75,C62)+COUNTIFS(CHART!$A$35:$A$75,A62) -> 0 | BE62: Hypermarkets | BF62: Customer | BG62: Fruits | BH62: Apples and pears | BI62: pears
A63: Total | B63: Hypermarkets | C63: Customer | D63: Fruits | E63: Citrus | F63: oranges | G63: 13.13398686 | H63: 10.06569119 | I63: 7.042674588 | J63: 44.28419271 | K63: 6.635067095 | L63: 2.367775096 | M63: 11.47434062 | N63: 27.78959897 | O63: 5.702918777 | P63: 7.274403766 | Q63: 8.395598022 | R63: 11.14481492 | S63: 40.25597602 | T63: 7.701307849 | U63: 30.29892592 | V63: 6.031441628 | W63: 10.22173485 | X63: 8.882647153 | Y63: 14.71775803 | Z63: 41.34171814 | AA63: 30.06224905 | AB63: 6.605570217 | AC63: 3.007443837 | AD63: 36.24378406 | AE63: 29.79464738 | AF63: 15.88250579 | BC63: =COUNTIFS(CHART!$A$35:$A$75,B63)+COUNTIFS(CHART!$A$35:$A$75,C63)+COUNTIFS(CHART!$A$35:$A$75,A63) -> 0 | BE63: Hypermarkets | BF63: Customer | BG63: Fruits | BH63: Citrus | BI63: oranges
A64: Total | B64: Hypermarkets | C64: Customer | D64: Fruits | E64: Citrus | F64: grapefruits | G64: 44.48516739 | H64: 19.13667377 | I64: 21.00695298 | J64: 21.4663073 | K64: 36.50266176 | L64: 21.19063648 | M64: 84.73316439 | N64: 11.41330734 | O64: 56.88523164 | P64: 19.70259077 | Q64: 36.91315979 | R64: 38.34072754 | S64: 47.01481397 | T64: 12.81605073 | U64: 49.28314412 | V64: 36.35104339 | W64: 31.78226399 | X64: 27.54607042 | Y64: 73.77382694 | Z64: 39.3572735 | AA64: 30.12131633 | AB64: 26.87117473 | AC64: 40.8089704 | AD64: 20.25966579 | AE64: 52.48343361 | AF64: 45.75972653 | BC64: =COUNTIFS(CHART!$A$35:$A$75,B64)+COUNTIFS(CHART!$A$35:$A$75,C64)+COUNTIFS(CHART!$A$35:$A$75,A64) -> 0 | BE64: Hypermarkets | BF64: Customer | BG64: Fruits | BH64: Citrus | BI64: grapefruits
A65: Total | B65: Hypermarkets | C65: Customer | D65: Fruits | E65: Citrus | F65: mandarins | G65: 95.41705089 | H65: 109.0492255 | I65: 44.16919546 | J65: 45.46338915 | K65: 91.23467093 | L65: 91.3095354 | M65: 39.67522513 | N65: 146.7665172 | O65: 50.86913402 | P65: 93.04290997 | Q65: 66.30397426 | R65: 19.32204667 | S65: 90.48661129 | T65: 58.55924427 | U65: 73.72351439 | V65: 35.57280995 | W65: 98.07486243 | X65: 94.81790859 | Y65: 58.56145344 | Z65: 84.16413245 | AA65: 22.54691154 | AB65: 80.93910388 | AC65: 73.67709765 | AD65: 23.41406507 | AE65: 84.84028804 | AF65: 35.02397532 | BC65: =COUNTIFS(CHART!$A$35:$A$75,B65)+COUNTIFS(CHART!$A$35:$A$75,C65)+COUNTIFS(CHART!$A$35:$A$75,A65) -> 0 | BE65: Hypermarkets | BF65: Customer | BG65: Fruits | BH65: Citrus | BI65: mandarins
A66: Total | B66: Hypermarkets | C66: Customer | D66: Fruits | E66: Citrus | F66: limes | G66: 68.71357473 | H66: 30.4348968 | I66: 57.81477551 | J66: 23.27142701 | K66: 34.19622364 | L66: 57.24251886 | M66: 73.21614753 | N66: 27.94564342 | O66: 54.6290789 | P66: 27.01191865 | Q66: 56.77124974 | R66: 10.47880896 | S66: 58.00574637 | T66: 19.73282131 | U66: 59.06399256 | V66: 18.73749142 | W66: 46.20022157 | X66: 16.77032845 | Y66: 86.75056674 | Z66: 37.82407855 | AA66: 14.77643717 | AB66: 30.22862749 | AC66: 36.86960061 | AD66: 12.01540287 | AE66: 49.22998953 | AF66: 47.26894894 | BC66: =COUNTIFS(CHART!$A$35:$A$75,B66)+COUNTIFS(CHART!$A$35:$A$75,C66)+COUNTIFS(CHART!$A$35:$A$75,A66) -> 0 | BE66: Hypermarkets | BF66: Customer | BG66: Fruits | BH66: Citrus | BI66: limes
A67: Total | B67: Hypermarkets | C67: Customer | D67: Fruits | E67: Berries | F67: strawberries | G67: 24.40776142 | H67: 21.42360084 | I67: 21.38850864 | J67: 25.92077551 | K67: 52.01618518 | L67: 59.36935981 | M67: 74.34034278 | N67: 47.17586282 | O67: 52.32371209 | P67: 43.79572171 | Q67: 12.39485833 | R67: 24.39894251 | S67: 20.89266204 | T67: 58.50440868 | U67: 31.83198879 | V67: 24.22700095 | W67: 35.00677828 | X67: 64.59048691 | Y67: 37.58682934 | Z67: 65.34002968 | AA67: 24.48080943 | AB67: 25.32920008 | AC67: 16.95998198 | AD67: 28.84236069 | AE67: 45.43891791 | AF67: 51.12692771 | BC67: =COUNTIFS(CHART!$A$35:$A$75,B67)+COUNTIFS(CHART!$A$35:$A$75,C67)+COUNTIFS(CHART!$A$35:$A$75,A67) -> 0 | BE67: Hypermarkets | BF67: Customer | BG67: Fruits | BH67: Berries | BI67: strawberries
A68: Total | B68: Hypermarkets | C68: Customer | D68: Fruits | E68: Apples and pears | F68: apples | G68: 435.7151423 | H68: 382.6061266 | I68: 340.3732253 | J68: 391.6741916 | K68: 294.3227849 | L68: 337.2564648 | M68: 349.4502498 | N68: 299.4919098 | O68: 322.6852765 | P68: 309.3160357 | Q68: 401.6296381 | R68: 341.3451101 | S68: 357.2196909 | T68: 323.0791677 | U68: 304.5743134 | V68: 274.7026081 | W68: 493.4150809 | X68: 248.7910308 | Y68: 394.1188735 | Z68: 364.7312005 | AA68: 238.5282396 | AB68: 349.2141758 | AC68: 365.9847978 | AD68: 316.2622614 | AE68: 389.0858617 | AF68: 349.7295483 | BC68: =COUNTIFS(CHART!$A$35:$A$75,B68)+COUNTIFS(CHART!$A$35:$A$75,C68)+COUNTIFS(CHART!$A$35:$A$75,A68) -> 0 | BE68: Hypermarkets | BF68: Customer | BG68: Fruits | BH68: Apples and pears | BI68: apples
A69: Total | B69: Hypermarkets | C69: Customer | D69: Vegetables | E69: Leafy Green | F69: lettuce | G69: 45.22936126 | H69: 15.25184149 | I69: 7.668906503 | J69: 22.31336433 | K69: 10.14260366 | L69: 4.204577881 | M69: 73.11509434 | N69: 18.25939781 | O69: 42.00309381 | P69: 11.01667351 | Q69: 29.60144801 | R69: 28.38113879 | S69: 7.506669825 | T69: 6.925816859 | U69: 15.50267854 | V69: 5.797880551 | W69: 11.82687741 | X69: 17.05508689 | Y69: 31.61446991 | Z69: 6.669700322 | AA69: 11.93586349 | AB69: 10.43328747 | AC69: 74.10816488 | AD69: 30.37294304 | AE69: 48.40349517 | AF69: 12.49897524 | BC69: =COUNTIFS(CHART!$A$35:$A$75,B69)+COUNTIFS(CHART!$A$35:$A$75,C69)+COUNTIFS(CHART!$A$35:$A$75,A69) -> 0 | BE69: Hypermarkets | BF69: Customer | BG69: Vegetables | BH69: Leafy Green | BI69: lettuce
A70: Total | B70: Hypermarkets | C70: Customer | D70: Fruits | E70: Berries | F70: raspberries | G70: 379.8490147 | H70: 300.7215852 | I70: 636.223567 | J70: 415.0025891 | K70: 389.7157169 | L70: 297.333692 | M70: 624.9630915 | N70: 692.0050138 | O70: 403.1285517 | P70: 340.6673829 | Q70: 350.0721962 | R70: 619.6717674 | S70: 320.9375225 | T70: 348.7086292 | U70: 354.6092812 | V70: 620.9853804 | W70: 116.2774209 | X70: 478.5553847 | Y70: 500.9511613 | Z70: 287.3451132 | AA70: 515.4665521 | AB70: 379.6465294 | AC70: 265.7815593 | AD70: 326.7825596 | AE70: 316.4265033 | AF70: 365.9440768 | BC70: =COUNTIFS(CHART!$A$35:$A$75,B70)+COUNTIFS(CHART!$A$35:$A$75,C70)+COUNTIFS(CHART!$A$35:$A$75,A70) -> 0 | BE70: Hypermarkets | BF70: Customer | BG70: Fruits | BH70: Berries | BI70: raspberries
A71: Total | B71: Hypermarkets | C71: Customer | D71: Fruits | E71: Berries | F71: blueberries | G71: 2.448840605 | H71: 33.6155171 | I71: 18.50333661 | J71: 30.70851695 | K71: 21.02774913 | L71: 27.04026116 | M71: 44.30355328 | N71: 41.37972914 | O71: 17.03298337 | P71: 39.33083827 | Q71: 5.169243957 | R71: 87.97139947 | S71: 66.43442861 | T71: 10.08942042 | U71: 1.045721719 | V71: 47.2590222 | W71: 43.54233579 | X71: 3.571548382 | Y71: 59.25718153 | Z71: 10.73839176 | AA71: 44.35491995 | AB71: 15.83478268 | AC71: 36.64279661 | AD71: 25.49306336 | AE71: 71.51367403 | AF71: 37.99511897 | BC71: =COUNTIFS(CHART!$A$35:$A$75,B71)+COUNTIFS(CHART!$A$35:$A$75,C71)+COUNTIFS(CHART!$A$35:$A$75,A71) -> 0 | BE71: Hypermarkets | BF71: Customer | BG71: Fruits | BH71: Berries | BI71: blueberries
A72: Total | B72: Hypermarkets | C72: Customer | D72: Fruits | E72: Tropical and exotic | F72: bananas | G72: 4.732684253 | H72: 28.28887345 | I72: 55.74791011 | J72: 54.92318014 | K72: 65.78470244 | L72: 50.16672547 | M72: 44.17673896 | N72: 47.13975467 | O72: 66.2728373 | P72: 227.2864879 | Q72: 76.7108952 | R72: 65.177436 | S72: 22.76233533 | T72: 104.9337886 | U72: 74.17178041 | V72: 26.35429935 | W72: 49.98077678 | X72: 48.43106943 | Y72: 68.72965424 | Z72: 42.01849518 | AA72: 53.4651525 | AB72: 199.1326351 | AC72: 88.45012969 | AD72: 77.59794737 | AE72: 28.10711493 | AF72: 39.25921454 | BC72: =COUNTIFS(CHART!$A$35:$A$75,B72)+COUNTIFS(CHART!$A$35:$A$75,C72)+COUNTIFS(CHART!$A$35:$A$75,A72) -> 0 | BE72: Hypermarkets | BF72: Customer | BG72: Fruits | BH72: Tropical and exotic | BI72: bananas
A73: Total | B73: Hypermarkets | C73: Customer | D73: Vegetables | E73: Leafy Green | F73: spinach | G73: 44.52474133 | H73: 53.42660351 | I73: 58.47996061 | J73: 57.37901874 | K73: 60.63688818 | L73: 37.56706707 | M73: 101.3592081 | N73: 71.45444402 | O73: 58.85691134 | P73: 69.10373052 | Q73: 41.83647312 | R73: 65.01717437 | S73: 48.75065452 | T73: 72.50932685 | U73: 68.97003618 | V73: 53.54462137 | W73: 50.03365414 | X73: 66.59068201 | Y73: 95.53237765 | Z73: 59.40852553 | AA73: 54.33372236 | AB73: 90.20612014 | AC73: 33.28095152 | AD73: 96.63854021 | AE73: 69.80069751 | AF73: 60.18000961 | BC73: =COUNTIFS(CHART!$A$35:$A$75,B73)+COUNTIFS(CHART!$A$35:$A$75,C73)+COUNTIFS(CHART!$A$35:$A$75,A73) -> 0 | BE73: Hypermarkets | BF73: Customer | BG73: Vegetables | BH73: Leafy Green | BI73: spinach
A74: Total | B74: Hypermarkets | C74: Customer | D74: Vegetables | E74: Cruciferous | F74: cauliflower | G74: 13.45649673 | H74: 15.80152853 | I74: 11.9043396 | J74: 15.00050619 | K74: 16.0194723 | L74: 8.584214998 | M74: 25.18709275 | N74: 13.89221343 | O74: 20.1818822 | P74: 14.64636164 | Q74: 16.65817654 | R74: 19.50679015 | S74: 12.26760266 | T74: 16.06298057 | U74: 22.26727898 | V74: 8.779326434 | W74: 9.767685795 | X74: 18.70179745 | Y74: 29.93111058 | Z74: 11.30974677 | AA74: 18.5541038 | AB74: 18.87503299 | AC74: 5.079851387 | AD74: 33.84195408 | AE74: 13.90074264 | AF74: 16.65973315 | BC74: =COUNTIFS(CHART!$A$35:$A$75,B74)+COUNTIFS(CHART!$A$35:$A$75,C74)+COUNTIFS(CHART!$A$35:$A$75,A74) -> 0 | BE74: Hypermarkets | BF74: Customer | BG74: Vegetables | BH74: Cruciferous | BI74: cauliflower
A75: Total | B75: Hypermarkets | C75: Customer | D75: Vegetables | E75: Cruciferous | F75: russels | G75: 64.40414922 | H75: 21.2471328 | I75: 42.31354394 | J75: 28.729011 | K75: 22.06815833 | L75: 42.77790326 | M75: 43.04006931 | N75: 45.25874023 | O75: 18.51480183 | P75: 27.94594599 | Q75: 39.00410872 | R75: 35.52650864 | S75: 65.29072616 | T75: 25.88555245 | U75: 31.32813825 | V75: 41.21110417 | W75: 26.42481417 | X75: 31.8462247 | Y75: 50.34879165 | Z75: 46.39437745 | AA75: 15.75304554 | AB75: 34.09891312 | AC75: 42.99620968 | AD75: 40.61749158 | AE75: 53.57574349 | AF75: 26.38167875 | BC75: =COUNTIFS(CHART!$A$35:$A$75,B75)+COUNTIFS(CHART!$A$35:$A$75,C75)+COUNTIFS(CHART!$A$35:$A$75,A75) -> 0 | BE75: Hypermarkets | BF75: Customer | BG75: Vegetables | BH75: Cruciferous | BI75: russels
A76: Total | B76: Hypermarkets | C76: Customer | D76: Vegetables | E76: Leafy Green | F76: silverbeet | G76: 5.072072608 | H76: 6.275186751 | I76: 8.236724176 | J76: 6.472362778 | K76: 7.584005748 | L76: 7.245515817 | M76: 7.962686462 | N76: 14.54342064 | O76: 7.427918036 | P76: 8.520037639 | Q76: 23.43606866 | R76: 21.92601805 | S76: 5.687682662 | T76: 7.746603811 | U76: 8.448692206 | V76: 9.30977998 | W76: 5.664715231 | X76: 5.018538826 | Y76: 11.62250919 | Z76: 5.575241846 | AA76: 9.670589837 | AB76: 7.020411433 | AC76: 13.10042964 | AD76: 33.39984507 | AE76: 0 | AF76: 3.990904832 | BC76: =COUNTIFS(CHART!$A$35:$A$75,B76)+COUNTIFS(CHART!$A$35:$A$75,C76)+COUNTIFS(CHART!$A$35:$A$75,A76) -> 0 | BE76: Hypermarkets | BF76: Customer | BG76: Vegetables | BH76: Leafy Green | BI76: silverbeet
A77: Total | B77: Hypermarkets | C77: Customer | D77: Vegetables | E77: Marrow | F77: pumpkin | G77: 25.74030126 | H77: 9.153109732 | I77: 11.47871972 | J77: 15.94168692 | K77: 22.87798603 | L77: 50.28606622 | M77: 24.73566936 | N77: 33.25059657 | O77: 21.48133212 | P77: 30.59414799 | Q77: 16.1782368 | R77: 19.2792426 | S77: 28.75002892 | T77: 22.80066507 | U77: 17.72203377 | V77: 17.88887458 | W77: 28.61466654 | X77: 12.9023896 | Y77: 27.79438357 | Z77: 17.67487338 | AA77: 30.04985711 | AB77: 22.33968088 | AC77: 18.32279031 | AD77: 91.96933558 | AE77: 17.6708417 | AF77: 14.42126454 | BC77: =COUNTIFS(CHART!$A$35:$A$75,B77)+COUNTIFS(CHART!$A$35:$A$75,C77)+COUNTIFS(CHART!$A$35:$A$75,A77) -> 0 | BE77: Hypermarkets | BF77: Customer | BG77: Vegetables | BH77: Marrow | BI77: pumpkin
A78: Total | B78: Hypermarkets | C78: Customer | D78: Vegetables | E78: Cruciferous | F78: russels | G78: 0 | H78: 0 | I78: 23.79940178 | J78: 0 | K78: 0 | L78: 0 | M78: 0 | N78: 0 | O78: 0 | P78: 0 | Q78: 5.94242814 | R78: 6.715512904 | S78: 0 | T78: 4.441428055 | U78: 10.18254491 | V78: 0 | W78: 0 | X78: 0 | Y78: 0 | Z78: 0 | AA78: 0 | AB78: 0 | AC78: 4.205073191 | AD78: 8.809852376 | AE78: 0 | AF78: 0 | BC78: =COUNTIFS(CHART!$A$35:$A$75,B78)+COUNTIFS(CHART!$A$35:$A$75,C78)+COUNTIFS(CHART!$A$35:$A$75,A78) -> 0 | BE78: Hypermarkets | BF78: Customer | BG78: Vegetables | BH78: Cruciferous | BI78: russels
A79: Total | B79: Hypermarkets | C79: Customer | D79: Vegetables | E79: Marrow | F79: cucumber | G79: 2.083112575 | H79: 0 | I79: 0 | J79: 0 | K79: 0 | L79: 0 | M79: 0 | N79: 0 | O79: 48.29580631 | P79: 520.9193795 | Q79: 93.52873255 | R79: 0.5446219061 | S79: 0 | T79: 0 | U79: 0 | V79: 0 | W79: 0 | X79: 0 | Y79: 0 | Z79: -0.008078758108 | AA79: 128.4921279 | AB79: 541.5980976 | AC79: 22.27260937 | AD79: -0.07234099511 | AE79: -0.06088534259 | AF79: 0 | BC79: =COUNTIFS(CHART!$A$35:$A$75,B79)+COUNTIFS(CHART!$A$35:$A$75,C79)+COUNTIFS(CHART!$A$35:$A$75,A79) -> 0 | BE79: Hypermarkets | BF79: Customer | BG79: Vegetables | BH79: Marrow | BI79: cucumber
A80: Total | B80: Hypermarkets | C80: Customer | D80: Vegetables | E80: Marrow | F80: zucchini | G80: 99.49664226 | H80: 505.6290947 | I80: 52.67207845 | J80: 0 | K80: 0 | L80: 0 | M80: 0 | N80: 0 | O80: 0 | P80: 0 | Q80: 0 | R80: 0 | S80: 317.0978322 | T80: 205.2700892 | U80: 24.61934529 | V80: 0 | W80: 0 | X80: 0 | Y80: 0 | Z80: 0 | AA80: 0 | AB80: 0 | AC80: 0 | AD80: 0 | AE80: 173.6076927 | AF80: 352.8014829 | BC80: =COUNTIFS(CHART!$A$35:$A$75,B80)+COUNTIFS(CHART!$A$35:$A$75,C80)+COUNTIFS(CHART!$A$35:$A$75,A80) -> 0 | BE80: Hypermarkets | BF80: Customer | BG80: Vegetables | BH80: Marrow | BI80: zucchini
A81: Total | B81: Hypermarkets | C81: Customer | D81: Vegetables | E81: Root | F81: potato | G81: 0 | H81: 16.90289171 | I81: 19.16283759 | J81: 14.80445878 | K81: 27.35772641 | L81: 11.54204493 | M81: 16.38053058 | N81: 13.58192046 | O81: 28.85576404 | P81: 19.27461772 | Q81: 28.05764005 | R81: 30.20334704 | S81: 4.575764872 | T81: 14.8785263 | U81: 27.13273128 | V81: 12.64473006 | W81: 11.71704259 | X81: 18.14134497 | Y81: 18.83266976 | Z81: 18.02612371 | AA81: 17.14055924 | AB81: 25.07276685 | AC81: 45.38251732 | AD81: 16.5064692 | AE81: 0 | AF81: 0 | BC81: =COUNTIFS(CHART!$A$35:$A$75,B81)+COUNTIFS(CHART!$A$35:$A$75,C81)+COUNTIFS(CHART!$A$35:$A$75,A81) -> 0 | BE81: Hypermarkets | BF81: Customer | BG81: Vegetables | BH81: Root | BI81: potato
A82: Total | B82: Discounters | C82: Customer | D82: Fruits | E82: Apples and pears | F82: pears | G82: 0 | H82: 0 | I82: 0 | J82: 0 | K82: 0 | L82: 0 | M82: 0 | N82: 0 | O82: 0 | P82: 0 | Q82: 0 | R82: 0 | S82: 0 | T82: 6.691660395 | U82: 0 | V82: 0 | W82: 0 | X82: 6.165624667 | Y82: 0 | Z82: 5.94340341 | AA82: 0 | AB82: 5.998114095 | AC82: 6.554764459 | AD82: 0 | AE82: 8.544716201 | AF82: 0 | BC82: =COUNTIFS(CHART!$A$35:$A$75,B82)+COUNTIFS(CHART!$A$35:$A$75,C82)+COUNTIFS(CHART!$A$35:$A$75,A82) -> 0 | BE82: Discounters | BF82: Customer | BG82: Fruits | BH82: Apples and pears | BI82: pears
A83: Total | B83: Discounters | C83: Customer | D83: Fruits | E83: Citrus | F83: grapefruits | G83: 0 | H83: 0 | I83: 0 | J83: 0 | K83: 0 | L83: 0 | M83: 0 | N83: 0 | O83: 0 | P83: 0 | Q83: 0 | R83: 0 | S83: 0 | T83: 0 | U83: 0 | V83: 14.29997255 | W83: 16.31522051 | X83: 27.97570959 | Y83: 24.62133943 | Z83: 9.136501744 | AA83: 26.56496537 | AB83: 28.41545162 | AC83: 24.44188581 | AD83: 4.940938182 | AE83: 25.07672493 | AF83: 6.395300927 | BC83: =COUNTIFS(CHART!$A$35:$A$75,B83)+COUNTIFS(CHART!$A$35:$A$75,C83)+COUNTIFS(CHART!$A$35:$A$75,A83) -> 0 | BE83: Discounters | BF83: Customer | BG83: Fruits | BH83: Citrus | BI83: grapefruits
A84: Total | B84: Discounters | C84: Customer | D84: Fruits | E84: Citrus | F84: mandarins | G84: 0 | H84: 0 | I84: 0 | J84: 0 | K84: 0 | L84: 0 | M84: 0 | N84: 0 | O84: 0 | P84: 0 | Q84: 0 | R84: 0 | S84: 0 | T84: 0 | U84: 9.782234135 | V84: 16.34650114 | W84: 19.15261826 | X84: 11.04123358 | Y84: 48.06768535 | Z84: 9.307509683 | AA84: 33.40023756 | AB84: 31.92188446 | AC84: 2.780196945 | AD84: 24.29528637 | AE84: 17.55314075 | AF84: 10.61986366 | BC84: =COUNTIFS(CHART!$A$35:$A$75,B84)+COUNTIFS(CHART!$A$35:$A$75,C84)+COUNTIFS(CHART!$A$35:$A$75,A84) -> 0 | BE84: Discounters | BF84: Customer | BG84: Fruits | BH84: Citrus | BI84: mandarins
A85: Total | B85: Discounters | C85: Customer | D85: Fruits | E85: Citrus | F85: limes | G85: 0 | H85: 0 | I85: 0 | J85: 0 | K85: 0 | L85: 0 | M85: 0 | N85: 0 | O85: 0 | P85: 0 | Q85: 0 | R85: 0 | S85: 0 | T85: 10.49590594 | U85: 0 | V85: 0 | W85: 10.79944346 | X85: 0.006190168702 | Y85: 6.317139929 | Z85: 15.61666843 | AA85: 12.12629774 | AB85: 7.112060637 | AC85: 13.9785429 | AD85: 2.58621538 | AE85: 8.7483421 | AF85: 6.897961042 | BC85: =COUNTIFS(CHART!$A$35:$A$75,B85)+COUNTIFS(CHART!$A$35:$A$75,C85)+COUNTIFS(CHART!$A$35:$A$75,A85) -> 0 | BE85: Discounters | BF85: Customer | BG85: Fruits | BH85: Citrus | BI85: limes
A86: Total | B86: Discounters | C86: Customer | D86: Fruits | E86: Berries | F86: strawberries | G86: 0 | H86: 0 | I86: 0 | J86: 0 | K86: 0 | L86: 0 | M86: 0 | N86: 0 | O86: 0 | P86: 0 | Q86: 0 | R86: 0 | S86: 0 | T86: 7.752067579 | U86: 0 | V86: 0 | W86: 0 | X86: 8.878366134 | Y86: 11.44454035 | Z86: 3.86131377 | AA86: 6.687159002 | AB86: 0 | AC86: 0 | AD86: 7.585882694 | AE86: 0 | AF86: 12.24137435 | BC86: =COUNTIFS(CHART!$A$35:$A$75,B86)+COUNTIFS(CHART!$A$35:$A$75,C86)+COUNTIFS(CHART!$A$35:$A$75,A86) -> 0 | BE86: Discounters | BF86: Customer | BG86: Fruits | BH86: Berries | BI86: strawberries
A87: Total | B87: Discounters | C87: Customer | D87: Fruits | E87: Apples and pears | F87: apples | G87: 16.61072765 | H87: 59.77035669 | I87: 48.87903382 | J87: 143.158078 | K87: 45.25051141 | L87: 141.9633442 | M87: 174.3423557 | N87: 168.9695599 | O87: 5.27029487 | P87: 134.8400113 | Q87: 192.8094177 | R87: 39.99419356 | S87: 122.3910721 | T87: 135.6754522 | U87: 128.9327133 | V87: 174.8172406 | W87: 137.5688901 | X87: 160.4506655 | Y87: 33.89145806 | Z87: 100.8152274 | AA87: 103.3947499 | AB87: 102.4923935 | AC87: 140.4344202 | AD87: 111.3615731 | AE87: 118.8445889 | AF87: 123.6074824 | BC87: =COUNTIFS(CHART!$A$35:$A$75,B87)+COUNTIFS(CHART!$A$35:$A$75,C87)+COUNTIFS(CHART!$A$35:$A$75,A87) -> 0 | BE87: Discounters | BF87: Customer | BG87: Fruits | BH87: Apples and pears | BI87: apples
A88: Total | B88: Discounters | C88: Customer | D88: Vegetables | E88: Leafy Green | F88: lettuce | G88: 0 | H88: 0 | I88: 0 | J88: 0 | K88: 0 | L88: 0 | M88: 0 | N88: 0 | O88: 0 | P88: 0 | Q88: 0 | R88: 0 | S88: 0 | T88: 0 | U88: 0 | V88: 0 | W88: 0 | X88: 0 | Y88: 0 | Z88: 0 | AA88: 0 | AB88: 0 | AC88: 0 | AD88: 0 | AE88: 0 | AF88: 0 | BC88: =COUNTIFS(CHART!$A$35:$A$75,B88)+COUNTIFS(CHART!$A$35:$A$75,C88)+COUNTIFS(CHART!$A$35:$A$75,A88) -> 0 | BE88: Discounters | BF88: Customer | BG88: Vegetables | BH88: Leafy Green | BI88: lettuce
A89: Total | B89: Discounters | C89: Customer | D89: Fruits | E89: Berries | F89: raspberries | G89: 23.06630518 | H89: 48.99126826 | I89: 50.36607243 | J89: 83.13030695 | K89: 156.1798175 | L89: 113.3346244 | M89: 38.79107306 | N89: 160.1443218 | O89: 106.0772757 | P89: 12.66380745 | Q89: 205.2027396 | R89: 193.7581437 | S89: 140.4727568 | T89: 96.34142624 | U89: 52.79135727 | V89: 137.1660914 | W89: 10.31335556 | X89: 12.05156091 | Y89: 162.1531703 | Z89: 56.35462588 | AA89: 146.2010465 | AB89: 148.6864524 | AC89: 155.578432 | AD89: 13.06025148 | AE89: 131.1106591 | AF89: 6.424484695 | BC89: =COUNTIFS(CHART!$A$35:$A$75,B89)+COUNTIFS(CHART!$A$35:$A$75,C89)+COUNTIFS(CHART!$A$35:$A$75,A89) -> 0 | BE89: Discounters | BF89: Customer | BG89: Fruits | BH89: Berries | BI89: raspberries
A90: Total | B90: Discounters | C90: Customer | D90: Fruits | E90: Berries | F90: blueberries | G90: 0 | H90: 0 | I90: 0 | J90: 0 | K90: 0 | L90: 0 | M90: 0 | N90: 0 | O90: 0 | P90: 0 | Q90: 0 | R90: 0 | S90: 0 | T90: 0 | U90: 0 | V90: 0 | W90: 0 | X90: 0 | Y90: 0 | Z90: 0 | AA90: 0 | AB90: 0 | AC90: 0 | AD90: 0 | AE90: 0 | AF90: 0 | BC90: =COUNTIFS(CHART!$A$35:$A$75,B90)+COUNTIFS(CHART!$A$35:$A$75,C90)+COUNTIFS(CHART!$A$35:$A$75,A90) -> 0 | BE90: Discounters | BF90: Customer | BG90: Fruits | BH90: Berries | BI90: blueberries
A91: Total | B91: Discounters | C91: Customer | D91: Fruits | E91: Tropical and exotic | F91: bananas | G91: 0 | H91: 0 | I91: 0 | J91: 0 | K91: 0 | L91: 0 | M91: 0 | N91: 0 | O91: 0 | P91: 0 | Q91: 0 | R91: 0 | S91: 0 | T91: 0 | U91: 0 | V91: 0 | W91: 0 | X91: 0 | Y91: 0 | Z91: 0 | AA91: 0 | AB91: 0 | AC91: 0 | AD91: 0 | AE91: 0 | AF91: 0 | BC91: =COUNTIFS(CHART!$A$35:$A$75,B91)+COUNTIFS(CHART!$A$35:$A$75,C91)+COUNTIFS(CHART!$A$35:$A$75,A91) -> 0 | BE91: Discounters | BF91: Customer | BG91: Fruits | BH91: Tropical and exotic | BI91: bananas
A92: Total | B92: Discounters | C92: Customer | D92: Vegetables | E92: Cruciferous | F92: russels | G92: 0 | H92: 0 | I92: 0 | J92: 0 | K92: 0 | L92: 0 | M92: 0 | N92: 0 | O92: 0 | P92: 0 | Q92: 0 | R92: 0 | S92: 0 | T92: 0 | U92: 0 | V92: 16.60224361 | W92: 10.49744933 | X92: 0 | Y92: 0 | Z92: 0 | AA92: 13.98036699 | AB92: 10.95739454 | AC92: 13.17425212 | AD92: 6.442659243 | AE92: 5.148434236 | AF92: 4.821449138 | BC92: =COUNTIFS(CHART!$A$35:$A$75,B92)+COUNTIFS(CHART!$A$35:$A$75,C92)+COUNTIFS(CHART!$A$35:$A$75,A92) -> 0 | BE92: Discounters | BF92: Customer | BG92: Vegetables | BH92: Cruciferous | BI92: russels
A93: Total | B93: Discounters | C93: Customer | D93: Vegetables | E93: Marrow | F93: pumpkin | G93: 0 | H93: 0 | I93: 0 | J93: 0 | K93: 0 | L93: 0 | M93: 0 | N93: 0 | O93: 0 | P93: 0 | Q93: 0 | R93: 0 | S93: 0 | T93: 0 | U93: 0 | V93: 11.75685336 | W93: 12.76619766 | X93: 14.23763462 | Y93: 21.7342977 | Z93: 4.573290972 | AA93: 12.60783431 | AB93: 16.31339806 | AC93: 9.567226853 | AD93: 3.040457993 | AE93: 14.53159038 | AF93: 6.567196711 | BC93: =COUNTIFS(CHART!$A$35:$A$75,B93)+COUNTIFS(CHART!$A$35:$A$75,C93)+COUNTIFS(CHART!$A$35:$A$75,A93) -> 0 | BE93: Discounters | BF93: Customer | BG93: Vegetables | BH93: Marrow | BI93: pumpkin
A94: Total | B94: Discounters | C94: Customer | D94: Vegetables | E94: Marrow | F94: cucumber | G94: 0 | H94: 0 | I94: 0 | J94: 0 | K94: 0 | L94: 0 | M94: 0 | N94: 0 | O94: 0 | P94: 22.76814351 | Q94: 11.2928318 | R94: 0 | S94: 0 | T94: 0 | U94: 0 | V94: 0 | W94: 0 | X94: 0 | Y94: 0 | Z94: 0 | AA94: 0 | AB94: 19.54501396 | AC94: 19.94604973 | AD94: 0 | AE94: 0 | AF94: 0 | BC94: =COUNTIFS(CHART!$A$35:$A$75,B94)+COUNTIFS(CHART!$A$35:$A$75,C94)+COUNTIFS(CHART!$A$35:$A$75,A94) -> 0 | BE94: Discounters | BF94: Customer | BG94: Vegetables | BH94: Marrow | BI94: cucumber
A95: Total | B95: Discounters | C95: Customer | D95: Vegetables | E95: Marrow | F95: zucchini | G95: 0 | H95: 8.338684491 | I95: 31.30698632 | J95: 0 | K95: 0 | L95: 0 | M95: 0 | N95: 0 | O95: 0 | P95: 0 | Q95: 0 | R95: 0 | S95: 0 | T95: 42.78575568 | U95: 11.24089951 | V95: 0 | W95: 0 | X95: 0 | Y95: 0 | Z95: 0 | AA95: 0 | AB95: 0 | AC95: 0 | AD95: 0 | AE95: 0 | AF95: 0 | BC95: =COUNTIFS(CHART!$A$35:$A$75,B95)+COUNTIFS(CHART!$A$35:$A$75,C95)+COUNTIFS(CHART!$A$35:$A$75,A95) -> 0 | BE95: Discounters | BF95: Customer | BG95: Vegetables | BH95: Marrow | BI95: zucchini
A96: Total | B96: Discounters | C96: Customer | D96: Fruits | E96: Apples and pears | F96: pears | G96: 0 | H96: 0 | I96: 0 | J96: 0 | K96: 0 | L96: 17.48264597 | M96: 0 | N96: 0 | O96: 0 | P96: 0 | Q96: 0 | R96: 10.84885356 | S96: 0 | T96: 0 | U96: 0 | V96: 0 | W96: 0 | X96: 0 | Y96: 0 | Z96: 0 | AA96: 0 | AB96: 0 | AC96: 0 | AD96: 0 | AE96: 0 | AF96: 0 | BC96: =COUNTIFS(CHART!$A$35:$A$75,B96)+COUNTIFS(CHART!$A$35:$A$75,C96)+COUNTIFS(CHART!$A$35:$A$75,A96) -> 0 | BE96: Discounters | BF96: Customer | BG96: Fruits | BH96: Apples and pears | BI96: pears
A97: Total | B97: Discounters | C97: Customer | D97: Fruits | E97: Citrus | F97: oranges | G97: 0 | H97: 11.8356377 | I97: 0 | J97: 9.408372718 | K97: 0 | L97: 0 | M97: 4.109977679 | N97: 9.217380217 | O97: 6.044865676 | P97: 0 | Q97: 0 | R97: 12.02387815 | S97: 0 | T97: 11.40302433 | U97: 0 | V97: 5.954264679 | W97: 0 | X97: 0 | Y97: 8.337741183 | Z97: 0 | AA97: 6.755082459 | AB97: 0 | AC97: 0 | AD97: 6.7772651 | AE97: 0 | AF97: 3.554419149 | BC97: =COUNTIFS(CHART!$A$35:$A$75,B97)+COUNTIFS(CHART!$A$35:$A$75,C97)+COUNTIFS(CHART!$A$35:$A$75,A97) -> 0 | BE97: Discounters | BF97: Customer | BG97: Fruits | BH97: Citrus | BI97: oranges
A98: Total | B98: Discounters | C98: Customer | D98: Fruits | E98: Citrus | F98: grapefruits | G98: 20.09344719 | H98: 0.2832768882 | I98: 7.535763145 | J98: 14.40787029 | K98: 0.06298485672 | L98: 13.55894848 | M98: 0.3167325642 | N98: 12.5290599 | O98: 1.166029875 | P98: 5.003856861 | Q98: 3.973071619 | R98: 12.97356825 | S98: 18.76168785 | T98: 0.5146910726 | U98: 8.509518521 | V98: 9.420249417 | W98: 0.2558709621 | X98: 10.05217155 | Y98: 0.4461806426 | Z98: 12.53172994 | AA98: 0.188198316 | AB98: 11.68472748 | AC98: 1.259688921 | AD98: 14.77171858 | AE98: 18.06387771 | AF98: 0.3418569701 | BC98: =COUNTIFS(CHART!$A$35:$A$75,B98)+COUNTIFS(CHART!$A$35:$A$75,C98)+COUNTIFS(CHART!$A$35:$A$75,A98) -> 0 | BE98: Discounters | BF98: Customer | BG98: Fruits | BH98: Citrus | BI98: grapefruits
A99: Total | B99: Discounters | C99: Customer | D99: Fruits | E99: Citrus | F99: mandarins | G99: 10.24348851 | H99: 20.28996345 | I99: 4.45242272 | J99: 5.043221029 | K99: 24.2112528 | L99: 16.89242167 | M99: 30.226572 | N99: 5.336573851 | O99: 21.60141017 | P99: 22.25888175 | Q99: 19.10360132 | R99: 32.69179469 | S99: 3.348136746 | T99: 39.27786997 | U99: 23.69525027 | V99: 21.84087859 | W99: 4.011911624 | X99: 53.18513266 | Y99: 0 | Z99: 19.32705351 | AA99: 21.98361096 | AB99: 6.17017371 | AC99: 20.90573673 | AD99: 19.63710868 | AE99: 21.71776724 | AF99: 9.878326128 | BC99: =COUNTIFS(CHART!$A$35:$A$75,B99)+COUNTIFS(CHART!$A$35:$A$75,C99)+COUNTIFS(CHART!$A$35:$A$75,A99) -> 0 | BE99: Discounters | BF99: Customer | BG99: Fruits | BH99: Citrus | BI99: mandarins
A100: Total | B100: Discounters | C100: Customer | D100: Fruits | E100: Citrus | F100: limes | G100: 9.866984755 | H100: 0.4202428796 | I100: 6.270052783 | J100: 9.410862329 | K100: 6.678270602 | L100: 0.2299066716 | M100: 8.702184638 | N100: 0.9251137126 | O100: 6.855082154 | P100: 5.01670897 | Q100: 1.044576129 | R100: 5.970458152 | S100: 9.92586518 | T100: 1.104465672 | U100: 7.56176102 | V100: 9.601129876 | W100: 0.6468595064 | X100: 9.423369622 | Y100: 9.106299597 | Z100: 5.158053689 | AA100: 5.797239782 | AB100: 1.07374077 | AC100: 4.896172408 | AD100: 5.698612108 | AE100: 8.066557694 | AF100: 0.2012291607 | BC100: =COUNTIFS(CHART!$A$35:$A$75,B100)+COUNTIFS(CHART!$A$35:$A$75,C100)+COUNTIFS(CHART!$A$35:$A$75,A100) -> 0 | BE100: Discounters | BF100: Customer | BG100: Fruits | BH100: Citrus | BI100: limes
A101: Total | B101: Discounters | C101: Customer | D101: Fruits | E101: Berries | F101: strawberries | G101: 3.675891923 | H101: 10.95863176 | I101: 15.30680852 | J101: 1.928797823 | K101: 5.579791983 | L101: 6.29171865 | M101: 25.07440867 | N101: 21.58623403 | O101: 2.405211403 | P101: 14.28458488 | Q101: 2.625569252 | R101: 15.55607578 | S101: 2.583154084 | T101: 19.88702159 | U101: 11.77035582 | V101: 0.4057675127 | W101: 3.557311123 | X101: 12.7912263 | Y101: 8.651772312 | Z101: 10.88893775 | AA101: 7.999282313 | AB101: 18.14666068 | AC101: 9.322175057 | AD101: 16.82720109 | AE101: 6.083109965 | AF101: 19.02655524 | BC101: =COUNTIFS(CHART!$A$35:$A$75,B101)+COUNTIFS(CHART!$A$35:$A$75,C101)+COUNTIFS(CHART!$A$35:$A$75,A101) -> 0 | BE101: Discounters | BF101: Customer | BG101: Fruits | BH101: Berries | BI101: strawberries
A102: Total | B102: Discounters | C102: Customer | D102: Fruits | E102: Apples and pears | F102: apples | G102: 314.5574546 | H102: 103.2524087 | I102: 25.68913668 | J102: 172.9049242 | K102: 40.49376274 | L102: 215.3731273 | M102: -7.454556747 | N102: 1.745823535 | O102: 130.8473295 | P102: 48.92308281 | Q102: 327.5292464 | R102: 247.986891 | S102: 57.98014704 | T102: 77.78842308 | U102: 220.7830255 | V102: 89.73724978 | W102: 83.98501116 | X102: 295.8655391 | Y102: 9.506029537 | Z102: 3.537886594 | AA102: 185.6832945 | AB102: 0 | AC102: 206.6533394 | AD102: 128.0950124 | AE102: 5.527685694 | AF102: 20.25516503 | BC102: =COUNTIFS(CHART!$A$35:$A$75,B102)+COUNTIFS(CHART!$A$35:$A$75,C102)+COUNTIFS(CHART!$A$35:$A$75,A102) -> 0 | BE102: Discounters | BF102: Customer | BG102: Fruits | BH102: Apples and pears | BI102: apples
A103: Total | B103: Discounters | C103: Customer | D103: Vegetables | E103: Leafy Green | F103: lettuce | G103: -0.4413162195 | H103: 24.26236451 | I103: 0.8210030413 | J103: 0 | K103: 0.300903904 | L103: 0.3228725609 | M103: 0.9045798648 | N103: 1.070366636 | O103: 0.7762987188 | P103: 0.9104198753 | Q103: 12.29574631 | R103: 1.167983122 | S103: 0.1560772351 | T103: 28.04168006 | U103: 0 | V103: 24.96976047 | W103: 0.7603128502 | X103: 0.1342984227 | Y103: 0.2143194627 | Z103: 0.3204603581 | AA103: 0.3004553387 | AB103: 0.5771842192 | AC103: 10.21147387 | AD103: 0.4615392609 | AE103: 0.3091177924 | AF103: 25.71790431 | BC103: =COUNTIFS(CHART!$A$35:$A$75,B103)+COUNTIFS(CHART!$A$35:$A$75,C103)+COUNTIFS(CHART!$A$35:$A$75,A103) -> 0 | BE103: Discounters | BF103: Customer | BG103: Vegetables | BH103: Leafy Green | BI103: lettuce
A104: Total | B104: Discounters | C104: Customer | D104: Fruits | E104: Berries | F104: raspberries | G104: 441.2895376 | H104: 0 | I104: 174.6522841 | J104: 0 | K104: 0 | L104: 165.6203659 | M104: 0 | N104: 1.356366092 | O104: 30.27419976 | P104: 33.16162021 | Q104: 23.51669243 | R104: 191.6985348 | S104: 98.85978786 | T104: 12.05564045 | U104: 161.362922 | V104: 214.9940807 | W104: 190.4787056 | X104: 195.857781 | Y104: 0 | Z104: 16.58438364 | AA104: 106.4402798 | AB104: 50.08078704 | AC104: 213.4427032 | AD104: 92.90844338 | AE104: 15.67411551 | AF104: 11.45281885 | BC104: =COUNTIFS(CHART!$A$35:$A$75,B104)+COUNTIFS(CHART!$A$35:$A$75,C104)+COUNTIFS(CHART!$A$35:$A$75,A104) -> 0 | BE104: Discounters | BF104: Customer | BG104: Fruits | BH104: Berries | BI104: raspberries
A105: Total | B105: Discounters | C105: Customer | D105: Fruits | E105: Berries | F105: blueberries | G105: 0 | H105: 0 | I105: 0 | J105: 0 | K105: 0 | L105: 0 | M105: 0 | N105: 0 | O105: 0 | P105: 0 | Q105: 0 | R105: 0 | S105: 0 | T105: 0 | U105: 0 | V105: 0 | W105: 0 | X105: 0 | Y105: 0 | Z105: 0 | AA105: 0 | AB105: 0 | AC105: 0 | AD105: 0 | AE105: 0 | AF105: 0 | BC105: =COUNTIFS(CHART!$A$35:$A$75,B105)+COUNTIFS(CHART!$A$35:$A$75,C105)+COUNTIFS(CHART!$A$35:$A$75,A105) -> 0 | BE105: Discounters | BF105: Customer | BG105: Fruits | BH105: Berries | BI105: blueberries
A106: Total | B106: Discounters | C106: Customer | D106: Fruits | E106: Tropical and exotic | F106: bananas | G106: 0 | H106: 0 | I106: 0 | J106: 0 | K106: 0 | L106: 0 | M106: 0 | N106: 0 | O106: 0 | P106: 0 | Q106: 0 | R106: 0 | S106: 0 | T106: 0 | U106: 0 | V106: 0 | W106: 0 | X106: 0 | Y106: 0 | Z106: 0 | AA106: 0 | AB106: 0 | AC106: 0 | AD106: 0 | AE106: 0 | AF106: 0 | BC106: =COUNTIFS(CHART!$A$35:$A$75,B106)+COUNTIFS(CHART!$A$35:$A$75,C106)+COUNTIFS(CHART!$A$35:$A$75,A106) -> 0 | BE106: Discounters | BF106: Customer | BG106: Fruits | BH106: Tropical and exotic | BI106: bananas
A107: Total | B107: Discounters | C107: Customer | D107: Vegetables | E107: Leafy Green | F107: spinach | G107: 8.849390732 | H107: 12.21610062 | I107: 9.532421243 | J107: 1.56124703 | K107: 23.79268957 | L107: 3.775786567 | M107: 13.95421538 | N107: 11.03435826 | O107: 3.382785863 | P107: 5.032469872 | Q107: 5.371674603 | R107: 30.24904005 | S107: 5.700150758 | T107: 12.67343901 | U107: 17.16991323 | V107: 0.4301724303 | W107: 23.06782627 | X107: 3.071189486 | Y107: 10.72363467 | Z107: 6.219802606 | AA107: 2.856145265 | AB107: 8.310334837 | AC107: 13.47510572 | AD107: 29.95739734 | AE107: 6.195368459 | AF107: 8.759937401 | BC107: =COUNTIFS(CHART!$A$35:$A$75,B107)+COUNTIFS(CHART!$A$35:$A$75,C107)+COUNTIFS(CHART!$A$35:$A$75,A107) -> 0 | BE107: Discounters | BF107: Customer | BG107: Vegetables | BH107: Leafy Green | BI107: spinach
A108: Total | B108: Discounters | C108: Customer | D108: Vegetables | E108: Cruciferous | F108: cauliflower | G108: 1.344623347 | H108: 2.058869051 | I108: 1.615130092 | J108: 0.3464920891 | K108: 5.600096883 | L108: 1.076231494 | M108: 2.149526332 | N108: 1.713015896 | O108: 0.822278251 | P108: 0.7277478305 | Q108: 1.3812376 | R108: 6.216572664 | S108: 0.9006208235 | T108: 2.464428332 | U108: 3.440602918 | V108: 0.0822317274 | W108: 5.971320626 | X108: 0.1276561471 | Y108: 1.512160207 | Z108: 1.233455652 | AA108: 0.7224255124 | AB108: 1.34378202 | AC108: 4.219619503 | AD108: 5.98085768 | AE108: 1.357496625 | AF108: 1.933581373 | BC108: =COUNTIFS(CHART!$A$35:$A$75,B108)+COUNTIFS(CHART!$A$35:$A$75,C108)+COUNTIFS(CHART!$A$35:$A$75,A108) -> 0 | BE108: Discounters | BF108: Customer | BG108: Vegetables | BH108: Cruciferous | BI108: cauliflower
A109: Total | B109: Discounters | C109: Customer | D109: Vegetables | E109: Cruciferous | F109: russels | G109: 11.7010329 | H109: 0.4243594226 | I109: 1.145149669 | J109: 1.292865044 | K109: 8.703902971 | L109: 0.9514914576 | M109: 10.74631355 | N109: 2.817254215 | O109: 1.261684673 | P109: 2.057200008 | Q109: 1.734981048 | R109: 6.660679041 | S109: 8.250166378 | T109: 5.434406458 | U109: 0 | V109: 6.731944425 | W109: 1.653318561 | X109: 3.468641714 | Y109: 4.704733398 | Z109: 0.4442705321 | AA109: 1.294731175 | AB109: 3.358029964 | AC109: 5.087904331 | AD109: 7.185228507 | AE109: 7.041312417 | AF109: 1.711608207 | BC109: =COUNTIFS(CHART!$A$35:$A$75,B109)+COUNTIFS(CHART!$A$35:$A$75,C109)+COUNTIFS(CHART!$A$35:$A$75,A109) -> 0 | BE109: Discounters | BF109: Customer | BG109: Vegetables | BH109: Cruciferous | BI109: russels
A110: Total | B110: Discounters | C110: Customer | D110: Vegetables | E110: Leafy Green | F110: silverbeet | G110: 0.4994720827 | H110: 1.499922864 | I110: 1.776938063 | J110: 0.3767277712 | K110: 0.2601025533 | L110: 1.25154522 | M110: 0.5187825389 | N110: 0.6693802177 | O110: 1.360142585 | P110: 0.6180534488 | Q110: 1.771413856 | R110: 1.128604095 | S110: 1.247290484 | T110: 0.9811604495 | U110: 0.1900644544 | V110: 1.390176015 | W110: 0.6763078324 | X110: 1.253307127 | Y110: 2.00092511 | Z110: 0.3128035296 | AA110: 0.698157756 | AB110: 1.407999755 | AC110: 0.6968773286 | AD110: 1.949494156 | AE110: 1.437971468 | AF110: 0.3104080973 | BC110: =COUNTIFS(CHART!$A$35:$A$75,B110)+COUNTIFS(CHART!$A$35:$A$75,C110)+COUNTIFS(CHART!$A$35:$A$75,A110) -> 0 | BE110: Discounters | BF110: Customer | BG110: Vegetables | BH110: Leafy Green | BI110: silverbeet
A111: Total | B111: Discounters | C111: Customer | D111: Vegetables | E111: Marrow | F111: pumpkin | G111: 8.025381347 | H111: 0 | I111: 1.553571098 | J111: 5.878868845 | K111: 0 | L111: 8.047760499 | M111: 0 | N111: 4.049752976 | O111: 0.961893736 | P111: 6.291106049 | Q111: 0 | R111: 6.343346465 | S111: 7.811532582 | T111: 0 | U111: 4.993411276 | V111: 3.775225886 | W111: 0 | X111: 5.435977862 | Y111: 0.02653535836 | Z111: 5.369194623 | AA111: 0.0981438218 | AB111: 5.716236305 | AC111: 0.866866756 | AD111: 6.518481724 | AE111: 6.367178256 | AF111: 0.09909618727 | BC111: =COUNTIFS(CHART!$A$35:$A$75,B111)+COUNTIFS(CHART!$A$35:$A$75,C111)+COUNTIFS(CHART!$A$35:$A$75,A111) -> 0 | BE111: Discounters | BF111: Customer | BG111: Vegetables | BH111: Marrow | BI111: pumpkin
A112: Total | B112: Discounters | C112: Customer | D112: Vegetables | E112: Cruciferous | F112: russels | G112: 0 | H112: 0 | I112: 0 | J112: 0 | K112: 0 | L112: 0 | M112: 0 | N112: 0 | O112: 0 | P112: 1.906293998 | Q112: 0 | R112: 0 | S112: 0 | T112: 0 | U112: 0 | V112: 0 | W112: 0 | X112: 0 | Y112: 0 | Z112: 0 | AA112: 0 | AB112: 1.570635931 | AC112: 0 | AD112: 0 | AE112: 0 | AF112: 0 | BC112: =COUNTIFS(CHART!$A$35:$A$75,B112)+COUNTIFS(CHART!$A$35:$A$75,C112)+COUNTIFS(CHART!$A$35:$A$75,A112) -> 0 | BE112: Discounters | BF112: Customer | BG112: Vegetables | BH112: Cruciferous | BI112: russels
A113: Total | B113: Discounters | C113: Customer | D113: Vegetables | E113: Marrow | F113: cucumber | G113: 0 | H113: 0 | I113: 0 | J113: 0 | K113: 0 | L113: 0 | M113: 0 | N113: 0 | O113: 0.09152852839 | P113: 69.47276472 | Q113: 2.622457271 | R113: 0 | S113: 0 | T113: 0 | U113: 0 | V113: 0 | W113: 0 | X113: 0 | Y113: 0 | Z113: 0 | AA113: 0 | AB113: 70.38492997 | AC113: 0.04103142276 | AD113: 0 | AE113: 0 | AF113: 0 | BC113: =COUNTIFS(CHART!$A$35:$A$75,B113)+COUNTIFS(CHART!$A$35:$A$75,C113)+COUNTIFS(CHART!$A$35:$A$75,A113) -> 0 | BE113: Discounters | BF113: Customer | BG113: Vegetables | BH113: Marrow | BI113: cucumber
A114: Total | B114: Discounters | C114: Customer | D114: Vegetables | E114: Marrow | F114: zucchini | G114: 19.71713347 | H114: 47.3423429 | I114: 0.3506641949 | J114: 0 | K114: 0 | L114: 0 | M114: 0 | N114: 0 | O114: 0 | P114: 0 | Q114: 0 | R114: 0 | S114: 19.16543894 | T114: 51.62000186 | U114: 0.3226304612 | V114: 0 | W114: 0 | X114: 0 | Y114: 0 | Z114: 0 | AA114: 0 | AB114: 0 | AC114: 0 | AD114: 0 | AE114: 16.47668578 | AF114: 49.12626682 | BC114: =COUNTIFS(CHART!$A$35:$A$75,B114)+COUNTIFS(CHART!$A$35:$A$75,C114)+COUNTIFS(CHART!$A$35:$A$75,A114) -> 0 | BE114: Discounters | BF114: Customer | BG114: Vegetables | BH114: Marrow | BI114: zucchini
A115: Total | B115: Discounters | C115: Customer | D115: Vegetables | E115: Root | F115: potato | G115: 1.206796804 | H115: 1.88486988 | I115: 1.32478051 | J115: 1.219973782 | K115: 1.338232701 | L115: 1.316036013 | M115: 0.9569244334 | N115: 1.890764525 | O115: 1.392105927 | P115: 1.252630761 | Q115: 1.854902845 | R115: 2.731371348 | S115: 1.341652451 | T115: 3.042127041 | U115: 0 | V115: 1.344775084 | W115: 0.666555151 | X115: 1.322436881 | Y115: 1.726452339 | Z115: 0.662882916 | AA115: 1.331054444 | AB115: 2.004172395 | AC115: 1.245833278 | AD115: 4.867572416 | AE115: 0 | AF115: 5.582830633 | BC115: =COUNTIFS(CHART!$A$35:$A$75,B115)+COUNTIFS(CHART!$A$35:$A$75,C115)+COUNTIFS(CHART!$A$35:$A$75,A115) -> 0 | BE115: Discounters | BF115: Customer | BG115: Vegetables | BH115: Root | BI115: potato
A116: Total | B116: Discounters | C116: Customer | D116: Fruits | E116: Apples and pears | F116: pears | G116: 0 | H116: 0.02688799018 | I116: 0 | J116: 0 | K116: 27.12868949 | L116: 0 | M116: 0 | N116: 0 | O116: 0 | P116: 0 | Q116: 0 | R116: 0 | S116: 0 | T116: 0 | U116: 0.008672813473 | V116: 0 | W116: 0 | X116: 27.18755731 | Y116: 0 | Z116: 0 | AA116: 0.02065376564 | AB116: 0.02224195871 | AC116: 0 | AD116: 0.004590558048 | AE116: 0 | AF116: 0.004112073053 | BC116: =COUNTIFS(CHART!$A$35:$A$75,B116)+COUNTIFS(CHART!$A$35:$A$75,C116)+COUNTIFS(CHART!$A$35:$A$75,A116) -> 0 | BE116: Discounters | BF116: Customer | BG116: Fruits | BH116: Apples and pears | BI116: pears
A117: Total | B117: Discounters | C117: Customer | D117: Fruits | E117: Citrus | F117: oranges | G117: 18.22620181 | H117: 18.00984632 | I117: 15.75219005 | J117: 14.55967866 | K117: 22.71391395 | L117: 12.48939937 | M117: 19.41225249 | N117: 21.01782043 | O117: 14.69780665 | P117: 18.85466061 | Q117: 8.441244266 | R117: 11.26137309 | S117: 11.20280116 | T117: 10.62914192 | U117: 15.04186325 | V117: 10.47645107 | W117: 16.79635924 | X117: 9.289800689 | Y117: 20.36892585 | Z117: 14.78305917 | AA117: 11.9340635 | AB117: 13.66045506 | AC117: 12.94756551 | AD117: 9.472928801 | AE117: 8.927658529 | AF117: 0.6498045546 | BC117: =COUNTIFS(CHART!$A$35:$A$75,B117)+COUNTIFS(CHART!$A$35:$A$75,C117)+COUNTIFS(CHART!$A$35:$A$75,A117) -> 0 | BE117: Discounters | BF117: Customer | BG117: Fruits | BH117: Citrus | BI117: oranges
A118: Total | B118: Discounters | C118: Customer | D118: Fruits | E118: Citrus | F118: grapefruits | G118: 0 | H118: 0 | I118: 0 | J118: 0 | K118: 0 | L118: 0 | M118: 0 | N118: 0 | O118: 0 | P118: 0.0452707517 | Q118: 0 | R118: 30.67287841 | S118: 0.02001808478 | T118: 0 | U118: 0 | V118: 0 | W118: 0 | X118: 0.0165633913 | Y118: 0 | Z118: 33.43085487 | AA118: 0.02815264266 | AB118: 0.005431358948 | AC118: 0 | AD118: 0 | AE118: 0.02266660622 | AF118: 0 | BC118: =COUNTIFS(CHART!$A$35:$A$75,B118)+COUNTIFS(CHART!$A$35:$A$75,C118)+COUNTIFS(CHART!$A$35:$A$75,A118) -> 0 | BE118: Discounters | BF118: Customer | BG118: Fruits | BH118: Citrus | BI118: grapefruits
A119: Total | B119: Discounters | C119: Customer | D119: Fruits | E119: Citrus | F119: mandarins | G119: 0 | H119: 0 | I119: 0 | J119: 0.04110543896 | K119: 0.02424581703 | L119: 0 | M119: 161.2342543 | N119: 0 | O119: 0 | P119: 0 | Q119: 0 | R119: 0.0548322296 | S119: 0.07309097613 | T119: 0 | U119: 0.006515531502 | V119: 0.07993552791 | W119: 0 | X119: 0 | Y119: 0 | Z119: 121.731987 | AA119: 0.03656359448 | AB119: 0.03648340918 | AC119: 0 | AD119: 0 | AE119: 0.003113582655 | AF119: 0.006238065916 | BC119: =COUNTIFS(CHART!$A$35:$A$75,B119)+COUNTIFS(CHART!$A$35:$A$75,C119)+COUNTIFS(CHART!$A$35:$A$75,A119) -> 0 | BE119: Discounters | BF119: Customer | BG119: Fruits | BH119: Citrus | BI119: mandarins
A120: Total | B120: Discounters | C120: Customer | D120: Fruits | E120: Citrus | F120: limes | G120: 0 | H120: 0 | I120: 0 | J120: 0.006649669308 | K120: 0 | L120: 0 | M120: 0 | N120: 0 | O120: 0 | P120: 0 | Q120: 0 | R120: 0.01285990882 | S120: 0 | T120: 0 | U120: 0 | V120: 0.006739935117 | W120: 0 | X120: 0 | Y120: 0 | Z120: 0 | AA120: 0.006726115322 | AB120: 0.006316210701 | AC120: 0 | AD120: 0 | AE120: 0 | AF120: 0 | BC120: =COUNTIFS(CHART!$A$35:$A$75,B120)+COUNTIFS(CHART!$A$35:$A$75,C120)+COUNTIFS(CHART!$A$35:$A$75,A120) -> 0 | BE120: Discounters | BF120: Customer | BG120: Fruits | BH120: Citrus | BI120: limes
A121: Total | B121: Discounters | C121: Customer | D121: Fruits | E121: Berries | F121: strawberries | G121: 0 | H121: 0 | I121: 0 | J121: 0 | K121: 0.05003467441 | L121: 0 | M121: 0 | N121: 0 | O121: 0 | P121: 0 | Q121: 0 | R121: 0 | S121: 0 | T121: 0 | U121: 0 | V121: 0 | W121: 0 | X121: 0 | Y121: 0 | Z121: 0 | AA121: 0 | AB121: 0 | AC121: 0 | AD121: 0 | AE121: 0 | AF121: 43.66251012 | BC121: =COUNTIFS(CHART!$A$35:$A$75,B121)+COUNTIFS(CHART!$A$35:$A$75,C121)+COUNTIFS(CHART!$A$35:$A$75,A121) -> 0 | BE121: Discounters | BF121: Customer | BG121: Fruits | BH121: Berries | BI121: strawberries
A122: Total | B122: Discounters | C122: Customer | D122: Fruits | E122: Apples and pears | F122: apples | G122: 0.2694542256 | H122: 0 | I122: 0 | J122: 0 | K122: 0 | L122: 0.0946521775 | M122: 0 | N122: 0 | O122: 167.5418662 | P122: 0 | Q122: 0 | R122: 0.02071684604 | S122: 242.921991 | T122: 62.7951028 | U122: -0.7890407639 | V122: 0 | W122: 0 | X122: 0 | Y122: 0 | Z122: 0 | AA122: 0 | AB122: 170.7974802 | AC122: 0 | AD122: 0 | AE122: 227.8748445 | AF122: 0.006851576414 | BC122: =COUNTIFS(CHART!$A$35:$A$75,B122)+COUNTIFS(CHART!$A$35:$A$75,C122)+COUNTIFS(CHART!$A$35:$A$75,A122) -> 0 | BE122: Discounters | BF122: Customer | BG122: Fruits | BH122: Apples and pears | BI122: apples
A123: Total | B123: Discounters | C123: Customer | D123: Vegetables | E123: Leafy Green | F123: lettuce | G123: 0 | H123: 0 | I123: 0 | J123: 0 | K123: 0 | L123: 0 | M123: 0 | N123: 0 | O123: 0 | P123: 0 | Q123: 0 | R123: 0 | S123: 0 | T123: 0 | U123: 0 | V123: 0 | W123: 0 | X123: 0 | Y123: 0 | Z123: 0 | AA123: 0.006768913764 | AB123: 0 | AC123: 0 | AD123: 0 | AE123: 0 | AF123: 0 | BC123: =COUNTIFS(CHART!$A$35:$A$75,B123)+COUNTIFS(CHART!$A$35:$A$75,C123)+COUNTIFS(CHART!$A$35:$A$75,A123) -> 0 | BE123: Discounters | BF123: Customer | BG123: Vegetables | BH123: Leafy Green | BI123: lettuce
A124: Total | B124: Discounters | C124: Customer | D124: Fruits | E124: Tropical and exotic | F124: mangoes | G124: 62.16762948 | H124: 133.9292756 | I124: 166.9396282 | J124: 95.59739356 | K124: 105.4083494 | L124: 122.8957782 | M124: 138.213523 | N124: 130.8529762 | O124: 128.8508798 | P124: 116.0079751 | Q124: 148.9520963 | R124: 123.138052 | S124: 82.70616742 | T124: 109.2801947 | U124: 136.0361907 | V124: 80.31629368 | W124: 143.2976965 | X124: 82.57246714 | Y124: 170.2651499 | Z124: 107.2079524 | AA124: 106.3136728 | AB124: 142.2821376 | AC124: 116.3618878 | AD124: 115.1803673 | AE124: 78.59261515 | AF124: 93.82042066 | BC124: =COUNTIFS(CHART!$A$35:$A$75,B124)+COUNTIFS(CHART!$A$35:$A$75,C124)+COUNTIFS(CHART!$A$35:$A$75,A124) -> 0 | BE124: Discounters | BF124: Customer | BG124: Fruits | BH124: Tropical and exotic | BI124: mangoes
A125: Total | B125: Discounters | C125: Customer | D125: Fruits | E125: Berries | F125: raspberries | G125: 0 | H125: 0.04002445467 | I125: 423.8703591 | J125: 0 | K125: 0 | L125: 0 | M125: 0 | N125: 0 | O125: 0 | P125: 0 | Q125: 282.9227949 | R125: 0.08466914519 | S125: 0.07614024333 | T125: 0 | U125: 263.6856886 | V125: 0 | W125: 0 | X125: 0 | Y125: 0 | Z125: 0 | AA125: 298.6107632 | AB125: 0 | AC125: 0 | AD125: 260.9379155 | AE125: 0 | AF125: 0 | BC125: =COUNTIFS(CHART!$A$35:$A$75,B125)+COUNTIFS(CHART!$A$35:$A$75,C125)+COUNTIFS(CHART!$A$35:$A$75,A125) -> 0 | BE125: Discounters | BF125: Customer | BG125: Fruits | BH125: Berries | BI125: raspberries
A126: Total | B126: Discounters | C126: Customer | D126: Vegetables | E126: Leafy Green | F126: spinach | G126: 0 | H126: 0 | I126: 0 | J126: 0.01770479592 | K126: 0.009230609367 | L126: 0.00904468798 | M126: 0 | N126: 0 | O126: 10.29530842 | P126: 3.186059752 | Q126: 1.571953397 | R126: 0 | S126: 0 | T126: 0 | U126: 0.007349832578 | V126: 0.006603501345 | W126: 0 | X126: 0 | Y126: 0 | Z126: 0 | AA126: 0.04233822915 | AB126: 0 | AC126: 2.157854314 | AD126: 0 | AE126: 0 | AF126: 0 | BC126: =COUNTIFS(CHART!$A$35:$A$75,B126)+COUNTIFS(CHART!$A$35:$A$75,C126)+COUNTIFS(CHART!$A$35:$A$75,A126) -> 0 | BE126: Discounters | BF126: Customer | BG126: Vegetables | BH126: Leafy Green | BI126: spinach
A127: Total | B127: Discounters | C127: Customer | D127: Vegetables | E127: Cruciferous | F127: cabbage | G127: 17.91697456 | H127: 31.54663763 | I127: 35.15547556 | J127: 40.78571328 | K127: 35.78131499 | L127: 31.6343984 | M127: 48.88091474 | N127: 61.17219829 | O127: 42.76268833 | P127: 44.0432727 | Q127: 38.18169114 | R127: 72.11511335 | S127: 30.3780688 | T127: 12.90883272 | U127: 37.69026228 | V127: 26.5160396 | W127: 41.03679919 | X127: 26.97912014 | Y127: 59.28263641 | Z127: 47.08951747 | AA127: 28.31575989 | AB127: 45.04323296 | AC127: 34.24051084 | AD127: 56.89540824 | AE127: 27.93587162 | AF127: 29.5178502 | BC127: =COUNTIFS(CHART!$A$35:$A$75,B127)+COUNTIFS(CHART!$A$35:$A$75,C127)+COUNTIFS(CHART!$A$35:$A$75,A127) -> 0 | BE127: Discounters | BF127: Customer | BG127: Vegetables | BH127: Cruciferous | BI127: cabbage
A128: Total | B128: Discounters | C128: Customer | D128: Vegetables | E128: Cruciferous | F128: cauliflower | G128: 0 | H128: 0 | I128: 0 | J128: 0 | K128: 0 | L128: 0 | M128: 0 | N128: 0 | O128: 0 | P128: 0 | Q128: 0 | R128: 0 | S128: 0 | T128: 0 | U128: 0 | V128: 0 | W128: 0 | X128: 0 | Y128: 0 | Z128: 0 | AA128: 0.008395942346 | AB128: 0 | AC128: 0 | AD128: 0 | AE128: 0 | AF128: 0 | BC128: =COUNTIFS(CHART!$A$35:$A$75,B128)+COUNTIFS(CHART!$A$35:$A$75,C128)+COUNTIFS(CHART!$A$35:$A$75,A128) -> 0 | BE128: Discounters | BF128: Customer | BG128: Vegetables | BH128: Cruciferous | BI128: cauliflower
A129: Total | B129: Discounters | C129: Customer | D129: Vegetables | E129: Cruciferous | F129: russels | G129: 0 | H129: 0 | I129: 0 | J129: 36.06199551 | K129: 0 | L129: 0 | M129: 0 | N129: 0 | O129: 0 | P129: 0 | Q129: 0 | R129: 0.007176518104 | S129: 0.007169325956 | T129: 0 | U129: 0 | V129: 38.55989757 | W129: 0 | X129: 0 | Y129: 0 | Z129: 0 | AA129: 0 | AB129: 0 | AC129: 0 | AD129: 0 | AE129: 0 | AF129: 0.00368313099 | BC129: =COUNTIFS(CHART!$A$35:$A$75,B129)+COUNTIFS(CHART!$A$35:$A$75,C129)+COUNTIFS(CHART!$A$35:$A$75,A129) -> 0 | BE129: Discounters | BF129: Customer | BG129: Vegetables | BH129: Cruciferous | BI129: russels
A130: Total | B130: Discounters | C130: Customer | D130: Vegetables | E130: Leafy Green | F130: silverbeet | G130: 0 | H130: 0 | I130: 0 | J130: 0 | K130: 0 | L130: 0 | M130: 0 | N130: 0 | O130: 0 | P130: 0 | Q130: 0 | R130: 0 | S130: 0 | T130: 0 | U130: 0 | V130: 0 | W130: 0 | X130: 0 | Y130: 0 | Z130: 0 | AA130: 0.005510191087 | AB130: 0 | AC130: 0 | AD130: 0 | AE130: 0 | AF130: 0 | BC130: =COUNTIFS(CHART!$A$35:$A$75,B130)+COUNTIFS(CHART!$A$35:$A$75,C130)+COUNTIFS(CHART!$A$35:$A$75,A130) -> 0 | BE130: Discounters | BF130: Customer | BG130: Vegetables | BH130: Leafy Green | BI130: silverbeet
A131: Total | B131: Discounters | C131: Customer | D131: Vegetables | E131: Marrow | F131: pumpkin | G131: 0 | H131: 0 | I131: 0 | J131: 0 | K131: 0 | L131: 0 | M131: 0 | N131: 0 | O131: 0 | P131: 0.03036586637 | Q131: 0.01086870202 | R131: 0.00805179249 | S131: 32.40925063 | T131: 0 | U131: 0 | V131: 0 | W131: 0 | X131: 0 | Y131: 0 | Z131: 0 | AA131: 0.007278573001 | AB131: 0 | AC131: 0 | AD131: 0 | AE131: 0.008269206238 | AF131: 96.20315374 | BC131: =COUNTIFS(CHART!$A$35:$A$75,B131)+COUNTIFS(CHART!$A$35:$A$75,C131)+COUNTIFS(CHART!$A$35:$A$75,A131) -> 0 | BE131: Discounters | BF131: Customer | BG131: Vegetables | BH131: Marrow | BI131: pumpkin
A132: Total | B132: Discounters | C132: Customer | D132: Vegetables | E132: Marrow | F132: cucumber | G132: 0 | H132: 0 | I132: 0 | J132: 0 | K132: 0 | L132: 0 | M132: 0 | N132: 0 | O132: 0.05968066838 | P132: 230.9737687 | Q132: 59.54478215 | R132: 3.401646647 | S132: 35.72344362 | T132: 0 | U132: 0 | V132: 0 | W132: 0 | X132: 0 | Y132: 0 | Z132: 0 | AA132: 0.1342491988 | AB132: 420.6765498 | AC132: 31.1177509 | AD132: 0 | AE132: 0 | AF132: 0 | BC132: =COUNTIFS(CHART!$A$35:$A$75,B132)+COUNTIFS(CHART!$A$35:$A$75,C132)+COUNTIFS(CHART!$A$35:$A$75,A132) -> 0 | BE132: Discounters | BF132: Customer | BG132: Vegetables | BH132: Marrow | BI132: cucumber
A133: Total | B133: Discounters | C133: Customer | D133: Vegetables | E133: Marrow | F133: zucchini | G133: 0.1691618041 | H133: 245.4434515 | I133: 108.9829028 | J133: 0.322876263 | K133: 0 | L133: 0 | M133: 0 | N133: 0 | O133: 0 | P133: 0 | Q133: 0 | R133: 0 | S133: 205.3252869 | T133: 101.663441 | U133: 178.0029391 | V133: 0 | W133: 0 | X133: 0 | Y133: 0 | Z133: -0.03231714219 | AA133: 0 | AB133: 0 | AC133: 0 | AD133: 0 | AE133: 0.108765419 | AF133: 205.5288274 | BC133: =COUNTIFS(CHART!$A$35:$A$75,B133)+COUNTIFS(CHART!$A$35:$A$75,C133)+COUNTIFS(CHART!$A$35:$A$75,A133) -> 0 | BE133: Discounters | BF133: Customer | BG133: Vegetables | BH133: Marrow | BI133: zucchini
A134: Total | B134: Discounters | C134: Customer | D134: Vegetables | E134: Root | F134: potato | G134: 0 | H134: 0 | I134: 15.82582202 | J134: 0 | K134: 0.01559903874 | L134: 0.0161741398 | M134: 0 | N134: 0 | O134: 50.30210025 | P134: 0 | Q134: 0 | R134: 0.01709388644 | S134: 0 | T134: 30.53125606 | U134: 0 | V134: 0 | W134: 0 | X134: 0 | Y134: 0.0109822886 | Z134: 0.03021977014 | AA134: 38.65044372 | AB134: 0 | AC134: 0 | AD134: 0 | AE134: 0 | AF134: 0 | BC134: =COUNTIFS(CHART!$A$35:$A$75,B134)+COUNTIFS(CHART!$A$35:$A$75,C134)+COUNTIFS(CHART!$A$35:$A$75,A134) -> 0 | BE134: Discounters | BF134: Customer | BG134: Vegetables | BH134: Root | BI134: potato
A135: Total | B135: Discounters | C135: Customer | D135: Fruits | E135: Apples and pears | F135: pears | G135: 0.770493626 | H135: 1.314614448 | I135: 2.09114191 | J135: 2.087866185 | K135: 1.933374928 | L135: 3.811968038 | M135: 3.266299281 | N135: 3.232144371 | O135: 2.229963967 | P135: 0.8244557591 | Q135: 1.832571841 | R135: 1.808077918 | S135: 0.8796614012 | T135: 1.370594334 | U135: 1.1909684 | V135: 1.676891547 | W135: 2.195838393 | X135: 2.851418607 | Y135: 3.204159642 | Z135: 2.754149841 | AA135: 1.237658119 | AB135: 1.539552266 | AC135: 1.7495949 | AD135: 1.605536688 | AE135: 1.366134973 | AF135: 1.82743369 | BC135: =COUNTIFS(CHART!$A$35:$A$75,B135)+COUNTIFS(CHART!$A$35:$A$75,C135)+COUNTIFS(CHART!$A$35:$A$75,A135) -> 0 | BE135: Discounters | BF135: Customer | BG135: Fruits | BH135: Apples and pears | BI135: pears
A136: Total | B136: Discounters | C136: Customer | D136: Fruits | E136: Citrus | F136: oranges | G136: 0.4563589692 | H136: 0.5727436195 | I136: 1.013532735 | J136: 0.871512329 | K136: 0.8321551171 | L136: 0.8451124571 | M136: 1.162541731 | N136: 1.365519435 | O136: 0.9907790235 | P136: 0.6809944521 | Q136: 0.6703205231 | R136: 0.6325610511 | S136: 0.4730939164 | T136: 0.5709017158 | U136: 1.056221573 | V136: 0.7007753274 | W136: 0.8581417447 | X136: 1.12801573 | Y136: 1.038325001 | Z136: 2.054980748 | AA136: 0.3888240588 | AB136: 1.173737082 | AC136: 0.5492127786 | AD136: 0.3600280911 | AE136: 0.4860374459 | AF136: 1.08846935 | BC136: =COUNTIFS(CHART!$A$35:$A$75,B136)+COUNTIFS(CHART!$A$35:$A$75,C136)+COUNTIFS(CHART!$A$35:$A$75,A136) -> 0 | BE136: Discounters | BF136: Customer | BG136: Fruits | BH136: Citrus | BI136: oranges
A137: Total | B137: Discounters | C137: Customer | D137: Fruits | E137: Citrus | F137: grapefruits | G137: 5.846868128 | H137: 13.760287 | I137: 7.216762592 | J137: 11.89587528 | K137: 10.43445512 | L137: 11.01511733 | M137: 14.06479265 | N137: 10.35986932 | O137: 9.733360048 | P137: 10.40674909 | Q137: 13.646852 | R137: 10.67228411 | S137: 4.601001162 | T137: 16.46672173 | U137: 13.27087487 | V137: 8.845667536 | W137: 5.95378159 | X137: 11.5900611 | Y137: 17.06166451 | Z137: 8.235564973 | AA137: 10.25893468 | AB137: 17.56168356 | AC137: 12.39315123 | AD137: 9.9346492 | AE137: 10.23211715 | AF137: 18.30073982 | BC137: =COUNTIFS(CHART!$A$35:$A$75,B137)+COUNTIFS(CHART!$A$35:$A$75,C137)+COUNTIFS(CHART!$A$35:$A$75,A137) -> 0 | BE137: Discounters | BF137: Customer | BG137: Fruits | BH137: Citrus | BI137: grapefruits
A138: Total | B138: Discounters | C138: Customer | D138: Fruits | E138: Citrus | F138: mandarins | G138: 3.05714658 | H138: 0.9437356437 | I138: 3.164924525 | J138: 1.185520785 | K138: 1.584654078 | L138: 3.683173695 | M138: 1.655671034 | N138: 2.689299037 | O138: 3.681038367 | P138: 4.24449175 | Q138: 1.481736895 | R138: 1.700653582 | S138: 2.480039192 | T138: 1.728039491 | U138: 1.890779897 | V138: 2.416693449 | W138: 1.096486515 | X138: 1.302669814 | Y138: 2.485259775 | Z138: 3.691228258 | AA138: 1.29605042 | AB138: 2.91565831 | AC138: 2.051269232 | AD138: 1.310984444 | AE138: 2.344464041 | AF138: 3.238994438 | BC138: =COUNTIFS(CHART!$A$35:$A$75,B138)+COUNTIFS(CHART!$A$35:$A$75,C138)+COUNTIFS(CHART!$A$35:$A$75,A138) -> 0 | BE138: Discounters | BF138: Customer | BG138: Fruits | BH138: Citrus | BI138: mandarins
A139: Total | B139: Discounters | C139: Customer | D139: Fruits | E139: Citrus | F139: limes | G139: 1.045002534 | H139: 1.075199304 | I139: 0.9503437629 | J139: 0.7115531311 | K139: 1.923455597 | L139: 1.60286531 | M139: 1.036621459 | N139: 0.8670586677 | O139: 0.6048290712 | P139: 2.121076645 | Q139: 0.8686558432 | R139: 1.147159606 | S139: 1.222030491 | T139: 0.6868737796 | U139: 1.370921391 | V139: 1.740932903 | W139: 0.6503148702 | X139: 0.8045273231 | Y139: 1.018969619 | Z139: 0.9338799015 | AA139: 0.59255133 | AB139: 1.293340432 | AC139: 0.9962179588 | AD139: 1.307368441 | AE139: 1.010111545 | AF139: 1.072758135 | BC139: =COUNTIFS(CHART!$A$35:$A$75,B139)+COUNTIFS(CHART!$A$35:$A$75,C139)+COUNTIFS(CHART!$A$35:$A$75,A139) -> 0 | BE139: Discounters | BF139: Customer | BG139: Fruits | BH139: Citrus | BI139: limes
A140: Total | B140: Discounters | C140: Customer | D140: Fruits | E140: Berries | F140: strawberries | G140: 1.991923848 | H140: 1.537032103 | I140: 1.552872805 | J140: 1.505796951 | K140: 1.586582234 | L140: 1.513431814 | M140: 2.265296971 | N140: 1.785059596 | O140: 1.674545237 | P140: 1.507627505 | Q140: 1.898482627 | R140: 1.80503533 | S140: 1.043526154 | T140: 1.298136974 | U140: 1.851750719 | V140: 1.268931232 | W140: 2.03165587 | X140: 1.90899239 | Y140: 2.871584862 | Z140: 0.8288912613 | AA140: 2.502017279 | AB140: 2.671224162 | AC140: 2.588942172 | AD140: 2.093844288 | AE140: 1.772364945 | AF140: 1.621619701 | BC140: =COUNTIFS(CHART!$A$35:$A$75,B140)+COUNTIFS(CHART!$A$35:$A$75,C140)+COUNTIFS(CHART!$A$35:$A$75,A140) -> 0 | BE140: Discounters | BF140: Customer | BG140: Fruits | BH140: Berries | BI140: strawberries
A141: Total | B141: Discounters | C141: Customer | D141: Fruits | E141: Apples and pears | F141: apples | G141: 20.00186891 | H141: 5.226753783 | I141: 15.23907024 | J141: 21.03783618 | K141: 12.76575948 | L141: 11.55438273 | M141: 30.46219657 | N141: 14.64091941 | O141: 20.17089875 | P141: 11.64864862 | Q141: 37.29622913 | R141: 26.92048469 | S141: 11.84908852 | T141: 15.36879689 | U141: 27.29959399 | V141: 23.48639187 | W141: 13.71115273 | X141: 9.893837693 | Y141: 27.74911557 | Z141: 21.54192028 | AA141: 17.24414204 | AB141: 39.2607791 | AC141: 30.37153627 | AD141: 8.89804193 | AE141: 17.56003458 | AF141: 14.88267084 | BC141: =COUNTIFS(CHART!$A$35:$A$75,B141)+COUNTIFS(CHART!$A$35:$A$75,C141)+COUNTIFS(CHART!$A$35:$A$75,A141) -> 0 | BE141: Discounters | BF141: Customer | BG141: Fruits | BH141: Apples and pears | BI141: apples
A142: Total | B142: Discounters | C142: Customer | D142: Vegetables | E142: Leafy Green | F142: lettuce | G142: 0.07298570029 | H142: 0.1423829031 | I142: 0.2156226212 | J142: 0.1814997599 | K142: 0.1692901294 | L142: 0.1228266765 | M142: 0.1973866612 | N142: 0.1472880032 | O142: 0.1629784641 | P142: 0.1517756232 | Q142: 0.2334467486 | R142: 0.1963278904 | S142: 0.139498843 | T142: 0.1331845539 | U142: 0.1230008409 | V142: 0.09402602775 | W142: 0.08343071789 | X142: 0.09429848886 | Y142: 0.1905639514 | Z142: 0.1151423385 | AA142: 0.06665257555 | AB142: 0.1265803054 | AC142: 0.1629126779 | AD142: 0.1848066229 | AE142: 0.116556957 | AF142: 0.1279914658 | BC142: =COUNTIFS(CHART!$A$35:$A$75,B142)+COUNTIFS(CHART!$A$35:$A$75,C142)+COUNTIFS(CHART!$A$35:$A$75,A142) -> 0 | BE142: Discounters | BF142: Customer | BG142: Vegetables | BH142: Leafy Green | BI142: lettuce
A143: Total | B143: Discounters | C143: Customer | D143: Fruits | E143: Berries | F143: raspberries | G143: 23.5894817 | H143: 21.45858997 | I143: 13.8374742 | J143: 6.183875208 | K143: 18.30375077 | L143: 14.97826898 | M143: 18.16393518 | N143: 5.965937576 | O143: 35.99967524 | P143: 38.42574023 | Q143: 23.6487259 | R143: 30.60624912 | S143: 20.3357631 | T143: 24.35129692 | U143: 19.25721527 | V143: 22.65916489 | W143: 18.05053199 | X143: 8.784944896 | Y143: 8.718385022 | Z143: 12.91155743 | AA143: 23.18322892 | AB143: 10.06602047 | AC143: 23.33051921 | AD143: 21.20959123 | AE143: 12.10407953 | AF143: 10.19476003 | BC143: =COUNTIFS(CHART!$A$35:$A$75,B143)+COUNTIFS(CHART!$A$35:$A$75,C143)+COUNTIFS(CHART!$A$35:$A$75,A143) -> 0 | BE143: Discounters | BF143: Customer | BG143: Fruits | BH143: Berries | BI143: raspberries
A144: Total | B144: Discounters | C144: Customer | D144: Fruits | E144: Tropical and exotic | F144: bananas | G144: 0 | H144: 0 | I144: 0 | J144: 0 | K144: 0 | L144: 0 | M144: 0 | N144: 0 | O144: 0 | P144: 0 | Q144: 0 | R144: 0 | S144: 0 | T144: 0 | U144: 0 | V144: 0 | W144: 0 | X144: 0 | Y144: 0 | Z144: 0 | AA144: 0 | AB144: 0 | AC144: 0 | AD144: 0 | AE144: 0 | AF144: 0 | BC144: =COUNTIFS(CHART!$A$35:$A$75,B144)+COUNTIFS(CHART!$A$35:$A$75,C144)+COUNTIFS(CHART!$A$35:$A$75,A144) -> 0 | BE144: Discounters | BF144: Customer | BG144: Fruits | BH144: Tropical and exotic | BI144: bananas
A145: Total | B145: Discounters | C145: Customer | D145: Vegetables | E145: Leafy Green | F145: spinach | G145: 2.917330645 | H145: 10.05037283 | I145: 4.027140321 | J145: 5.012027626 | K145: 11.07294872 | L145: 5.527299538 | M145: 9.221380457 | N145: 7.218377014 | O145: 12.3230502 | P145: 12.05015112 | Q145: 12.59542627 | R145: 10.73616181 | S145: 2.230481008 | T145: 6.816950521 | U145: 3.988033844 | V145: 6.38354656 | W145: 8.298210923 | X145: 4.2728509 | Y145: 8.569029985 | Z145: 5.961853898 | AA145: 8.85081949 | AB145: 15.04240911 | AC145: 12.75801028 | AD145: 9.408497187 | AE145: 5.434383895 | AF145: 4.310071242 | BC145: =COUNTIFS(CHART!$A$35:$A$75,B145)+COUNTIFS(CHART!$A$35:$A$75,C145)+COUNTIFS(CHART!$A$35:$A$75,A145) -> 0 | BE145: Discounters | BF145: Customer | BG145: Vegetables | BH145: Leafy Green | BI145: spinach
A146: Total | B146: Discounters | C146: Customer | D146: Vegetables | E146: Cruciferous | F146: cauliflower | G146: 0.6024775864 | H146: 2.746216749 | I146: 0.8779089993 | J146: 1.102270231 | K146: 2.046009437 | L146: 1.471245656 | M146: 2.04667675 | N146: 1.483998681 | O146: 2.283340418 | P146: 2.754535171 | Q146: 1.926990784 | R146: 2.456336803 | S146: 0.4419669455 | T146: 1.964020938 | U146: 1.082121768 | V146: 1.796789162 | W146: 1.835323577 | X146: 1.38659032 | Y146: 1.528856136 | Z146: 1.196184197 | AA146: 1.55765652 | AB146: 3.4057866 | AC146: 2.153528759 | AD146: 1.780121095 | AE146: 0.9018343297 | AF146: 0.9252914119 | BC146: =COUNTIFS(CHART!$A$35:$A$75,B146)+COUNTIFS(CHART!$A$35:$A$75,C146)+COUNTIFS(CHART!$A$35:$A$75,A146) -> 0 | BE146: Discounters | BF146: Customer | BG146: Vegetables | BH146: Cruciferous | BI146: cauliflower
A147: Total | B147: Discounters | C147: Customer | D147: Vegetables | E147: Cruciferous | F147: russels | G147: 0.4952353688 | H147: 1.281355456 | I147: 0.815327766 | J147: 1.307906952 | K147: 1.699622529 | L147: 0.4431136583 | M147: 1.213198746 | N147: 0.5806773294 | O147: 1.627974017 | P147: 1.071085652 | Q147: 1.193641695 | R147: 1.030610011 | S147: 1.52294996 | T147: 1.669913063 | U147: 0.5444572656 | V147: 1.325284935 | W147: 1.069480972 | X147: 0.9731975658 | Y147: 0.9932303925 | Z147: 0.7770015268 | AA147: 1.427257754 | AB147: 1.050559966 | AC147: 1.028266744 | AD147: 1.376138411 | AE147: 1.038846717 | AF147: 1.670996655 | BC147: =COUNTIFS(CHART!$A$35:$A$75,B147)+COUNTIFS(CHART!$A$35:$A$75,C147)+COUNTIFS(CHART!$A$35:$A$75,A147) -> 0 | BE147: Discounters | BF147: Customer | BG147: Vegetables | BH147: Cruciferous | BI147: russels
A148: Total | B148: Discounters | C148: Customer | D148: Vegetables | E148: Leafy Green | F148: silverbeet | G148: 2.860501667 | H148: 7.678994468 | I148: 3.565623978 | J148: 5.886202116 | K148: 5.206878254 | L148: 2.753825145 | M148: 7.32549633 | N148: 2.032271645 | O148: 8.186861145 | P148: 4.245685625 | Q148: 4.716097961 | R148: 6.273911306 | S148: 6.326785273 | T148: 3.399493229 | U148: 5.970558269 | V148: 4.242896877 | W148: 4.648909357 | X148: 2.246955692 | Y148: 4.262985728 | Z148: 2.386831494 | AA148: 6.006366697 | AB148: 4.659099922 | AC148: 6.709363554 | AD148: 3.69251389 | AE148: 3.15521855 | AF148: 4.339153838 | BC148: =COUNTIFS(CHART!$A$35:$A$75,B148)+COUNTIFS(CHART!$A$35:$A$75,C148)+COUNTIFS(CHART!$A$35:$A$75,A148) -> 0 | BE148: Discounters | BF148: Customer | BG148: Vegetables | BH148: Leafy Green | BI148: silverbeet
A149: Total | B149: Discounters | C149: Customer | D149: Vegetables | E149: Marrow | F149: pumpkin | G149: 6.203611081 | H149: 12.91357035 | I149: 8.474720704 | J149: 9.592238883 | K149: 10.48428995 | L149: 5.713213733 | M149: 13.00552451 | N149: 7.37217088 | O149: 5.737351611 | P149: 9.646886999 | Q149: 9.715770254 | R149: 9.261472072 | S149: 2.833355388 | T149: 11.26365762 | U149: 7.481594459 | V149: 7.16119845 | W149: 4.318135738 | X149: 8.06869609 | Y149: 12.43501737 | Z149: 6.640032961 | AA149: 6.623077799 | AB149: 11.7528558 | AC149: 7.169929284 | AD149: 7.747531261 | AE149: 7.39157577 | AF149: 9.036808171 | BC149: =COUNTIFS(CHART!$A$35:$A$75,B149)+COUNTIFS(CHART!$A$35:$A$75,C149)+COUNTIFS(CHART!$A$35:$A$75,A149) -> 0 | BE149: Discounters | BF149: Customer | BG149: Vegetables | BH149: Marrow | BI149: pumpkin
A150: Total | B150: Discounters | C150: Customer | D150: Vegetables | E150: Cruciferous | F150: russels | G150: 0 | H150: 0 | I150: 0.3853131747 | J150: 0.1125497915 | K150: 0 | L150: 0 | M150: 0 | N150: 0 | O150: 0 | P150: 0 | Q150: 0 | R150: 0 | S150: 0 | T150: 0.05789449876 | U150: 0 | V150: 0 | W150: 0 | X150: 0 | Y150: 0 | Z150: 0 | AA150: 0 | AB150: 0 | AC150: 0.00592374196 | AD150: 0 | AE150: 0 | AF150: 0 | BC150: =COUNTIFS(CHART!$A$35:$A$75,B150)+COUNTIFS(CHART!$A$35:$A$75,C150)+COUNTIFS(CHART!$A$35:$A$75,A150) -> 0 | BE150: Discounters | BF150: Customer | BG150: Vegetables | BH150: Cruciferous | BI150: russels
A151: Total | B151: Discounters | C151: Customer | D151: Vegetables | E151: Marrow | F151: cucumber | G151: 0 | H151: 0 | I151: 0 | J151: 0 | K151: 0 | L151: 0 | M151: 0 | N151: 0 | O151: 1.532396887 | P151: 35.59891889 | Q151: 9.257401978 | R151: 0.5491829057 | S151: 0 | T151: 0 | U151: 0 | V151: 0 | W151: 0 | X151: 0 | Y151: 0 | Z151: 0 | AA151: 3.02616277 | AB151: 39.67036294 | AC151: 3.773587821 | AD151: 0.1008690689 | AE151: -0.1526823646 | AF151: 0 | BC151: =COUNTIFS(CHART!$A$35:$A$75,B151)+COUNTIFS(CHART!$A$35:$A$75,C151)+COUNTIFS(CHART!$A$35:$A$75,A151) -> 0 | BE151: Discounters | BF151: Customer | BG151: Vegetables | BH151: Marrow | BI151: cucumber
A152: Total | B152: Discounters | C152: Customer | D152: Vegetables | E152: Marrow | F152: zucchini | G152: 3.994127795 | H152: 22.21460073 | I152: 6.769899684 | J152: 0 | K152: 0 | L152: 0 | M152: 0 | N152: 0 | O152: 0 | P152: 0 | Q152: 0 | R152: 0 | S152: 7.677330456 | T152: 20.27973422 | U152: 1.697735374 | V152: 0 | W152: 0 | X152: 0 | Y152: 0 | Z152: 0 | AA152: 0 | AB152: 0 | AC152: 0 | AD152: 0 | AE152: 0 | AF152: 13.69238426 | BC152: =COUNTIFS(CHART!$A$35:$A$75,B152)+COUNTIFS(CHART!$A$35:$A$75,C152)+COUNTIFS(CHART!$A$35:$A$75,A152) -> 0 | BE152: Discounters | BF152: Customer | BG152: Vegetables | BH152: Marrow | BI152: zucchini
A153: Total | B153: Discounters | C153: Customer | D153: Vegetables | E153: Root | F153: potato | G153: 1.854876854 | H153: 2.374160448 | I153: 2.419567078 | J153: 2.252982924 | K153: 3.150548174 | L153: 2.171239256 | M153: 3.033713802 | N153: 2.260084124 | O153: 3.287511763 | P153: 2.224664924 | Q153: 6.236620131 | R153: 3.464219125 | S153: 1.575838584 | T153: 2.418002368 | U153: 2.808693299 | V153: 2.577616997 | W153: 2.64578946 | X153: 2.428537488 | Y153: 3.088389576 | Z153: 2.290612337 | AA153: 2.541427053 | AB153: 4.608945113 | AC153: 4.132931536 | AD153: 1.201109261 | AE153: 0 | AF153: 0 | BC153: =COUNTIFS(CHART!$A$35:$A$75,B153)+COUNTIFS(CHART!$A$35:$A$75,C153)+COUNTIFS(CHART!$A$35:$A$75,A153) -> 0 | BE153: Discounters | BF153: Customer | BG153: Vegetables | BH153: Root | BI153: potato
A154: Total | B154: Traditional channel | C154: Customer | D154: Fruits | E154: Apples and pears | F154: pears | G154: 4.168621189 | H154: 3.315500475 | I154: 5.741427306 | J154: 5.302203034 | K154: 4.188700375 | L154: 4.929090092 | M154: 5.43224888 | N154: 5.867939219 | O154: 8.69415957 | P154: 10.18332148 | Q154: 20.08741329 | R154: 5.02099955 | S154: 10.35009502 | T154: 23.35518271 | U154: 5.298297287 | V154: 4.615876568 | W154: 8.249381431 | X154: 3.769548324 | Y154: 5.113847077 | Z154: 4.007475306 | AA154: 7.907927065 | AB154: 3.978678837 | AC154: 5.27378718 | AD154: 4.117167218 | AE154: 3.046580441 | AF154: 3.743096004 | BC154: =COUNTIFS(CHART!$A$35:$A$75,B154)+COUNTIFS(CHART!$A$35:$A$75,C154)+COUNTIFS(CHART!$A$35:$A$75,A154) -> 0 | BE154: Traditional channel | BF154: Customer | BG154: Fruits | BH154: Apples and pears | BI154: pears
A155: Total | B155: Traditional channel | C155: Customer | D155: Fruits | E155: Citrus | F155: oranges | G155: 1.804859299 | H155: 1.1950571 | I155: 2.394916354 | J155: 3.407042823 | K155: 1.93960873 | L155: 2.784795851 | M155: 3.182758623 | N155: 4.928729085 | O155: 1.935341804 | P155: 2.905257963 | Q155: 2.391157576 | R155: 3.898768199 | S155: 10.33222814 | T155: 1.77746015 | U155: 3.684789591 | V155: 2.625703478 | W155: 2.153483441 | X155: 2.138195089 | Y155: 3.774491828 | Z155: 3.021437532 | AA155: 1.886393483 | AB155: 2.373815137 | AC155: 2.095837332 | AD155: 3.498488152 | AE155: 1.072259789 | AF155: 3.13617053 | BC155: =COUNTIFS(CHART!$A$35:$A$75,B155)+COUNTIFS(CHART!$A$35:$A$75,C155)+COUNTIFS(CHART!$A$35:$A$75,A155) -> 0 | BE155: Traditional channel | BF155: Customer | BG155: Fruits | BH155: Citrus | BI155: oranges
A156: Total | B156: Traditional channel | C156: Customer | D156: Fruits | E156: Citrus | F156: grapefruits | G156: 13.31894414 | H156: 14.97070528 | I156: 22.17244042 | J156: 23.37375388 | K156: 24.12830768 | L156: 14.88160064 | M156: 13.80289648 | N156: 14.16520069 | O156: 19.39017431 | P156: 16.00283755 | Q156: 27.70809452 | R156: 10.23260556 | S156: 11.63692297 | T156: 11.73147108 | U156: 19.75519588 | V156: 41.75276111 | W156: 7.245398346 | X156: 18.55509947 | Y156: 17.28371654 | Z156: 30.92863957 | AA156: 14.81306811 | AB156: 20.80015272 | AC156: 14.95621795 | AD156: 13.52399745 | AE156: 15.0409533 | AF156: 16.63220182 | BC156: =COUNTIFS(CHART!$A$35:$A$75,B156)+COUNTIFS(CHART!$A$35:$A$75,C156)+COUNTIFS(CHART!$A$35:$A$75,A156) -> 0 | BE156: Traditional channel | BF156: Customer | BG156: Fruits | BH156: Citrus | BI156: grapefruits
A157: Total | B157: Traditional channel | C157: Customer | D157: Fruits | E157: Citrus | F157: mandarins | G157: 10.72782494 | H157: 17.76671053 | I157: 35.38600123 | J157: 10.24853367 | K157: 21.77607396 | L157: 22.62942495 | M157: 21.08278773 | N157: 24.22260825 | O157: 21.96090116 | P157: 17.44982534 | Q157: 21.91676508 | R157: 4.756605535 | S157: 19.82551732 | T157: 14.84765456 | U157: 40.93980835 | V157: 19.5520683 | W157: 9.738446875 | X157: 16.48387211 | Y157: 17.24013073 | Z157: 19.08044173 | AA157: 22.48430274 | AB157: 21.84385776 | AC157: 11.8208176 | AD157: 13.32148498 | AE157: 11.52232715 | AF157: 15.09802744 | BC157: =COUNTIFS(CHART!$A$35:$A$75,B157)+COUNTIFS(CHART!$A$35:$A$75,C157)+COUNTIFS(CHART!$A$35:$A$75,A157) -> 0 | BE157: Traditional channel | BF157: Customer | BG157: Fruits | BH157: Citrus | BI157: mandarins
A158: Total | B158: Traditional channel | C158: Customer | D158: Fruits | E158: Citrus | F158: limes | G158: 3.292654943 | H158: 4.362236026 | I158: 16.47848452 | J158: 3.382995287 | K158: 6.072602601 | L158: 5.08309928 | M158: 8.361851169 | N158: 5.717513798 | O158: 11.35509842 | P158: 8.089864455 | Q158: 7.250334253 | R158: 1.904511804 | S158: 8.056780877 | T158: 3.625896697 | U158: 16.14002152 | V158: 5.312546068 | W158: 2.814888487 | X158: 8.980310994 | Y158: 6.259162841 | Z158: 6.476858335 | AA158: 6.61070603 | AB158: 10.1664208 | AC158: 4.397117282 | AD158: 4.530242696 | AE158: 3.687496535 | AF158: 7.943567785 | BC158: =COUNTIFS(CHART!$A$35:$A$75,B158)+COUNTIFS(CHART!$A$35:$A$75,C158)+COUNTIFS(CHART!$A$35:$A$75,A158) -> 0 | BE158: Traditional channel | BF158: Customer | BG158: Fruits | BH158: Citrus | BI158: limes
A159: Total | B159: Traditional channel | C159: Customer | D159: Fruits | E159: Berries | F159: strawberries | G159: 4.862331874 | H159: 7.456119857 | I159: 8.33418821 | J159: 5.131974856 | K159: 6.27795591 | L159: 5.924389181 | M159: 13.94912222 | N159: 8.70866473 | O159: 9.170225603 | P159: 7.966878326 | Q159: 15.56532734 | R159: 8.884507713 | S159: 6.932527117 | T159: 12.39713591 | U159: 7.656261759 | V159: 7.556691577 | W159: 6.629978129 | X159: 8.319151627 | Y159: 9.647552125 | Z159: 6.870875928 | AA159: 4.380198188 | AB159: 10.17043211 | AC159: 7.306183654 | AD159: 6.974130156 | AE159: 3.517849866 | AF159: 5.657065993 | BC159: =COUNTIFS(CHART!$A$35:$A$75,B159)+COUNTIFS(CHART!$A$35:$A$75,C159)+COUNTIFS(CHART!$A$35:$A$75,A159) -> 0 | BE159: Traditional channel | BF159: Customer | BG159: Fruits | BH159: Berries | BI159: strawberries
A160: Total | B160: Traditional channel | C160: Customer | D160: Fruits | E160: Apples and pears | F160: apples | G160: 65.83893253 | H160: 50.70056305 | I160: 106.675665 | J160: 79.56128424 | K160: 45.66006622 | L160: 73.48517371 | M160: 69.58611738 | N160: 80.44176082 | O160: 104.1478311 | P160: 167.4816328 | Q160: 153.367528 | R160: 84.27234853 | S160: 61.1587471 | T160: 91.67050803 | U160: 100.5358975 | V160: 113.3154317 | W160: 47.15198528 | X160: 102.556606 | Y160: 73.84894072 | Z160: 74.26204004 | AA160: 82.59796315 | AB160: 177.3204582 | AC160: 77.77818341 | AD160: 99.77641792 | AE160: 92.66888814 | AF160: 62.27829529 | BC160: =COUNTIFS(CHART!$A$35:$A$75,B160)+COUNTIFS(CHART!$A$35:$A$75,C160)+COUNTIFS(CHART!$A$35:$A$75,A160) -> 0 | BE160: Traditional channel | BF160: Customer | BG160: Fruits | BH160: Apples and pears | BI160: apples
A161: Total | B161: Traditional channel | C161: Customer | D161: Vegetables | E161: Leafy Green | F161: lettuce | G161: 1.452341819 | H161: 1.241099004 | I161: 2.548129242 | J161: 1.279169999 | K161: 1.651529007 | L161: 1.733159186 | M161: 2.132557345 | N161: 2.165549405 | O161: 1.964222721 | P161: 1.709125318 | Q161: 1.654918527 | R161: 0.9842686131 | S161: 0.8416129563 | T161: 0.9374015165 | U161: 2.847127502 | V161: 1.436627157 | W161: 1.633390781 | X161: 0.8297420863 | Y161: 1.595374876 | Z161: 1.857202183 | AA161: 1.588316073 | AB161: 1.404984967 | AC161: 2.027745736 | AD161: 0.8252929446 | AE161: 1.226806364 | AF161: 0.7692544611 | BC161: =COUNTIFS(CHART!$A$35:$A$75,B161)+COUNTIFS(CHART!$A$35:$A$75,C161)+COUNTIFS(CHART!$A$35:$A$75,A161) -> 0 | BE161: Traditional channel | BF161: Customer | BG161: Vegetables | BH161: Leafy Green | BI161: lettuce
A162: Total | B162: Traditional channel | C162: Customer | D162: Fruits | E162: Berries | F162: raspberries | G162: 54.5277108 | H162: 28.15179705 | I162: 106.6091705 | J162: 75.97057707 | K162: 45.89651854 | L162: 25.88071567 | M162: 45.01474743 | N162: 52.21408665 | O162: 39.93449055 | P162: 152.4730832 | Q162: 100.0270668 | R162: 28.49881183 | S162: 28.63759835 | T162: 30.63376036 | U162: 85.36393595 | V162: 39.58646393 | W162: 128.3292153 | X162: 34.31038236 | Y162: 60.55600326 | Z162: 46.61813334 | AA162: 86.35009608 | AB162: 55.98719805 | AC162: 59.52317971 | AD162: 9.930684372 | AE162: 60.02702455 | AF162: 70.50324609 | BC162: =COUNTIFS(CHART!$A$35:$A$75,B162)+COUNTIFS(CHART!$A$35:$A$75,C162)+COUNTIFS(CHART!$A$35:$A$75,A162) -> 0 | BE162: Traditional channel | BF162: Customer | BG162: Fruits | BH162: Berries | BI162: raspberries
A163: Total | B163: Traditional channel | C163: Customer | D163: Fruits | E163: Berries | F163: blueberries | G163: 2.481241889 | H163: 3.261457808 | I163: 4.965094068 | J163: 3.076748999 | K163: 3.796821355 | L163: 23.13265008 | M163: 22.79586526 | N163: 2.695503036 | O163: 18.13524934 | P163: 4.107372105 | Q163: 28.85561936 | R163: 6.19075621 | S163: 20.30518245 | T163: 25.53153449 | U163: 5.072014688 | V163: 26.62928848 | W163: 6.73969491 | X163: 10.88472032 | Y163: 22.27025666 | Z163: 3.20147094 | AA163: 21.06542601 | AB163: 16.11483544 | AC163: 2.683147394 | AD163: 26.17296693 | AE163: 1.303600473 | AF163: 22.18518285 | BC163: =COUNTIFS(CHART!$A$35:$A$75,B163)+COUNTIFS(CHART!$A$35:$A$75,C163)+COUNTIFS(CHART!$A$35:$A$75,A163) -> 0 | BE163: Traditional channel | BF163: Customer | BG163: Fruits | BH163: Berries | BI163: blueberries
A164: Total | B164: Traditional channel | C164: Customer | D164: Fruits | E164: Tropical and exotic | F164: bananas | G164: 0 | H164: 0 | I164: 0 | J164: 0 | K164: 0 | L164: 0 | M164: 0 | N164: 0 | O164: 0 | P164: 0 | Q164: 0 | R164: 0 | S164: 0 | T164: 0 | U164: 0 | V164: 0 | W164: 0 | X164: 0 | Y164: 0 | Z164: 0 | AA164: 0 | AB164: 0 | AC164: 0 | AD164: 0 | AE164: 0 | AF164: 0 | BC164: =COUNTIFS(CHART!$A$35:$A$75,B164)+COUNTIFS(CHART!$A$35:$A$75,C164)+COUNTIFS(CHART!$A$35:$A$75,A164) -> 0 | BE164: Traditional channel | BF164: Customer | BG164: Fruits | BH164: Tropical and exotic | BI164: bananas
A165: Total | B165: Traditional channel | C165: Customer | D165: Vegetables | E165: Leafy Green | F165: spinach | G165: 13.64668212 | H165: 21.75608447 | I165: 26.24634907 | J165: 19.73473674 | K165: 20.95617803 | L165: 21.01130569 | M165: 40.22597649 | N165: 24.89462221 | O165: 21.72096842 | P165: 31.86971399 | Q165: 35.35502627 | R165: 22.63910386 | S165: 13.05210714 | T165: 19.09319009 | U165: 30.48060689 | V165: 18.38846236 | W165: 19.57158667 | X165: 17.58016558 | Y165: 46.33868704 | Z165: 36.87409092 | AA165: 27.44937199 | AB165: 39.53842993 | AC165: 55.2930335 | AD165: 22.12210848 | AE165: 27.66231239 | AF165: 17.55891477 | BC165: =COUNTIFS(CHART!$A$35:$A$75,B165)+COUNTIFS(CHART!$A$35:$A$75,C165)+COUNTIFS(CHART!$A$35:$A$75,A165) -> 0 | BE165: Traditional channel | BF165: Customer | BG165: Vegetables | BH165: Leafy Green | BI165: spinach
A166: Total | B166: Traditional channel | C166: Customer | D166: Vegetables | E166: Cruciferous | F166: cauliflower | G166: 2.006402071 | H166: 4.341072348 | I166: 4.860932605 | J166: 2.323495853 | K166: 3.888423418 | L166: 4.289598221 | M166: 5.35477554 | N166: 3.902541207 | O166: 4.644780628 | P166: 3.877117072 | Q166: 6.530962582 | R166: 4.823873904 | S166: 2.323300351 | T166: 2.91795116 | U166: 4.514011594 | V166: 2.307851004 | W166: 2.498832696 | X166: 2.817043439 | Y166: 6.301754224 | Z166: 4.574395817 | AA166: 3.613443502 | AB166: 4.604136976 | AC166: 9.757120679 | AD166: 3.516268148 | AE166: 3.618149187 | AF166: 3.032087819 | BC166: =COUNTIFS(CHART!$A$35:$A$75,B166)+COUNTIFS(CHART!$A$35:$A$75,C166)+COUNTIFS(CHART!$A$35:$A$75,A166) -> 0 | BE166: Traditional channel | BF166: Customer | BG166: Vegetables | BH166: Cruciferous | BI166: cauliflower
A167: Total | B167: Traditional channel | C167: Customer | D167: Vegetables | E167: Cruciferous | F167: russels | G167: 12.16085681 | H167: 8.580802365 | I167: 12.05295382 | J167: 12.6535458 | K167: 7.755459027 | L167: 6.184627083 | M167: 4.071569412 | N167: 9.520015371 | O167: 10.06456449 | P167: 9.121430643 | Q167: 5.735380285 | R167: 11.86300271 | S167: 19.03952204 | T167: 8.468507499 | U167: 8.076110955 | V167: 12.46690399 | W167: 5.33195338 | X167: 6.286134378 | Y167: 8.480182064 | Z167: 6.970169163 | AA167: 12.87955686 | AB167: 9.171154628 | AC167: 4.825458342 | AD167: 15.38188611 | AE167: 8.766574637 | AF167: 7.072130745 | BC167: =COUNTIFS(CHART!$A$35:$A$75,B167)+COUNTIFS(CHART!$A$35:$A$75,C167)+COUNTIFS(CHART!$A$35:$A$75,A167) -> 0 | BE167: Traditional channel | BF167: Customer | BG167: Vegetables | BH167: Cruciferous | BI167: russels
A168: Total | B168: Traditional channel | C168: Customer | D168: Vegetables | E168: Leafy Green | F168: silverbeet | G168: 13.77680683 | H168: 15.76081017 | I168: 21.29275244 | J168: 5.847289973 | K168: 11.98851288 | L168: 10.73039032 | M168: 8.567397039 | N168: 12.42957854 | O168: 17.2504899 | P168: 17.00052508 | Q168: 22.41634863 | R168: 22.93914658 | S168: 9.109207285 | T168: 12.99220025 | U168: 16.79741647 | V168: 16.49549368 | W168: 9.70787551 | X168: 10.95484465 | Y168: 9.660223178 | Z168: 8.533004412 | AA168: 13.73452063 | AB168: 23.754683 | AC168: 18.75710944 | AD168: 20.4106369 | AE168: 12.76104263 | AF168: 13.78434792 | BC168: =COUNTIFS(CHART!$A$35:$A$75,B168)+COUNTIFS(CHART!$A$35:$A$75,C168)+COUNTIFS(CHART!$A$35:$A$75,A168) -> 0 | BE168: Traditional channel | BF168: Customer | BG168: Vegetables | BH168: Leafy Green | BI168: silverbeet
A169: Total | B169: Traditional channel | C169: Customer | D169: Vegetables | E169: Marrow | F169: pumpkin | G169: 14.11664391 | H169: 13.49075838 | I169: 16.96440122 | J169: 20.13548939 | K169: 17.57044694 | L169: 10.71566627 | M169: 12.57027424 | N169: 10.88049497 | O169: 10.21761714 | P169: 15.5623745 | Q169: 17.80574247 | R169: 8.67009991 | S169: 8.361419161 | T169: 6.700812601 | U169: 15.48469062 | V169: 15.99482117 | W169: 10.01534205 | X169: 11.81199879 | Y169: 9.123030175 | Z169: 8.675373449 | AA169: 13.13462178 | AB169: 15.78144593 | AC169: 11.28816159 | AD169: 12.19953697 | AE169: 8.533964336 | AF169: 13.5775769 | BC169: =COUNTIFS(CHART!$A$35:$A$75,B169)+COUNTIFS(CHART!$A$35:$A$75,C169)+COUNTIFS(CHART!$A$35:$A$75,A169) -> 0 | BE169: Traditional channel | BF169: Customer | BG169: Vegetables | BH169: Marrow | BI169: pumpkin
A170: Total | B170: Traditional channel | C170: Customer | D170: Vegetables | E170: Cruciferous | F170: russels | G170: 0 | H170: 0.478251227 | I170: 0.6484729251 | J170: 0.07107058128 | K170: 0 | L170: 0 | M170: 0 | N170: 0 | O170: 0.2716327471 | P170: 0.9421055969 | Q170: 0.3052580376 | R170: 0.8789177961 | S170: 0.126981045 | T170: 0.1161921257 | U170: 0.01293627125 | V170: 0 | W170: 0 | X170: 0 | Y170: 0 | Z170: 0 | AA170: 0 | AB170: 0.3363209761 | AC170: 1.127838152 | AD170: 1.025282508 | AE170: 0 | AF170: 0.115327762 | BC170: =COUNTIFS(CHART!$A$35:$A$75,B170)+COUNTIFS(CHART!$A$35:$A$75,C170)+COUNTIFS(CHART!$A$35:$A$75,A170) -> 0 | BE170: Traditional channel | BF170: Customer | BG170: Vegetables | BH170: Cruciferous | BI170: russels
A171: Total | B171: Traditional channel | C171: Customer | D171: Vegetables | E171: Marrow | F171: cucumber | G171: 0 | H171: 0 | I171: 0 | J171: 0 | K171: 0 | L171: 0 | M171: 0 | N171: 0 | O171: 70.10471546 | P171: 82.20142592 | Q171: 7.97636894 | R171: 0.05297281972 | S171: -0.008212591904 | T171: 0 | U171: 0 | V171: 0 | W171: 0 | X171: 0 | Y171: 0 | Z171: 0 | AA171: 94.90543679 | AB171: 57.19687379 | AC171: 7.391875998 | AD171: 0.1017798263 | AE171: 0 | AF171: 0 | BC171: =COUNTIFS(CHART!$A$35:$A$75,B171)+COUNTIFS(CHART!$A$35:$A$75,C171)+COUNTIFS(CHART!$A$35:$A$75,A171) -> 0 | BE171: Traditional channel | BF171: Customer | BG171: Vegetables | BH171: Marrow | BI171: cucumber
A172: Total | B172: Traditional channel | C172: Customer | D172: Vegetables | E172: Marrow | F172: zucchini | G172: 59.36526286 | H172: 44.61522947 | I172: 4.555783093 | J172: 3.669846004 | K172: -0.08985383269 | L172: 0 | M172: 0 | N172: 0 | O172: 0 | P172: 0 | Q172: 0 | R172: 0 | S172: 44.2296539 | T172: 49.10638896 | U172: 7.787604992 | V172: 0 | W172: 0 | X172: 0 | Y172: 0 | Z172: 0 | AA172: 0 | AB172: 0 | AC172: 0 | AD172: 0 | AE172: 2.513135647 | AF172: 82.39651427 | BC172: =COUNTIFS(CHART!$A$35:$A$75,B172)+COUNTIFS(CHART!$A$35:$A$75,C172)+COUNTIFS(CHART!$A$35:$A$75,A172) -> 0 | BE172: Traditional channel | BF172: Customer | BG172: Vegetables | BH172: Marrow | BI172: zucchini
A173: Total | B173: Traditional channel | C173: Customer | D173: Vegetables | E173: Root | F173: potato | G173: 6.955575612 | H173: 8.224938199 | I173: 8.418116118 | J173: 7.975053865 | K173: 9.628162741 | L173: 8.263043839 | M173: 9.073534446 | N173: 7.628933008 | O173: 9.263171582 | P173: 12.98624044 | Q173: 14.81236168 | R173: 10.81637629 | S173: 7.257029993 | T173: 8.557818459 | U173: 9.43468331 | V173: 7.34193424 | W173: 10.83606898 | X173: 8.391743759 | Y173: 10.27780608 | Z173: 5.512531068 | AA173: 10.97956382 | AB173: 20.49741853 | AC173: 9.711772273 | AD173: 8.239731766 | AE173: -0.01744348899 | AF173: 0 | BC173: =COUNTIFS(CHART!$A$35:$A$75,B173)+COUNTIFS(CHART!$A$35:$A$75,C173)+COUNTIFS(CHART!$A$35:$A$75,A173) -> 0 | BE173: Traditional channel | BF173: Customer | BG173: Vegetables | BH173: Root | BI173: potato
A174: Total | B174: Traditional channel | C174: Customer | D174: Fruits | E174: Apples and pears | F174: pears | G174: 13.32587964 | H174: 17.67105442 | I174: 35.75997598 | J174: 34.4007801 | K174: 47.32088693 | L174: 36.78163873 | M174: 55.56691879 | N174: 38.56719744 | O174: 28.78930476 | P174: 41.07925048 | Q174: 61.59925845 | R174: 30.10288965 | S174: 43.11630498 | T174: 30.59935148 | U174: 16.08064059 | V174: 42.18266923 | W174: 69.17835677 | X174: 63.21464854 | Y174: 112.8416272 | Z174: 30.19910676 | AA174: 16.96072557 | AB174: 26.28309742 | AC174: 18.43996006 | AD174: 17.07230781 | AE174: 19.13551071 | AF174: 25.34671371 | BC174: =COUNTIFS(CHART!$A$35:$A$75,B174)+COUNTIFS(CHART!$A$35:$A$75,C174)+COUNTIFS(CHART!$A$35:$A$75,A174) -> 0 | BE174: Traditional channel | BF174: Customer | BG174: Fruits | BH174: Apples and pears | BI174: pears
A175: Total | B175: Traditional channel | C175: Customer | D175: Fruits | E175: Citrus | F175: oranges | G175: 0.5607824417 | H175: 1.048140639 | I175: 1.485202614 | J175: 2.480155476 | K175: 0.6913010569 | L175: 0.8382945884 | M175: 2.17614153 | N175: 1.768766111 | O175: 1.351208024 | P175: 1.192464782 | Q175: 0.5523991332 | R175: 1.485911188 | S175: 0.3099845884 | T175: 1.018106882 | U175: 1.716852769 | V175: 0.8651263142 | W175: 0.9695570805 | X175: 0.9061240265 | Y175: 2.625791297 | Z175: 1.200775733 | AA175: 0.515813756 | AB175: 1.280575884 | AC175: 0.8029525482 | AD175: 0.9787712159 | AE175: 1.32277491 | AF175: 0.9179588862 | BC175: =COUNTIFS(CHART!$A$35:$A$75,B175)+COUNTIFS(CHART!$A$35:$A$75,C175)+COUNTIFS(CHART!$A$35:$A$75,A175) -> 0 | BE175: Traditional channel | BF175: Customer | BG175: Fruits | BH175: Citrus | BI175: oranges
A176: Total | B176: Traditional channel | C176: Customer | D176: Fruits | E176: Citrus | F176: grapefruits | G176: 5.899061415 | H176: 9.802638069 | I176: 8.922323217 | J176: 8.86373972 | K176: 6.114226442 | L176: 12.1290667 | M176: 11.59614141 | N176: 6.962723855 | O176: 9.434732039 | P176: 7.141172149 | Q176: 9.131160878 | R176: 16.18940798 | S176: 3.106495454 | T176: 8.698143579 | U176: 12.54133871 | V176: 6.742686269 | W176: 6.187453223 | X176: 7.215339247 | Y176: 11.31479412 | Z176: 6.295071831 | AA176: 9.295949145 | AB176: 11.29569323 | AC176: 7.363145162 | AD176: 7.099877196 | AE176: 6.942176462 | AF176: 7.92699316 | BC176: =COUNTIFS(CHART!$A$35:$A$75,B176)+COUNTIFS(CHART!$A$35:$A$75,C176)+COUNTIFS(CHART!$A$35:$A$75,A176) -> 0 | BE176: Traditional channel | BF176: Customer | BG176: Fruits | BH176: Citrus | BI176: grapefruits
A177: Total | B177: Traditional channel | C177: Customer | D177: Fruits | E177: Citrus | F177: mandarins | G177: 23.39348404 | H177: 42.08202152 | I177: 30.85282084 | J177: 30.7289378 | K177: 63.27178288 | L177: 23.71905365 | M177: 32.43943864 | N177: 37.70479238 | O177: 56.72369552 | P177: 41.82955454 | Q177: 165.7290079 | R177: 126.2994581 | S177: 144.1966524 | T177: 67.73525053 | U177: 65.87433335 | V177: 38.02244477 | W177: 96.03578749 | X177: 104.0159683 | Y177: 35.44000001 | Z177: 84.53815884 | AA177: 77.54804997 | AB177: 52.39298972 | AC177: 46.13388159 | AD177: 16.50068288 | AE177: 10.40121177 | AF177: 56.65220413 | BC177: =COUNTIFS(CHART!$A$35:$A$75,B177)+COUNTIFS(CHART!$A$35:$A$75,C177)+COUNTIFS(CHART!$A$35:$A$75,A177) -> 0 | BE177: Traditional channel | BF177: Customer | BG177: Fruits | BH177: Citrus | BI177: mandarins
A178: Total | B178: Traditional channel | C178: Customer | D178: Fruits | E178: Citrus | F178: limes | G178: 8.193161774 | H178: 8.33600359 | I178: 8.289128659 | J178: 7.406831684 | K178: 15.32535478 | L178: 18.08145048 | M178: 11.95127022 | N178: 15.1250719 | O178: 12.83625988 | P178: 27.50521946 | Q178: 12.09552772 | R178: 8.215057439 | S178: 7.923296432 | T178: 14.58070373 | U178: 12.0427614 | V178: 9.567101816 | W178: 42.91369647 | X178: 44.22267267 | Y178: 13.73616627 | Z178: 44.61302624 | AA178: 50.16191226 | AB178: 41.47541211 | AC178: 46.23964435 | AD178: 35.55681128 | AE178: 36.77709526 | AF178: 37.32280523 | BC178: =COUNTIFS(CHART!$A$35:$A$75,B178)+COUNTIFS(CHART!$A$35:$A$75,C178)+COUNTIFS(CHART!$A$35:$A$75,A178) -> 0 | BE178: Traditional channel | BF178: Customer | BG178: Fruits | BH178: Citrus | BI178: limes
A179: Total | B179: Traditional channel | C179: Customer | D179: Fruits | E179: Berries | F179: strawberries | G179: 3.243502297 | H179: 2.848517517 | I179: 3.599408904 | J179: 3.210047677 | K179: 4.013413671 | L179: 4.963946406 | M179: 7.286479763 | N179: 2.713220451 | O179: 4.13544677 | P179: 4.825758577 | Q179: 1.55465961 | R179: 2.810181307 | S179: 0.7361997902 | T179: 2.062368892 | U179: 2.934096502 | V179: 3.144405668 | W179: 4.551953328 | X179: 5.437070004 | Y179: 6.283548764 | Z179: 4.243877826 | AA179: 4.51392224 | AB179: 5.499123084 | AC179: 3.308793843 | AD179: 2.493595486 | AE179: 3.976175588 | AF179: 3.520224575 | BC179: =COUNTIFS(CHART!$A$35:$A$75,B179)+COUNTIFS(CHART!$A$35:$A$75,C179)+COUNTIFS(CHART!$A$35:$A$75,A179) -> 0 | BE179: Traditional channel | BF179: Customer | BG179: Fruits | BH179: Berries | BI179: strawberries
A180: Total | B180: Traditional channel | C180: Customer | D180: Fruits | E180: Apples and pears | F180: apples | G180: 625.0527093 | H180: 287.595716 | I180: 724.7574527 | J180: 254.2010418 | K180: 383.7065647 | L180: 364.8504385 | M180: 100.0858909 | N180: 100.7378757 | O180: 607.4854089 | P180: 221.5956719 | Q180: 157.2919197 | R180: 237.4494323 | S180: 46.00066925 | T180: 304.9437506 | U180: 492.3433721 | V180: 342.770744 | W180: 91.61836779 | X180: 192.1718695 | Y180: 82.00686346 | Z180: 85.04619496 | AA180: 235.0128401 | AB180: 262.8193199 | AC180: 250.1432068 | AD180: 321.8163181 | AE180: 86.82407028 | AF180: 77.52379727 | BC180: =COUNTIFS(CHART!$A$35:$A$75,B180)+COUNTIFS(CHART!$A$35:$A$75,C180)+COUNTIFS(CHART!$A$35:$A$75,A180) -> 0 | BE180: Traditional channel | BF180: Customer | BG180: Fruits | BH180: Apples and pears | BI180: apples
A181: Total | B181: Traditional channel | C181: Customer | D181: Vegetables | E181: Leafy Green | F181: lettuce | G181: 0.3828504542 | H181: 0.3658889301 | I181: 1.171642102 | J181: 0.7008723215 | K181: 0.8150119847 | L181: 0.5509780567 | M181: 1.151657598 | N181: 0.9659841625 | O181: 0.7203359169 | P181: 0.8699223153 | Q181: 0.7120884397 | R181: 0.5374513523 | S181: 0.2258403434 | T181: 0.3392888598 | U181: 1.200183798 | V181: 0.668266827 | W181: 0.6805256555 | X181: 0.3896077765 | Y181: 0.7540166037 | Z181: 0.7986440467 | AA181: 0.3718324952 | AB181: 1.06883321 | AC181: 0.4504247857 | AD181: 0.4759862566 | AE181: 1.165283247 | AF181: 0.4524307118 | BC181: =COUNTIFS(CHART!$A$35:$A$75,B181)+COUNTIFS(CHART!$A$35:$A$75,C181)+COUNTIFS(CHART!$A$35:$A$75,A181) -> 0 | BE181: Traditional channel | BF181: Customer | BG181: Vegetables | BH181: Leafy Green | BI181: lettuce
A182: Total | B182: Traditional channel | C182: Customer | D182: Fruits | E182: Tropical and exotic | F182: mangoes | G182: 0 | H182: 0 | I182: 0 | J182: 0 | K182: 0 | L182: 0 | M182: 0 | N182: 0 | O182: 0 | P182: 3.274056984 | Q182: 0 | R182: 0 | S182: 0 | T182: 0 | U182: 0.1921193853 | V182: 0 | W182: 0 | X182: 0 | Y182: 0 | Z182: 0 | AA182: 0 | AB182: 0 | AC182: 0 | AD182: 0 | AE182: 0 | AF182: 0 | BC182: =COUNTIFS(CHART!$A$35:$A$75,B182)+COUNTIFS(CHART!$A$35:$A$75,C182)+COUNTIFS(CHART!$A$35:$A$75,A182) -> 0 | BE182: Traditional channel | BF182: Customer | BG182: Fruits | BH182: Tropical and exotic | BI182: mangoes
A183: Total | B183: Traditional channel | C183: Customer | D183: Fruits | E183: Berries | F183: raspberries | G183: 62.78369298 | H183: 159.3038788 | I183: 493.1503169 | J183: 209.2326508 | K183: 165.7331524 | L183: 118.6913579 | M183: 34.67141033 | N183: 39.24492614 | O183: 134.7576927 | P183: 156.9026954 | Q183: 236.0996609 | R183: 217.7953214 | S183: 147.2396038 | T183: 154.7653106 | U183: 113.040294 | V183: 104.870762 | W183: 74.21858887 | X183: 23.12030985 | Y183: 70.65774751 | Z183: 11.14615778 | AA183: 90.61086482 | AB183: 327.3221422 | AC183: 462.6242045 | AD183: 186.05888 | AE183: 18.09479773 | AF183: 87.11444179 | BC183: =COUNTIFS(CHART!$A$35:$A$75,B183)+COUNTIFS(CHART!$A$35:$A$75,C183)+COUNTIFS(CHART!$A$35:$A$75,A183) -> 0 | BE183: Traditional channel | BF183: Customer | BG183: Fruits | BH183: Berries | BI183: raspberries
A184: Total | B184: Traditional channel | C184: Customer | D184: Fruits | E184: Berries | F184: blueberries | G184: 0.8313093301 | H184: 1.398827907 | I184: 0.7518503697 | J184: 0.349337393 | K184: 1.273725783 | L184: 0.1679672553 | M184: 1.295804474 | N184: 0.2168241974 | O184: 0.1479195072 | P184: 1.597287213 | Q184: 0.350274814 | R184: 0.2610659044 | S184: 1.119295806 | T184: 0.1417121648 | U184: 0.6213291825 | V184: 0.7454693653 | W184: 0.2302445234 | X184: 0.1916258277 | Y184: 0.515104262 | Z184: 0.4172417845 | AA184: 0.4641102646 | AB184: 1.760032287 | AC184: 0.2060593955 | AD184: 0.1766713378 | AE184: 0.7637092038 | AF184: 0.1564309149 | BC184: =COUNTIFS(CHART!$A$35:$A$75,B184)+COUNTIFS(CHART!$A$35:$A$75,C184)+COUNTIFS(CHART!$A$35:$A$75,A184) -> 0 | BE184: Traditional channel | BF184: Customer | BG184: Fruits | BH184: Berries | BI184: blueberries
A185: Total | B185: Traditional channel | C185: Customer | D185: Fruits | E185: Tropical and exotic | F185: bananas | G185: 0 | H185: 0 | I185: 0 | J185: 0 | K185: 0 | L185: 0 | M185: 0 | N185: 0 | O185: 0 | P185: 0 | Q185: 0 | R185: 0 | S185: 0 | T185: 0 | U185: 0 | V185: 0 | W185: 0 | X185: 0 | Y185: 0 | Z185: 0 | AA185: 0.01335666048 | AB185: 0 | AC185: 0 | AD185: 0 | AE185: 0 | AF185: 0 | BC185: =COUNTIFS(CHART!$A$35:$A$75,B185)+COUNTIFS(CHART!$A$35:$A$75,C185)+COUNTIFS(CHART!$A$35:$A$75,A185) -> 0 | BE185: Traditional channel | BF185: Customer | BG185: Fruits | BH185: Tropical and exotic | BI185: bananas
A186: Total | B186: Traditional channel | C186: Customer | D186: Vegetables | E186: Leafy Green | F186: spinach | G186: 25.42915138 | H186: 20.80738958 | I186: 41.78025944 | J186: 47.60082339 | K186: 49.95818044 | L186: 36.72097977 | M186: 61.94549542 | N186: 56.97579221 | O186: 61.16158002 | P186: 52.73187499 | Q186: 83.27956524 | R186: 66.64227985 | S186: 21.81797404 | T186: 29.80232553 | U186: 47.18303182 | V186: 35.88604162 | W186: 48.47120867 | X186: 35.87282122 | Y186: 63.6158023 | Z186: 39.77466539 | AA186: 51.32756369 | AB186: 55.86315762 | AC186: 82.36911821 | AD186: 52.94461815 | AE186: 21.57580549 | AF186: 19.58039871 | BC186: =COUNTIFS(CHART!$A$35:$A$75,B186)+COUNTIFS(CHART!$A$35:$A$75,C186)+COUNTIFS(CHART!$A$35:$A$75,A186) -> 0 | BE186: Traditional channel | BF186: Customer | BG186: Vegetables | BH186: Leafy Green | BI186: spinach
A187: Total | B187: Traditional channel | C187: Customer | D187: Vegetables | E187: Cruciferous | F187: cabbage | G187: 0 | H187: 0 | I187: 0 | J187: 0 | K187: 0 | L187: 0 | M187: 0 | N187: 0 | O187: 0 | P187: 0 | Q187: 0 | R187: 0 | S187: 0.1354839704 | T187: 0 | U187: 0 | V187: 0 | W187: 0 | X187: 0 | Y187: 0 | Z187: 0 | AA187: 0 | AB187: 0 | AC187: 0 | AD187: 0 | AE187: 0 | AF187: 0 | BC187: =COUNTIFS(CHART!$A$35:$A$75,B187)+COUNTIFS(CHART!$A$35:$A$75,C187)+COUNTIFS(CHART!$A$35:$A$75,A187) -> 0 | BE187: Traditional channel | BF187: Customer | BG187: Vegetables | BH187: Cruciferous | BI187: cabbage
A188: Total | B188: Traditional channel | C188: Customer | D188: Vegetables | E188: Cruciferous | F188: cauliflower | G188: 3.708787934 | H188: 5.441735637 | I188: 4.870442081 | J188: 4.333400111 | K188: 3.686907017 | L188: 4.26729076 | M188: 6.923140272 | N188: 5.421535506 | O188: 5.747986964 | P188: 5.238426033 | Q188: 12.53240085 | R188: 6.379258951 | S188: 2.334793663 | T188: 3.32292474 | U188: 4.186552347 | V188: 4.272448752 | W188: 5.44506826 | X188: 5.022908601 | Y188: 7.759805109 | Z188: 8.012337408 | AA188: 7.554077501 | AB188: 6.726211965 | AC188: 5.65444802 | AD188: 7.534649747 | AE188: 2.414427616 | AF188: 2.135804393 | BC188: =COUNTIFS(CHART!$A$35:$A$75,B188)+COUNTIFS(CHART!$A$35:$A$75,C188)+COUNTIFS(CHART!$A$35:$A$75,A188) -> 0 | BE188: Traditional channel | BF188: Customer | BG188: Vegetables | BH188: Cruciferous | BI188: cauliflower
A189: Total | B189: Traditional channel | C189: Customer | D189: Vegetables | E189: Cruciferous | F189: russels | G189: 7.14492857 | H189: 4.17238437 | I189: 3.427952381 | J189: 4.668930806 | K189: 4.514384949 | L189: 1.304359715 | M189: 4.380544252 | N189: 2.879963218 | O189: 2.461416393 | P189: 3.941612761 | Q189: 3.657204464 | R189: 3.171723717 | S189: 3.497130075 | T189: 3.929153903 | U189: 2.297111419 | V189: 3.855279364 | W189: 2.86850461 | X189: 2.218512365 | Y189: 2.737546387 | Z189: 1.73753747 | AA189: 2.618344772 | AB189: 6.432303715 | AC189: 2.902452812 | AD189: 2.536444664 | AE189: 4.62864591 | AF189: 2.315256057 | BC189: =COUNTIFS(CHART!$A$35:$A$75,B189)+COUNTIFS(CHART!$A$35:$A$75,C189)+COUNTIFS(CHART!$A$35:$A$75,A189) -> 0 | BE189: Traditional channel | BF189: Customer | BG189: Vegetables | BH189: Cruciferous | BI189: russels
A190: Total | B190: Traditional channel | C190: Customer | D190: Vegetables | E190: Leafy Green | F190: silverbeet | G190: 4.596012692 | H190: 4.353198207 | I190: 8.000128297 | J190: 5.23221543 | K190: 6.156781054 | L190: 2.42127953 | M190: 5.069227497 | N190: 3.915210069 | O190: 12.08901167 | P190: 10.19685671 | Q190: 1.38247105 | R190: 2.393778287 | S190: 2.977702154 | T190: 4.911287412 | U190: 7.376524176 | V190: 2.959661072 | W190: 4.518074292 | X190: 3.450242304 | Y190: 4.92284854 | Z190: 3.538263776 | AA190: 6.868282773 | AB190: 7.35688452 | AC190: 6.315241092 | AD190: 4.898157344 | AE190: 3.535629109 | AF190: 5.288442811 | BC190: =COUNTIFS(CHART!$A$35:$A$75,B190)+COUNTIFS(CHART!$A$35:$A$75,C190)+COUNTIFS(CHART!$A$35:$A$75,A190) -> 0 | BE190: Traditional channel | BF190: Customer | BG190: Vegetables | BH190: Leafy Green | BI190: silverbeet
A191: Total | B191: Traditional channel | C191: Customer | D191: Vegetables | E191: Marrow | F191: pumpkin | G191: 7.311649769 | H191: 10.1045497 | I191: 9.577744922 | J191: 6.096508917 | K191: 8.694493508 | L191: 12.83338566 | M191: 7.328346085 | N191: 6.010504075 | O191: 8.750235554 | P191: 58.84183353 | Q191: 62.90299469 | R191: 4.813724069 | S191: 10.44618415 | T191: 5.758087833 | U191: 112.8133861 | V191: 5.896450499 | W191: 5.562022252 | X191: 57.41989332 | Y191: 7.391104717 | Z191: 2.882864048 | AA191: 8.264770135 | AB191: 7.752382592 | AC191: 5.632629607 | AD191: 30.00488144 | AE191: 35.89744168 | AF191: 6.367649501 | BC191: =COUNTIFS(CHART!$A$35:$A$75,B191)+COUNTIFS(CHART!$A$35:$A$75,C191)+COUNTIFS(CHART!$A$35:$A$75,A191) -> 0 | BE191: Traditional channel | BF191: Customer | BG191: Vegetables | BH191: Marrow | BI191: pumpkin
A192: Total | B192: Traditional channel | C192: Customer | D192: Vegetables | E192: Cruciferous | F192: russels | G192: 0 | H192: 0.9565287867 | I192: 0.1816155506 | J192: 0.0708527051 | K192: 0 | L192: 0 | M192: 0 | N192: 0 | O192: 0.1087088717 | P192: 0.3472123016 | Q192: 0.1443583974 | R192: 0.3684906259 | S192: 0 | T192: 0.2621304749 | U192: 0.1208115696 | V192: 0 | W192: 0 | X192: 0 | Y192: 0 | Z192: 0 | AA192: 0 | AB192: 0.160934049 | AC192: 1.017313172 | AD192: 0.1451829059 | AE192: 0.2094369598 | AF192: 0.02973245962 | BC192: =COUNTIFS(CHART!$A$35:$A$75,B192)+COUNTIFS(CHART!$A$35:$A$75,C192)+COUNTIFS(CHART!$A$35:$A$75,A192) -> 0 | BE192: Traditional channel | BF192: Customer | BG192: Vegetables | BH192: Cruciferous | BI192: russels
A193: Total | B193: Traditional channel | C193: Customer | D193: Vegetables | E193: Marrow | F193: cucumber | G193: 0.6003040042 | H193: 0 | I193: 0 | J193: 0 | K193: 0 | L193: 0 | M193: 0 | N193: 0.2334669803 | O193: 215.8882453 | P193: 130.8572274 | Q193: 5.34604799 | R193: 0.2487960787 | S193: 2.1226464 | T193: 0.04394492569 | U193: -0.02543033005 | V193: 0 | W193: 0 | X193: 0 | Y193: 0 | Z193: 0 | AA193: 115.1034804 | AB193: 37.35191405 | AC193: 2.475453432 | AD193: 0.8317437983 | AE193: 0.2192767816 | AF193: 0 | BC193: =COUNTIFS(CHART!$A$35:$A$75,B193)+COUNTIFS(CHART!$A$35:$A$75,C193)+COUNTIFS(CHART!$A$35:$A$75,A193) -> 0 | BE193: Traditional channel | BF193: Customer | BG193: Vegetables | BH193: Marrow | BI193: cucumber
A194: Total | B194: Traditional channel | C194: Customer | D194: Vegetables | E194: Marrow | F194: zucchini | G194: 37.37974066 | H194: 12.39332753 | I194: 8.829950806 | J194: 0.09318405115 | K194: 0 | L194: 0.09515337262 | M194: 0 | N194: 0 | O194: 0 | P194: 0 | Q194: 0 | R194: 0 | S194: 322.1746244 | T194: 13.76820632 | U194: 2.256804962 | V194: 0.09636503561 | W194: 0.02818110015 | X194: 0.008087041235 | Y194: 0 | Z194: 0.03064337054 | AA194: 0 | AB194: 0 | AC194: 0 | AD194: 0 | AE194: 34.76266903 | AF194: 8.9871895 | BC194: =COUNTIFS(CHART!$A$35:$A$75,B194)+COUNTIFS(CHART!$A$35:$A$75,C194)+COUNTIFS(CHART!$A$35:$A$75,A194) -> 0 | BE194: Traditional channel | BF194: Customer | BG194: Vegetables | BH194: Marrow | BI194: zucchini
A195: Total | B195: Traditional channel | C195: Customer | D195: Vegetables | E195: Marrow | F195: cucumber | G195: 0 | H195: 0 | I195: 0 | J195: 0 | K195: 0 | L195: 0 | M195: 0 | N195: 0 | O195: 0 | P195: 0 | Q195: 0 | R195: 0 | S195: 0 | T195: 0 | U195: 0 | V195: 0 | W195: 0 | X195: 0 | Y195: 0 | Z195: 0 | AA195: 0 | AB195: 0 | AC195: 19.80373415 | AD195: 3.436795294 | AE195: 0 | AF195: 0 | BC195: =COUNTIFS(CHART!$A$35:$A$75,B195)+COUNTIFS(CHART!$A$35:$A$75,C195)+COUNTIFS(CHART!$A$35:$A$75,A195) -> 0 | BE195: Traditional channel | BF195: Customer | BG195: Vegetables | BH195: Marrow | BI195: cucumber
A196: Total | B196: Traditional channel | C196: Customer | D196: Vegetables | E196: Marrow | F196: zucchini | G196: 0 | H196: 0 | I196: 0 | J196: 0 | K196: 0 | L196: 0 | M196: 0 | N196: 0 | O196: 0 | P196: 0 | Q196: 0 | R196: 0 | S196: 0 | T196: 0 | U196: 0 | V196: 0 | W196: 0 | X196: 0 | Y196: 0 | Z196: 0 | AA196: 0 | AB196: 0 | AC196: 0 | AD196: 0 | AE196: 0 | AF196: 0 | BC196: =COUNTIFS(CHART!$A$35:$A$75,B196)+COUNTIFS(CHART!$A$35:$A$75,C196)+COUNTIFS(CHART!$A$35:$A$75,A196) -> 0 | BE196: Traditional channel | BF196: Customer | BG196: Vegetables | BH196: Marrow | BI196: zucchini
A197: Total | B197: Traditional channel | C197: Customer | D197: Vegetables | E197: Root | F197: potato | G197: 0.6163775096 | H197: 0.6660137238 | I197: 0.9007534514 | J197: 0.7057901175 | K197: 1.086199171 | L197: 0.7953915165 | M197: 1.467573768 | N197: 1.020684663 | O197: 0.7341338685 | P197: 0.9054973796 | Q197: 2.367456794 | R197: 0.780999702 | S197: 0.5351232097 | T197: 0.9788113055 | U197: 0.7492960216 | V197: 0.6289216293 | W197: 1.369227015 | X197: 0.6281850657 | Y197: 1.512324702 | Z197: 0.9965241678 | AA197: 1.171994651 | AB197: 1.391301672 | AC197: 1.146647157 | AD197: 0.6874844346 | AE197: 0.09215609478 | AF197: 0 | BC197: =COUNTIFS(CHART!$A$35:$A$75,B197)+COUNTIFS(CHART!$A$35:$A$75,C197)+COUNTIFS(CHART!$A$35:$A$75,A197) -> 0 | BE197: Traditional channel | BF197: Customer | BG197: Vegetables | BH197: Root | BI197: potato
A198: Total | B198: Traditional channel | C198: Customer | D198: Vegetables | E198: Root | F198: sweet potato | G198: 14.32864565 | H198: 25.71410205 | I198: 34.53784356 | J198: 45.63449696 | K198: 20.00150352 | L198: 19.13387164 | M198: 52.2836146 | N198: 38.57112845 | O198: 31.49980455 | P198: 39.24054087 | Q198: 29.02667147 | R198: 39.59501266 | S198: 21.39501711 | T198: 29.58132971 | U198: 51.04208253 | V198: 30.99496281 | W198: 27.15637276 | X198: 28.56117974 | Y198: 62.25721685 | Z198: 38.91338963 | AA198: 30.39973387 | AB198: 43.50582325 | AC198: 33.20028374 | AD198: 30.03646859 | AE198: 24.0250989 | AF198: 22.59017556 | BC198: =COUNTIFS(CHART!$A$35:$A$75,B198)+COUNTIFS(CHART!$A$35:$A$75,C198)+COUNTIFS(CHART!$A$35:$A$75,A198) -> 0 | BE198: Traditional channel | BF198: Customer | BG198: Vegetables | BH198: Root | BI198: sweet potato
A199: Total | B199: Traditional channel | C199: Customer | D199: Fruits | E199: Apples and pears | F199: pears | G199: 0.1762707679 | H199: 1.076024767 | I199: 1.922176266 | J199: 1.202981134 | K199: 1.006517188 | L199: 20.91952839 | M199: 0.3783305404 | N199: 0.08584854305 | O199: 3.105110845 | P199: 9.102111617 | Q199: 11.31514555 | R199: 24.81973943 | S199: 9.316166066 | T199: 21.01416508 | U199: 27.75466131 | V199: 17.88080376 | W199: 15.52390258 | X199: 0.6492395176 | Y199: 15.84630659 | Z199: 2.080006497 | AA199: 4.394184691 | AB199: 3.42310199 | AC199: 2.253473033 | AD199: 1.631420945 | AE199: 1.566020432 | AF199: 0.8415491222 | BC199: =COUNTIFS(CHART!$A$35:$A$75,B199)+COUNTIFS(CHART!$A$35:$A$75,C199)+COUNTIFS(CHART!$A$35:$A$75,A199) -> 0 | BE199: Traditional channel | BF199: Customer | BG199: Fruits | BH199: Apples and pears | BI199: pears
A200: Total | B200: Traditional channel | C200: Customer | D200: Fruits | E200: Citrus | F200: oranges | G200: 0 | H200: 0 | I200: 0 | J200: 0 | K200: 0 | L200: 4.00392955 | M200: 8.904874499 | N200: 8.655084651 | O200: 3.336713375 | P200: 3.294404695 | Q200: 2.412646715 | R200: 4.783750888 | S200: 3.161790395 | T200: 2.648035168 | U200: 0 | V200: 0 | W200: 0 | X200: 0 | Y200: 0 | Z200: 0.3266600529 | AA200: 0.01803621077 | AB200: 0.1513625144 | AC200: 0.06056126234 | AD200: 0 | AE200: 0 | AF200: 0 | BC200: =COUNTIFS(CHART!$A$35:$A$75,B200)+COUNTIFS(CHART!$A$35:$A$75,C200)+COUNTIFS(CHART!$A$35:$A$75,A200) -> 0 | BE200: Traditional channel | BF200: Customer | BG200: Fruits | BH200: Citrus | BI200: oranges
... 925 more rows

Sheet Forecast (hidden)
A1: Category | B1: Segment | C1: Product group | D1: F2019_01 | E1: F2019_02 | F1: F2019_03 | G1: F2019_04 | H1: F2019_05 | I1: F2019_06 | J1: F2019_07 | K1: F2019_08 | L1: F2019_09 | M1: F2019_10 | N1: F2019_11 | O1: F2019_12 | P1: F2020_01 | Q1: F2020_02 | R1: F2020_03 | S1: F2020_04 | T1: F2020_05 | U1: F2020_06 | V1: F2020_07 | W1: F2020_08 | X1: F2020_09 | Y1: F2020_10 | Z1: F2020_11 | AA1: F2020_12
A2: Fruits | B2: Apples and pears | C2: pears | D2: 64.3418101 | E2: 90.41740316 | F2: 125.8949813 | G2: 133.9558583 | H2: 164.4643508 | I2: 268.5738543 | J2: 194.5504879 | K2: 164.3251338 | L2: 114.2641219 | M2: 132.0619555 | N2: 117.9668406 | O2: 103.1960879 | P2: 114.8823144 | Q2: 130.3877741 | R2: 142.4424754 | S2: 126.7399911 | T2: 109.8221256 | U2: 94.95578372 | V2: 167.3677865 | W2: 133.2289496 | X2: 2.833387999 | Y2: 1.904722042 | Z2: 1.699216266 | AA2: 1.475786162
A3: Fruits | B3: Apples and pears | C3: apples | D3: 1317.427265 | E3: 927.622303 | F3: 1647.428962 | G3: 1681.433346 | H3: 1249.193692 | I3: 1214.054164 | J3: 1752.689394 | K3: 1130.33598 | L3: 1638.853419 | M3: 1837.684423 | N3: 1792.021835 | O3: 1560.055181 | P3: 1116.501515 | Q3: 1376.222926 | R3: 1566.877044 | S3: 1180.464495 | T3: 1090.579872 | U3: 1154.176329 | V3: 950.5674247 | W3: 840.8149412 | X3: 90.24011131 | Y3: 88.04001737 | Z3: 86.87075588 | AA3: 78.78566489
A4: Fruits | B4: Berries | C4: strawberries | D4: 124.8160883 | E4: 204.6047119 | F4: 114.2388307 | G4: 130.7077983 | H4: 112.7035698 | I4: 162.4604031 | J4: 176.5563247 | K4: 164.9264206 | L4: 86.77675718 | M4: 144.8259143 | N4: 113.049741 | O4: 165.6986842 | P4: 67.59340423 | Q4: 140.6468849 | R4: 107.7984375 | S4: 116.6072695 | T4: 84.54102427 | U4: 141.1955734 | V4: 197.9602732 | W4: 135.0818987 | X4: 0 | Y4: 0 | Z4: 0 | AA4: 0
A5: Fruits | B5: Berries | C5: raspberries | D5: 855.0839107 | E5: 852.8013388 | F5: 1260.360689 | G5: 1227.124042 | H5: 1375.188031 | I5: 922.8654445 | J5: 1298.477819 | K5: 1229.396328 | L5: 1409.297159 | M5: 1848.388013 | N5: 1625.126985 | O5: 1527.27566 | P5: 1363.830956 | Q5: 1147.354178 | R5: 1585.046601 | S5: 1708.51615 | T5: 1356.778884 | U5: 1358.109427 | V5: 1205.041431 | W5: 1502.451251 | X5: 0 | Y5: 0 | Z5: 0 | AA5: 0
A6: Fruits | B6: Berries | C6: blueberries | D6: 157.4348522 | E6: 85.72180605 | F6: 84.37694142 | G6: 52.00964954 | H6: 153.5816665 | I6: 85.47201186 | J6: 91.28645376 | K6: 56.35441538 | L6: 129.6806863 | M6: 109.2627261 | N6: 157.3566517 | O6: 58.07934549 | P6: 176.1831685 | Q6: 133.3826306 | R6: 80.25665719 | S6: 165.1898241 | T6: 70.59594077 | U6: 121.8399246 | V6: 164.5777941 | W6: 98.21586844 | X6: 0 | Y6: 0 | Z6: 0 | AA6: 0
A7: Fruits | B7: Citrus | C7: oranges | D7: 59.69006257 | E7: 48.69483492 | F7: 25.67398327 | G7: 40.76649155 | H7: 41.83153521 | I7: 54.82195748 | J7: 74.55260621 | K7: 101.3635484 | L7: 92.01447591 | M7: 38.05576279 | N7: 51.72459819 | O7: 60.61405584 | P7: 53.23147473 | Q7: 49.26770138 | R7: 52.27752847 | S7: 44.10414797 | T7: 30.55979503 | U7: 65.17504145 | V7: 71.09444651 | W7: 88.93266422 | X7: 1.535318054 | Y7: 4.92217639 | Z7: 2.357805702 | AA7: 4.15567977
A8: Fruits | B8: Citrus | C8: grapefruits | D8: 220.1758944 | E8: 171.741214 | F8: 176.271723 | G8: 185.35459 | H8: 132.8861692 | I8: 148.5327006 | J8: 215.5288848 | K8: 214.6373861 | L8: 207.3137122 | M8: 147.620328 | N8: 213.7849645 | O8: 157.664386 | P8: 149.5206217 | Q8: 115.1471438 | R8: 176.701308 | S8: 131.5477482 | T8: 153.9915084 | U8: 135.6170903 | V8: 216.7669024 | W8: 158.1336403 | X8: 9.904591889 | Y8: 8.81629987 | Z8: 9.319371084 | AA8: 9.240305731
A9: Fruits | B9: Citrus | C9: mandarins | D9: 200.6737453 | E9: 181.2680312 | F9: 346.6504455 | G9: 250.3797452 | H9: 350.0271351 | I9: 340.7590094 | J9: 303.6086791 | K9: 430.5675306 | L9: 227.4019606 | M9: 315.8913792 | N9: 331.1073675 | O9: 178.3547869 | P9: 346.5677129 | Q9: 278.276723 | R9: 308.6953424 | S9: 229.2034558 | T9: 233.7050125 | U9: 237.5244407 | V9: 301.8543064 | W9: 527.3619808 | X9: 9.619177975 | Y9: 9.797392172 | Z9: 9.631546868 | AA9: 10.29568487
A10: Fruits | B10: Citrus | C10: limes | D10: 152.514265 | E10: 140.2694689 | F10: 146.9057619 | G10: 148.9798043 | H10: 121.7628584 | I10: 117.5812628 | J10: 192.1382212 | K10: 141.8994197 | L10: 87.79800525 | M10: 129.9624331 | N10: 141.525579 | O10: 78.03268714 | P10: 127.4860324 | Q10: 119.1389637 | R10: 155.6514777 | S10: 107.3162723 | T10: 127.2715378 | U10: 109.6533492 | V10: 176.7758605 | W10: 111.9327995 | X10: 0 | Y10: 0 | Z10: 0 | AA10: 0
A11: Fruits | B11: Tropical and exotic | C11: mangoes | D11: 77.93054885 | E11: 95.97355636 | F11: 120.2500178 | G11: 81.78743432 | H11: 112.1087222 | I11: 92.01634877 | J11: 163.1158361 | K11: 106.4792151 | L11: 109.2465904 | M11: 90.83375784 | N11: 112.89159 | O11: 117.0134183 | P11: 101.7229128 | Q11: 106.4832742 | R11: 131.0114727 | S11: 111.6792029 | T11: 118.0640834 | U11: 118.4979279 | V11: 153.8339033 | W11: 122.7902154 | X11: 0 | Y11: 0 | Z11: 0 | AA11: 0
A12: Fruits | B12: Tropical and exotic | C12: bananas | D12: 28.07981488 | E12: 39.73642713 | F12: 111.7046822 | G12: 28.38412975 | H12: 47.2496075 | I12: 53.37003425 | J12: 68.7678399 | K12: 42.0359537 | L12: 60.37277796 | M12: 226.7340458 | N12: 71.40272951 | O12: 69.40867808 | P12: 21.06562983 | Q12: 96.56840267 | R12: 70.09049931 | S12: 54.28410873 | T12: 55.13647733 | U12: 49.52232292 | V12: 43.59147018 | W12: 40.98508444 | X12: 0 | Y12: 0 | Z12: 0 | AA12: 0
A13: Vegetables | B13: Cruciferous | C13: cabbage | D13: 31.64880645 | E13: 28.67132034 | F13: 29.04094338 | G13: 28.05615887 | H13: 39.4217914 | I13: 25.53287687 | J13: 61.81232883 | K13: 47.82062329 | L13: 42.48881665 | M13: 42.38260494 | N13: 33.210419 | O13: 60.56191385 | P13: 30.39348084 | Q13: 12.00073102 | R13: 30.38324277 | S13: 41.03808593 | T13: 29.79887654 | U13: 25.01331806 | V13: 0 | W13: 0 | X13: 0 | Y13: 0 | Z13: 0 | AA13: 0
A14: Vegetables | B14: Cruciferous | C14: cauliflower | D14: 32.09772129 | E14: 36.09650338 | F14: 45.90730551 | G14: 34.00074516 | H14: 35.59157159 | I14: 34.81500454 | J14: 67.4528263 | K14: 38.83024103 | L14: 43.61043696 | M14: 42.38111834 | N14: 46.76389459 | O14: 66.20876492 | P14: 28.07490541 | Q14: 33.3934399 | R14: 40.42047649 | S14: 31.72903096 | T14: 40.89157666 | U14: 35.92897415 | V14: 23.50072919 | W14: 19.93156155 | X14: 18.41274609 | Y14: 19.08597571 | Z14: 22.35281035 | AA14: 23.25640137
A15: Vegetables | B15: Cruciferous | C15: russels | D15: 83.73254792 | E15: 69.28152541 | F15: 75.79658955 | G15: 173.5108595 | H15: 63.75379781 | I15: 40.63827922 | J15: 18.733744 | K15: 58.69002213 | L15: 34.66574042 | M15: 18.63088951 | N15: 9.894703632 | O15: 22.12844466 | P15: 172.0993787 | Q15: 36.14227584 | R15: 30.30630063 | S15: 164.6222998 | T15: 34.56361573 | U15: 32.62754497 | V15: 8.57803414 | W15: 4.245051947 | X15: 3.618023211 | Y15: 1.764640518 | Z15: 37.79876656 | AA15: 26.68878274
A16: Vegetables | B16: Cruciferous | C16: russels | D16: 0.2131965634 | E16: 0.1481532813 | F16: 28.37980165 | G16: 0 | H16: 0 | I16: 0 | J16: 0 | K16: 0 | L16: 5.401714045 | M16: 40.65705253 | N16: 39.84273612 | O16: 0 | P16: 0.1696458557 | Q16: 2.832835587 | R16: 6.791175799 | S16: 0 | T16: 0 | U16: 0 | V16: 0 | W16: 0 | X16: 0 | Y16: 0 | Z16: 0 | AA16: 0
A17: Vegetables | B17: Leafy Green | C17: lettuce | D17: 58.29081865 | E17: 43.35285552 | F17: 54.26822772 | G17: 45.7234141 | H17: 41.23823253 | I17: 96.10042187 | J17: 49.18898889 | K17: 18.15508725 | L17: 40.75521346 | M17: 40.41269615 | N17: 51.72373633 | O17: 63.76018474 | P17: 27.91686149 | Q17: 39.661182 | R17: 35.85768126 | S17: 64.76007004 | T17: 30.28678716 | U17: 23.4508627 | V17: 47.24975896 | W17: 56.77610277 | X17: 1.571059414 | Y17: 1.625159337 | Z17: 2.028780769 | AA17: 2.545892188
A18: Vegetables | B18: Leafy Green | C18: spinach | D18: 153.2406096 | E18: 145.6425196 | F18: 209.7576805 | G18: 160.836907 | H18: 184.4230041 | I18: 164.8950263 | J18: 284.1177283 | K18: 189.114291 | L18: 202.3802416 | M18: 231.9363776 | N18: 240.6968191 | O18: 269.6907104 | P18: 129.4133689 | Q18: 173.0465979 | R18: 203.2276813 | S18: 178.2034399 | T18: 196.8941692 | U18: 149.3903014 | V18: 55.34788546 | W18: 41.46465664 | X18: 44.90354 | Y18: 39.93411141 | Z18: 43.89852295 | AA18: 52.45344739
A19: Vegetables | B19: Leafy Green | C19: silverbeet | D19: 29.56295639 | E19: 32.65060284 | F19: 49.48925 | G19: 41.9351236 | H19: 28.76786057 | I19: 29.14421878 | J19: 39.01149885 | K19: 29.56451509 | L19: 40.71995546 | M19: 65.30564776 | N19: 69.02415052 | O19: 59.09467208 | P19: 29.50014759 | Q19: 40.82217918 | R19: 48.34295372 | S19: 28.44922792 | T19: 30.16384543 | U19: 27.05657274 | V19: 33.78708471 | W19: 28.73045132 | X19: 43.24299844 | Y19: 43.09846643 | Z19: 55.73948251 | AA19: 54.54842327
A20: Vegetables | B20: Marrow | C20: pumpkin | D20: 152.546856 | E20: 198.7740721 | F20: 106.7955013 | G20: 119.4231918 | H20: 91.98487161 | I20: 97.49534918 | J20: 144.2857521 | K20: 147.7994028 | L20: 111.2694346 | M20: 87.35223912 | N20: 106.3507852 | O20: 78.15079687 | P20: 151.4579117 | Q20: 90.5143259 | R20: 253.2993172 | S20: 111.2343484 | T20: 113.8750709 | U20: 122.2662779 | V20: 133.7642742 | W20: 86.21164939 | X20: 47.90868757 | Y20: 47.39487482 | Z20: 4.148418478 | AA20: 15.37947751
A21: Vegetables | B21: Marrow | C21: cucumber | D21: -0.01466966665 | E21: -0.06777593289 | F21: -0.006638477201 | G21: 0 | H21: 0 | I21: 0 | J21: 0 | K21: 0 | L21: 561.193359 | M21: 1635.13743 | N21: 55.36862148 | O21: 0 | P21: 0 | Q21: 0 | R21: 0 | S21: 0 | T21: 0 | U21: 0 | V21: 0 | W21: 0 | X21: 904.5065146 | Y21: 741.2155723 | Z21: 17.45166681 | AA21: 0
A22: Vegetables | B22: Marrow | C22: zucchini | D22: 391.156788 | E22: 851.0554684 | F22: 879.8511727 | G22: 2.893266813 | H22: 0 | I22: 0 | J22: 0 | K22: 0 | L22: 0 | M22: 0 | N22: 0 | O22: 0 | P22: 391.6335306 | Q22: 1139.553633 | R22: 617.9835221 | S22: 0 | T22: 0 | U22: 0 | V22: 0 | W22: 0 | X22: 0 | Y22: 0 | Z22: 0 | AA22: 0
A23: Vegetables | B23: Marrow | C23: zucchini | D23: 0 | E23: 0 | F23: 0 | G23: 0 | H23: 0 | I23: 0 | J23: 0 | K23: 0 | L23: 0 | M23: 0 | N23: 0 | O23: 0 | P23: 0 | Q23: 0 | R23: 0 | S23: 0 | T23: 0 | U23: 0 | V23: 0 | W23: 0 | X23: 0 | Y23: 0 | Z23: 0 | AA23: 0
A24: Vegetables | B24: Root | C24: potato | D24: 0.07877256986 | E24: 5.297381087 | F24: 0 | G24: 0 | H24: 0 | I24: 0 | J24: 0 | K24: 0 | L24: 0 | M24: 0 | N24: 0 | O24: 0 | P24: 0 | Q24: 0 | R24: 0 | S24: 0 | T24: 0 | U24: 0 | V24: 0 | W24: 0 | X24: 0 | Y24: 0 | Z24: 0 | AA24: 0
A25: Vegetables | B25: Root | C25: sweet potato | D25: 22.72131204 | E25: 23.32771868 | F25: 50.49548067 | G25: 27.76387704 | H25: 24.24236734 | I25: 26.89502114 | J25: 48.81155129 | K25: 25.32334869 | L25: 134.0202386 | M25: 40.65629634 | N25: 22.556967 | O25: 111.8264069 | P25: 30.95521845 | Q25: 28.39535218 | R25: 34.51235903 | S25: 0 | T25: 0 | U25: 0 | V25: 0 | W25: 0 | X25: 0 | Y25: 0 | Z25: 0 | AA25: 0
